Workbook

Sheet 编制说明
A1: 惠州市江北污水处理厂二期工程
A2: 劳务采购工程量清单编制说明
A3: 1、本项目劳务采购工程量清单以采购人投标工程量清单中的人工单价作为基价。
A4: 2.劳务采购工程量清单中的计日工指用于劳务供应商完成采购人提出的劳务采购合同范围以外的零星项目或工作，包括但不限于交通疏导、已完工程成品保护、防扬尘措施、路面清洗、现场材料二次转运、临时设施安装拆及日常维护、值班值守等工作。计价依据取自2024年12月12日广东省建筑市场主要劳务用工价格信息监测平台发布的普工（土建）单价，计日工按287元/工日计，结算数量按现场实际发生工程量为准。

Sheet 汇总
A1: 劳务采购工程量清单汇总表
A2: 项目名称: | C2: 惠州市江北污水处理厂二期工程项目
A3: 序号 | B3: 单位工程名称 | D3: 金额(元) | E3: 备注
A5: 一 | B5: 惠州市江北污水处理厂二期工程项目-土建工程 | D5: =SUM(D6:D28) -> 17021963.38
A6: 1 | B6: 场平土石方、边坡支护工程 | D6: ='1【场平土石方、边坡支护工程】'!H17 -> 849826.12
A7: 2 | B7: 道路工程 | D7: ='2【道路工程】'!H37 -> 509371.33
A8: 3 | B8: 园建工程 | D8: ='3【园建工程】'!H51 -> 158676.44
A9: 4 | B9: 绿化工程 | D9: ='4【绿化工程】'!H35 -> 267150.64
A10: 5 | B10: 粗格栅及提升泵站 | D10: ='5【粗格栅及提升泵站】'!H82 -> 1225294.68
A11: 6 | B11: 细格栅及旋流沉砂池 | D11: ='6【细格栅及旋流沉砂池】'!H56 -> 240527.33
A12: 7 | B12: AAO生化池 | D12: ='7【AAO生化池】'!H62 -> 7095620.06
A13: 8 | B13: 砂介质高效沉淀池 | D13: ='8【砂介质高效沉淀池】'!H74 -> 748922.02
A14: 9 | B14: 生物除臭设施 | D14: ='9【生物除臭设施】'!H21 -> 59706.61
A15: 10 | B15: 储泥池 | D15: ='10【储泥池】'!H47 -> 38766.66
A16: 11 | B16: 配水井及污泥泵房 | D16: ='11【配水井及污泥泵房】'!H67 -> 204227.70
A17: 12 | B17: 二沉池 | D17: ='12【二沉池】'!H52 -> 1630480.56
A18: 13 | B18: 接触消毒池及计量槽 | D18: ='13【接触消毒池及计量槽】'!H61 -> 501881.23
A19: 14 | B19: 精密过滤器 | D19: ='14【精密过滤器】'!H63 -> 193283.22
A20: 15 | B20: 污泥料仓 | D20: ='15【污泥料仓】'!H24 -> 19026.80
A21: 16 | B21: 基坑支护工程 | D21: ='16【基坑支护工程】'!H13 -> 260714.97
A22: 17 | B22: 综合楼 | D22: ='17【综合楼】'!H157 -> 1385583.65
A23: 18 | B23: 传达室 | D23: ='18【传达室】'!H90 -> 33036.88
A24: 19 | B24: 加药间 | D24: ='19【加药间】'!H85 -> 440149.83
A25: 20 | B25: 鼓风机房及配电中心 | D25: ='20【鼓风机房及配电中心】'!H97 -> 282247.53
A26: 21 | B26: 机修车间及仓库 | D26: ='21【机修车间及仓库】'!H94 -> 245838.74
A27: 22 | B27: 污泥脱水车间 | D27: ='22【污泥脱水车间】'!H109 -> 423856.97
A28: 23 | B28: 厂区围墙及大门 | D28: ='23【厂区围墙及大门】'!H47 -> 207773.41
A29: 二 | B29: 惠州市江北污水处理厂二期工程项目-安装工程 | D29: =SUM(D30:D38) -> 2782028.29
A30: 1 | B30: 厂区照明工程-安装工程 | D30: ='24【厂区照明工程-安装工程】'!H17 -> 50200.00
A31: 2 | B31: 安防工程-安装工程 | D31: ='25【安防工程-安装工程】'!H35 -> 71229.20
A32: 3 | B32: 工艺管线-安装工程 | D32: ='26【工艺管线-安装工程】'!H118 -> 620147.88
A33: 4 | B33: 绿化灌溉管线-安装工程 | D33: ='27【绿化灌溉管线-安装工程】'!H28 -> 77776.31
A34: 5 | B34: 厂区雨污水管道-安装工程 | D34: ='28【厂区雨污水管道-安装工程】'!H57 -> 682329.18
A35: 6 | B35: 给水管道安装工程(含回用水管、消防水管） | D35: ='29【给水管道安装工程...】'!H45 -> 103889.35
A36: 7 | B36: 进水管道与尾水管道 | D36: ='30【进水管道与尾水管道】'!H127 -> 912724.00
A37: 8 | B37: 厂区管线迁改及现状破复工程 | D37: ='31【厂区管线迁改及现状破复工程】'!H31 -> 75932.34
A38: 9 | B38: 综合楼传达室机修车间-安装工程 | D38: ='32【综合楼传达室机修车间-安装工程】'!H296 -> 187800.03
A39: 三 | B39: 计日工 | D39: ='33【计日工】 '!H6 -> 3666425.00
A40: 合 计 | D40: =D5+D29+D39 -> 23470416.67

Sheet 1【场平土石方、边坡支护工程】
A1: 劳务采购工程量清单
A2: 工程名称: | C2: 场平土石方、边坡支护工程
A3: 序号 | B3: 项目编码 | D3: 项目名称 | E3: 单位 | F3: 工程量 | G3: 人工费
G4: 单价（元） | H4: 合价（元）
D5: 换填处理
A6: 1 | B6: 040101001004 | D6: 地基翻挖回填处理 | E6: m3 | F6: 21966.45 | G6: =ROUND(H6/F6,2) -> 3.97 | H6: 87307.80
D7: 厂区土石方工程
A8: 2 | B8: 040101001001 | D8: 清表 | E8: m3 | F8: 16697.70 | G8: 7.06 | H8: 117960.42
A9: 3 | B9: 040101001002 | D9: 挖一般土方 | E9: m3 | F9: 78280.40 | G9: 3.38 | H9: 264865.92
A10: 4 | B10: 040103001001 | D10: 回填土方 | E10: m3 | F10: 76804.47 | G10: 2.55 | H10: 196158.36
A11: 5 | B11: 040101001006 | D11: 余方外弃 | E11: m3 | F11: 21660.43 | G11: 6.29 | H11: 136344.63
D12: 边坡支护工程
A13: 6 | B13: 040101001005 | D13: 清表 | E13: m3 | F13: 1335.91 | G13: =ROUND(H13/F13,2) -> 7.06 | H13: 9437.55
A14: 7 | B14: 040101001007 | D14: 挖一般土方 | E14: m3 | F14: 1992.94 | G14: 3.38 | H14: 6741.59
A15: 8 | B15: 040103001002 | D15: 回填土方 | E15: m3 | F15: 6711.57 | G15: 2.55 | H15: 17141.59
A16: 9 | B16: 050102013001 | D16: 湿法喷播植草防护 | E16: m2 | F16: 2484.12 | G16: 5.58 | H16: 13868.26
A17: 合计 | H17: =SUM(H6:H16) -> 849826.12

Sheet 2【道路工程】
A1: 劳务采购工程量清单
A2: 工程名称: | C2: 道路工程
A3: 序号 | B3: 项目编码 | D3: 项目名称 | E3: 单位 | F3: 工程量 | G3: 人工费
G4: 单价（元） | H4: 合价（元）
D5: 土方工程
A6: 1 | B6: 040101001001 | D6: 挖一般土方 | E6: m3 | F6: 2551.863 | G6: =ROUND(H6/F6,2) -> 3.05 | H6: 7790.31
A7: 2 | B7: 040103001001 | D7: 回填土方 | E7: m3 | F7: 244.552 | G7: 2.56 | H7: 624.84
D8: 行车道
A9: 3 | B9: 040203007001 | D9: 水泥混凝土 | E9: m2 | F9: 7845.16 | G9: 32.51 | H9: 255026.32
A10: 4 | B10: 040202015001 | D10: 15cm厚5%水泥稳定碎石底基层 | E10: m2 | F10: 8659.598 | G10: 3.70 | H10: 32070.17
A11: 5 | B11: 040202015002 | D11: 15cm厚4%水泥稳定碎石底基层 | E11: m2 | F11: 9499.079 | G11: 3.70 | H11: 35179.16
A12: 6 | B12: 040202001001 | D12: 路床(槽)整形 | E12: m2 | F12: 9499.079 | G12: 0.87 | H12: 8285.11
A13: 7 | B13: 040203007003 | D13: 缩缝 | E13: m | F13: 1915 | G13: 5.07 | H13: 9706.75
A14: 8 | B14: 040901001002 | D14: 现浇构件钢筋 | E14: t | F14: 49.466 | G14: 1110.78 | H14: 54945.84
A15: 9 | B15: 粤040202017001 | D15: 水泥混凝土垫层（新旧衔接处） | E15: m2 | F15: 10.8 | G15: 20.16 | H15: 217.68
A16: 10 | B16: 040901008001 | D16: 植筋 | E16: 根 | F16: 60 | G16: 62.21 | H16: 3732.46
A17: 11 | B17: 040205006001 | D17: 标线 | E17: m2 | F17: 272.7 | G17: 5.86 | H17: 1596.68
A18: 12 | B18: 040205003001 | D18: 标杆 | E18: 套 | F18: 1 | G18: 237.50 | H18: 237.50
D19: 路缘石
A20: 13 | B20: 040204004001 | D20: C30预制砼路缘石|12*30*50 | E20: m | F20: 2536.744 | G20: =ROUND(H20/F20,2) -> 8.57 | H20: 21733.80
D21: 钢筋混凝土悬臂式挡土墙
A22: 14 | B22: 040303001001 | D22: 混凝土垫层 | E22: m3 | F22: 44.38 | G22: 111.18 | H22: 4934.31
A23: 15 | B23: 040303002001 | D23: 混凝土基础 | E23: m3 | F23: 220.8 | G23: 106.81 | H23: 23583.86
A24: 16 | B24: 040303015001 | D24: 混凝土挡墙墙身 | E24: m3 | F24: 41.4 | G24: 146.18 | H24: 6051.97
A25: 17 | B25: 040309007001 | D25: 挡墙沉降缝 | E25: m | F25: 91.01 | G25: 17.06 | H25: 1552.63
A26: 18 | B26: 040901001003 | D26: 现浇构件钢筋 | E26: t | F26: 19.227 | G26: 687.68 | H26: 13222.02
A27: 19 | B27: 040501004001 | D27: φ100PVC泄水管 | E27: m | F27: 27.6 | G27: 6.22 | H27: 171.59
A28: 20 | B28: 040201021001 | D28: 土工布 | E28: m2 | F28: 143.52 | G28: 3.68 | H28: 527.65
A29: 21 | B29: 040103001002 | D29: 回填石屑 | E29: m3 | F29: 20.148 | G29: 3.19 | H29: 64.29
A30: 22 | B30: 040103001003 | D30: 碎石滤层 | E30: m3 | F30: 17.802 | G30: 58.01 | H30: 1032.65
A31: 23 | B31: 040103001005 | D31: 回填土 | E31: m3 | F31: 1617.22 | G31: 2.55 | H31: 4130.27
D32: 措施项目
A33: 37 | B33: 041102002001 | D33: 路缘石基础模板 | E33: m2 | F33: 634.186 | G33: =ROUND(H33/F33,2) -> 12.31 | H33: 7806.87
A34: 38 | B34: 041102001001 | D34: 垫层模板 | E34: m2 | F34: 27.6 | G34: 10.65 | H34: 294.01
A35: 39 | B35: 041102002002 | D35: 基础模板 | E35: m2 | F35: 82.8 | G35: 23.27 | H35: 1926.60
A36: 40 | B36: 041102017001 | D36: 挡墙模板 | E36: m2 | F36: 469.2 | G36: 27.55 | H36: 12925.99
A37: 合计 | H37: =SUM(H6:H36) -> 509371.33

Sheet 3【园建工程】
A1: 劳务采购工程量清单
A2: 工程名称: | C2: 园建工程
A3: 序号 | B3: 项目编码 | D3: 项目名称 | E3: 单位 | F3: 工程量 | G3: 人工费
G4: 单价（元） | H4: 合价（元）
D5: 透水砖园路
A6: 1 | B6: 040204002001 | D6: 60厚200*400深灰色仿石透水砖 | E6: m2 | F6: 1448.18 | G6: =ROUND(H6/F6,2) -> 21.05 | H6: 30490.40
A7: 2 | B7: 粤040202017001 | D7: 100厚C20混凝土 | E7: m2 | F7: 1445.21 | G7: =ROUND(H7/F7,2) -> 12.23 | H7: 17679.28
A8: 3 | B8: 040202015001 | D8: 150厚4%水泥稳定石屑 | E8: m2 | F8: 1442.19 | G8: 3.52 | H8: 5071.86
A9: 4 | B9: 040204004001 | D9: 花岗岩平石 | E9: m | F9: 1074.75 | G9: 15.60 | H9: 16763.65
D10: 花岗岩场地
A11: 5 | B11: 040204002002 | D11: 30厚烧面芝麻灰花岗岩 | E11: m2 | F11: 226.60 | G11: =ROUND(H11/F11,2) -> 27.21 | H11: 6166.69
A12: 6 | B12: 粤040202017002 | D12: 100厚C20混凝土 | E12: m2 | F12: 225.30 | G12: 12.23 | H12: 2756.12
A13: 7 | B13: 040202015002 | D13: 150厚6%水泥石粉渣 | E13: m2 | F13: 224.80 | G13: 3.52 | H13: 790.59
D14: 树池
A15: 8 | B15: 010809004001 | D15: 30厚光面芝麻白花岗岩压顶 | E15: m2 | F15: 14.17 | G15: =ROUND(H15/F15,2) -> 27.52 | H15: 390.02
A16: 9 | B16: 011204001001 | D16: 20厚烧面芝麻白花岗岩 | E16: m2 | F16: 15.74 | G16: 46.35 | H16: 729.71
A17: 10 | B17: 040305004001 | D17: 砖砌体 | E17: m3 | F17: 8.33 | G17: 133.59 | H17: 1112.15
A18: 11 | B18: 040305001002 | D18: C15混凝土垫层 | E18: m3 | F18: 2.68 | G18: 111.30 | H18: 297.84
A19: 12 | B19: 040103001002 | D19: 素土夯实 | E19: m2 | F19: 26.77 | G19: 1.42 | H19: 37.88
D20: 汀步
A21: 13 | B21: 050201013001 | D21: 80厚烧面芝麻灰花岗岩 | E21: m2 | F21: 17.16 | G21: =ROUND(H21/F21,2) -> 32.73 | H21: 561.73
A22: 14 | B22: 040202011001 | D22: 60cm厚3:7灰土垫层 | E22: m2 | F22: 20.67 | G22: 4.09 | H22: 84.62
D23: 停车场
A24: 15 | B24: 040204002003 | D24: 387X334X38草坪格 | E24: m2 | F24: 506.24 | G24: 22.78 | H24: 11529.79
A25: 16 | B25: 040309001002 | D25: 钢管车档 | E25: 套 | F25: 30.00 | G25: 35.48 | H25: 1064.26
A26: 17 | B26: 040103001001 | D26: 150厚砂石垫层 | E26: m3 | F26: 75.94 | G26: 15.98 | H26: 1213.22
A27: 18 | B27: 040204002004 | D27: 50厚100*200红色水泥砖 | E27: m2 | F27: 41.28 | G27: 21.06 | H27: 869.53
A28: 19 | B28: 040303001001 | D28: 100厚C20混凝土 | E28: m2 | F28: 41.28 | G28: 12.24 | H28: 505.23
A29: 20 | B29: 040305001001 | D29: 200厚碎石垫层 | E29: m3 | F29: 8.26 | G29: 64.46 | H29: 532.19
A30: 21 | B30: 040204004004 | D30: C30水泥砼路缘石 | E30: m | F30: 113.20 | G30: 23.24 | H30: 2630.40
D31: 篮球场
A32: 22 | B32: 011103001001 | D32: 10厚PU塑胶面层 | E32: m2 | F32: 640.66 | G32: =ROUND(H32/F32,2) -> 16.43 | H32: 10528.17
A33: 23 | B33: 040203006001 | D33: 30厚C20细沥青混凝土 | E33: m2 | F33: 562.20 | G33: 1.00 | H33: 562.70
A34: 24 | B34: 040203006002 | D34: 40厚C20中粒式沥青混凝土 | E34: m2 | F34: 562.20 | G34: 0.98 | H34: 548.43
A35: 25 | B35: 040202015004 | D35: 150厚水泥石粉层 | E35: m2 | F35: 562.20 | G35: 3.52 | H35: 1977.13
A36: 26 | B36: 040202015003 | D36: 100厚级配碎石层 | E36: m2 | F36: 562.20 | G36: 3.16 | H36: 1778.85
A37: 27 | B37: 010507003001 | D37: 地沟 | E37: m | F37: 93.40 | G37: 73.94 | H37: 6906.46
A38: 28 | B38: 011506002002 | D38: 篮球架 | E38: 套 | F38: 2.00
A39: 29 | B39: 010607004002 | D39: 围网 | E39: m2 | F39: 408.00 | G39: =ROUND(H39/F39,2) -> 34.52 | H39: 14082.78
D40: 下沉绿地
A41: 30 | B41: 040202011002 | D41: 50mm厚砾石覆盖层 | E41: m2 | F41: 443.96 | G41: 3.24 | H41: 1439.56
A42: 31 | B42: 050101009001 | D42: 400mm厚种植土 | E42: m3 | F42: 177.58 | G42: 1.89 | H42: 336.01
A43: 32 | B43: 040202010001 | D43: 200mm厚砾石排水层 | E43: m2 | F43: 682.00 | G43: 12.97 | H43: 8844.86
A44: 33 | B44: 011003001001 | D44: 土工布隔离层 | E44: m2 | F44: 682.00 | G44: 3.66 | H44: 2498.99
A45: 34 | B45: 040504009001 | D45: 溢流口 | E45: 座 | F45: 15.00 | G45: 238.35 | H45: 3575.28
A46: 35 | B46: 040501004001 | D46: DN150mm穿孔管 | E46: m | F46: 70.40 | G46: 7.93 | H46: 558.60
D47: 措施项目
A48: 40 | B48: 041102002001 | D48: 路缘石基础模板 | E48: m2 | F48: 256.94 | G48: =ROUND(H48/F48,2) -> 12.31 | H48: 3162.94
A49: 41 | B49: 041102002002 | D49: 围网柱基础模板 | E49: m2 | F49: 24.91 | G49: 23.27 | H49: 579.59
A50: 42 | B50: 041102001001 | D50: 围网柱垫层模板 | E50: m2 | F50: 1.45 | G50: 13.03 | H50: 18.93
A51: 合计 | H51: =SUM(H6:H50) -> 158676.44

Sheet 4【绿化工程】
A1: 劳务采购工程量清单
A2: 工程名称: | C2: 绿化工程
A3: 序号 | B3: 项目编码 | D3: 项目名称 | E3: 单位 | F3: 工程量 | G3: 人工费
G4: 单价（元） | H4: 合价（元）
D5: 乔、灌木
A6: 1 | B6: 050102001006 | D6: 凤凰木 | E6: 株 | F6: 2.000 | G6: =ROUND(H6/F6,2) -> 81.40 | H6: 162.80
A7: 2 | B7: 050102001007 | D7: 红花风铃木 | E7: 株 | F7: 17.000 | G7: 81.40 | H7: 1383.74
A8: 3 | B8: 050102001008 | D8: 美丽异木棉 | E8: 株 | F8: 7.000 | G8: 81.40 | H8: 569.77
A9: 4 | B9: 050102001009 | D9: 秋枫 | E9: 株 | F9: 36.000 | G9: 81.40 | H9: 2930.27
A10: 5 | B10: 050102001010 | D10: 红花鸡蛋花 | E10: 株 | F10: 5.000 | G10: 50.57 | H10: 252.87
A11: 6 | B11: 050102002006 | D11: 小叶紫薇 | E11: 株 | F11: 18.000 | G11: 43.99 | H11: 791.78
A12: 7 | B12: 050102002007 | D12: 红千层 | E12: 株 | F12: 47.000 | G12: 57.50 | H12: 2702.67
A13: 8 | B13: 050102002008 | D13: 红车 | E13: 株 | F13: 26.000 | G13: 43.99 | H13: 1143.68
A14: 9 | B14: 050102002009 | D14: 勒杜鹃 | E14: 株 | F14: 36.000 | G14: 27.52 | H14: 990.58
A15: 10 | B15: 050102002010 | D15: 灰莉球 | E15: 株 | F15: 64.000 | G15: 27.52 | H15: 1761.04
D16: 地被
A17: 11 | B17: 050102008014 | D17: 亮叶朱蕉 | E17: m2 | F17: 53.220 | G17: 15.81 | H17: 841.30
A18: 12 | B18: 050102008015 | D18: 细叶棕竹 | E18: m2 | F18: 8.590 | G18: 15.83 | H18: 136.00
A19: 13 | B19: 050102008016 | D19: 美人蕉(红色) | E19: m2 | F19: 393.430 | G19: 20.28 | H19: 7978.16
A20: 14 | B20: 050102008017 | D20: 美人蕉(黄色) | E20: m2 | F20: 238.300 | G20: 20.28 | H20: 4832.72
A21: 15 | B21: 050102008018 | D21: 朱槿 | E21: m2 | F21: 237.200 | G21: 15.81 | H21: 3751.09
A22: 16 | B22: 050102008019 | D22: 巴西野牡丹 | E22: m2 | F22: 174.250 | G22: 16.03 | H22: 2793.20
A23: 17 | B23: 050102008020 | D23: 翠芦莉 | E23: m2 | F23: 307.910 | G23: 20.28 | H23: 6244.22
A24: 18 | B24: 050102008021 | D24: 变叶木 | E24: m2 | F24: 75.670 | G24: 16.03 | H24: 1213.10
A25: 19 | B25: 050102008022 | D25: 金叶假连翘 | E25: m2 | F25: 181.690 | G25: 16.03 | H25: 2911.79
A26: 20 | B26: 050102008023 | D26: 满天星 | E26: m2 | F26: 44.160 | G26: 20.87 | H26: 921.78
A27: 21 | B27: 050102008024 | D27: 紫花马缨丹 | E27: m2 | F27: 23.260 | G27: 16.05 | H27: 373.39
A28: 22 | B28: 050102008025 | D28: 鸢尾 | E28: m2 | F28: 106.680 | G28: 20.57 | H28: 2194.68
A29: 23 | B29: 050102008012 | D29: 再力花 | E29: m2 | F29: 352.000 | G29: 20.64 | H29: 7264.05
A30: 24 | B30: 050102012002 | D30: 马尼拉草 | E30: m2 | F30: 15863.650 | G30: 9.96 | H30: 157945.34
A31: 25 | B31: 050102013002 | D31: 喷播植草(灌木)籽 | E31: m2 | F31: 8271.010 | G31: 4.70 | H31: 38867.91
A32: 26 | B32: 050101009002 | D32: 种植土回(换)填 | E32: m3 | F32: 7423.890 | G32: 1.89 | H32: 14046.03
D33: 措施项目
A34: 31 | B34: 050403001002 | D34: 树木支撑架 | E34: 株 | F34: 67.000 | G34: 32.04 | H34: 2146.68
A35: 合计 | H35: =SUM(H6:H34) -> 267150.64

Sheet 5【粗格栅及提升泵站】
A1: 劳务采购工程量清单
A2: 工程名称: | C2: 粗格栅及提升泵站
A3: 序号 | B3: 项目编码 | D3: 项目名称 | E3: 单位 | F3: 工程量 | G3: 人工费
G4: 单价（元） | H4: 合价（元）
D5: 第一章 土石方工程
A6: 1 | B6: 40405002002 | D6: 沉井下沉 | E6: m3 | F6: 4241.48 | G6: =ROUND(H6/F6,2) -> 80.90 | H6: 343156.00
D7: 第四章 砌筑工程
A8: 2 | B8: 10402001003 | D8: 200厚外墙 | E8: m3 | F8: 45.65 | G8: =ROUND(H8/F8,2) -> 161.77 | H8: 7384.94
D9: 第五章 混凝土及钢筋混凝土工程
A10: 3 | B10: 40405003002 | D10: 沉井混凝土封底 | E10: m3 | F10: 269.52 | G10: =ROUND(H10/F10,2) -> 266.36 | H10: 71790.68
A11: 4 | B11: 40601001004 | D11: 沉井混凝土刃脚 | E11: m3 | F11: 227.59 | G11: 153.03 | H11: 34828.10
A12: 5 | B12: 40601001005 | D12: 现浇混凝土沉井井壁 | E12: m3 | F12: 1233.34 | G12: 130.31 | H12: 160720.23
A13: 6 | B13: 40405004002 | D13: 沉井混凝土底板 | E13: m3 | F13: 248.06 | G13: 130.60 | H13: 32397.63
A14: 7 | B14: 40601010002 | D14: 现浇混凝土池盖板 | E14: m3 | F14: 34.41 | G14: 109.19 | H14: 3757.19
A15: 8 | B15: 40601010003 | D15: 现浇混凝土池盖板 | E15: m3 | F15: 0.7 | G15: 101.74 | H15: 71.22
A16: 9 | B16: 40103001007 | D16: 回填C20素砼 | E16: m3 | F16: 148.62 | G16: 106.81 | H16: 15874.25
A17: 10 | B17: 40601008001 | D17: 现浇混凝土池柱 | E17: m3 | F17: 0.72 | G17: 151.72 | H17: 109.24
A18: 11 | B18: 40601012002 | D18: 配水板 | E18: m | F18: 17.72 | G18: 247.35 | H18: 4382.97
A19: 12 | B19: 40303001002 | D19: 砂垫层 | E19: m3 | F19: 12.6 | G19: 84.24 | H19: 1061.45
A20: 13 | B20: 40601030001 | D20: 井、池渗漏试验 | E20: m3 | F20: 2703.27 | G20: 1.07 | H20: 2891.99
A21: 16 | B21: 10502001001 | D21: 矩形柱 | E21: m3 | F21: 15.78 | G21: =ROUND(H21/F21,2) -> 122.15 | H21: 1927.50
A22: 17 | B22: 40406004002 | D22: 女儿墙 | E22: m3 | F22: 3.77 | G22: 176.03 | H22: 663.62
A23: 18 | B23: 10505001003 | D23: 有梁板 | E23: m3 | F23: 32.35 | G23: 50.65 | H23: 1638.57
A24: 19 | B24: 10505008001 | D24: 屋面檐口 | E24: m3 | F24: 6.42 | G24: 172.70 | H24: 1108.72
A25: 20 | B25: 10503005001 | D25: 过梁 | E25: m3 | F25: 0.66 | G25: 115.67 | H25: 76.34
A26: 21 | B26: 10503002001 | D26: 构造柱 | E26: m3 | F26: 1.13 | G26: 188.54 | H26: 213.05
A27: 22 | B27: 11702029003 | D27: 散水 | E27: m2 | F27: 61.68 | G27: 3.47 | H27: 213.99
A28: 23 | B28: 40901001005 | D28: 现浇构件钢筋 | E28: t | F28: 2.404 | G28: 687.68 | H28: 1653.18
A29: 24 | B29: 40901001006 | D29: 现浇构件钢筋 | E29: t | F29: 10.889 | G29: 687.68 | H29: 7488.15
A30: 25 | B30: 40901001009 | D30: 现浇构件钢筋 | E30: t | F30: 183.485 | G30: 687.68 | H30: 126178.96
A31: 26 | B31: 40901001008 | D31: 现浇构件钢筋 | E31: t | F31: 36.883 | G31: 485.69 | H31: 17913.70
A32: 27 | B32: 40901001010 | D32: 现浇构件钢筋 | E32: t | F32: 4.926 | G32: 1121.48 | H32: 5524.41
A33: 28 | B33: 40901001011 | D33: 现浇构件钢筋 | E33: t | F33: 5.89 | G33: 1121.48 | H33: 6605.52
A34: 29 | B34: 40901001012 | D34: 现浇构件钢筋 | E34: t | F34: 2.72 | G34: 938.41 | H34: 2552.48
A35: 30 | B35: 10516003002 | D35: 机械连接 | E35: 个 | F35: 450 | G35: 3.70 | H35: 1663.20
A36: 31 | B36: 10516003001 | D36: 机械连接 | E36: 个 | F36: 2667 | G36: 4.56 | H36: 12153.52
A37: 32 | B37: 10516003004 | D37: 机械连接 | E37: 个 | F37: 606 | G37: 5.90 | H37: 3574.79
A38: 33 | B38: 10516003006 | D38: 机械连接 | E38: 个 | F38: 488 | G38: 6.71 | H38: 3276.43
A39: 34 | B39: 40103001008 | D39: 回填块石 | E39: m3 | F39: 74.412 | G39: 1.45 | H39: 108.04
D40: 第八章 门窗工程
A41: 35 | B41: 10802001002 | D41: 钢制普通门 | E41: m2 | F41: 8.1 | G41: =ROUND(H41/F41,2) -> 43.59 | H41: 353.05
A42: 36 | B42: 10807001001 | D42: 铝合金固定窗 | E42: m2 | F42: 33.15 | G42: 16.42 | H42: 544.48
A43: 37 | B43: 10807001002 | D43: 铝合金平开窗 | E43: m2 | F43: 18 | G43: 21.70 | H43: 390.52
D44: 第九章 屋面及防水工程
A45: 38 | B45: 10902001004 | D45: 屋面2-混凝土保护层屋面(不上人屋面)I级防水 | E45: m2 | F45: 162.36 | G45: =ROUND(H45/F45,2) -> 56.68 | H45: 9201.99
A46: 39 | B46: 40402017001 | D46: BW止水条 | E46: m | F46: 197.8 | G46: 10.86 | H46: 2147.65
D47: 第十一章 楼地面装饰工程
A48: 40 | B48: 11102003010 | D48: 楼地1b（防滑地砖面层） | E48: m2 | F48: 112.48 | G48: 35.86 | H48: 4033.43
A49: 41 | B49: 40601028007 | D49: 地防1（地面） | E49: m2 | F49: 97.5 | G49: 4.79 | H49: 466.55
D50: 第十二章 墙、柱面装饰与隔断、幕墙工程
A51: 42 | B51: 11201001003 | D51: 真石漆外墙（外墙1） | E51: m2 | F51: 973.32 | G51: =ROUND(H51/F51,2) -> 66.12 | H51: 64354.89
A52: 43 | B52: 11201001004 | D52: 石粉类涂料内墙面 (内墙2) | E52: m2 | F52: 294.61 | G52: 14.58 | H52: 4296.18
A53: 44 | B53: 40601028008 | D53: 地防1（内墙） | E53: m2 | F53: 657.33 | G53: 5.44 | H53: 3576.24
A54: 45 | B54: 40601028009 | D54: 地防1（外墙） | E54: m2 | F54: 879.13 | G54: 5.44 | H54: 4783.01
D55: 第十三章 天棚工程
A56: 46 | B56: 11301001005 | D56: 石粉类涂料顶棚 (棚2) | E56: m2 | F56: 199.27 | G56: =ROUND(H56/F56,2) -> 29.42 | H56: 5862.66
D57: 第十五章 其他装饰工程
A58: 47 | B58: 10604002002 | D58: 钢吊车梁 | E58: t | F58: 1.644 | G58: =ROUND(H58/F58,2) -> 523.33 | H58: 860.35
D59: 措施项目
B60: AQFHWMSG | D60: 绿色施工安全防护措施费
A61: 49 | B61: 41101001001 | D61: 综合脚手架 | E61: m2 | F61: 359.04 | G61: =ROUND(H61/F61,2) -> 13.55 | H61: 4863.72
A62: 50 | B62: 粤011701010002 | D62: 满堂脚手架 | E62: m2 | F62: 153.52 | G62: 10.23 | H62: 1570.41
A63: 51 | B63: 粤011701011002 | D63: 里脚手架 | E63: m2 | F63: 76.76 | G63: 12.19 | H63: 935.34
A64: 52 | B64: 粤011701010003 | D64: 满堂脚手架 | E64: m2 | F64: 158.84 | G64: 29.82 | H64: 4736.47
A65: 53 | B65: 粤011701011003 | D65: 里脚手架 | E65: m2 | F65: 79.42 | G65: 26.74 | H65: 2123.66
A66: 60 | B66: 41102028001 | D66: 沉井刃脚模板 | E66: m2 | F66: 472.22 | G66: 69.80 | H66: 32960.01
A67: 61 | B67: 41102030001 | D67: 沉井底板模板 | E67: m2 | F67: 13.6 | G67: 33.58 | H67: 456.66
A68: 62 | B68: 41102028002 | D68: 沉井井壁(隔墙)模板 | E68: m2 | F68: 2732.48 | G68: 61.78 | H68: 168823.53
A69: 63 | B69: 41102029001 | D69: 沉井顶板模板 | E69: m2 | F69: 100.1 | G69: 36.33 | H69: 3636.56
A70: 64 | B70: 41102013001 | D70: 沉井梁模板 | E70: m2 | F70: 92.77 | G70: 35.70 | H70: 3311.79
A71: 65 | B71: 41102012001 | D71: 沉井柱模板 | E71: m2 | F71: 9.65 | G71: 59.57 | H71: 574.86
A72: 66 | B72: 41102037001 | D72: 配水板模板 | E72: m2 | F72: 105.2 | G72: 21.82 | H72: 2295.35
A73: 67 | B73: 11702002003 | D73: 矩形柱 | E73: m2 | F73: 139.8 | G73: 39.19 | H73: 5478.86
A74: 68 | B74: 11702002004 | D74: 构造柱 | E74: m2 | F74: 14.31 | G74: 39.16 | H74: 560.44
A75: 69 | B75: 11702014001 | D75: 有梁板 | E75: m2 | F75: 142.36 | G75: 52.56 | H75: 7482.72
A76: 70 | B76: 11702006002 | D76: 矩形梁 | E76: m2 | F76: 59.29 | G76: 54.84 | H76: 3251.73
A77: 71 | B77: 11702006003 | D77: 矩形梁 | E77: m2 | F77: 47.74 | G77: 58.28 | H77: 2782.30
A78: 72 | B78: 11702007001 | D78: 女儿墙 | E78: m2 | F78: 64.42 | G78: 25.04 | H78: 1613.29
A79: 73 | B79: 11702020001 | D79: 悬挑板 | E79: m2 | F79: 73.08 | G79: 35.82 | H79: 2618.03
A80: 74 | B80: 11702009001 | D80: 过梁 | E80: m2 | F80: 9.63 | G80: 25.48 | H80: 245.39
A81: 76 | B81: 11703001001 | D81: 垂直运输 | E81: m2 | F81: 52.8 | G81: 21.64 | H81: 1142.50
A82: 合计 | H82: =SUM(H6:H81) -> 1225294.68

Sheet 6【细格栅及旋流沉砂池】
A1: 劳务采购工程量清单
A2: 工程名称: | C2: 细格栅及旋流沉砂池
A3: 序号 | B3: 项目编码 | D3: 项目名称 | E3: 单位 | F3: 工程量 | G3: 人工费
G4: 单价（元） | H4: 合价（元）
D5: 土石方工程
A6: 1 | B6: 40101001001 | D6: 挖一般土方 | E6: m3 | F6: 450.51 | G6: =ROUND(H6/F6,2) -> 3.05 | H6: 1374.53
A7: 2 | B7: 40103001001 | D7: 回填土方 | E7: m3 | F7: 353.12 | G7: 9.45 | H7: 3338.38
A8: 3 | B8: 10101004001 | D8: 挖基坑土方 | E8: m3 | F8: 124.86 | G8: 4.69 | H8: 586.21
A9: 4 | B9: 40103001003 | D9: 回填方-基础及基槽 | E9: m3 | F9: 80.3 | G9: 12.30 | H9: 987.35
A10: 5 | B10: 40103002001 | D10: 场内利用 | E10: m3 | F10: 76.937 | G10: 3.49 | H10: 268.43
D11: 第三章 桩基工程
A12: 6 | B12: 40301002003 | D12: φ400预制钢筋混凝土管桩 | E12: m | F12: 935.68 | G12: =ROUND(H12/F12,2) -> 13.51 | H12: 12638.94
A13: 7 | B13: 40901001004 | D13: 预制钢筋混凝土管桩插筋 | E13: t | F13: 3.68 | G13: 416.79 | H13: 1533.79
A14: 8 | B14: 40901009001 | D14: 预埋铁件 | E14: t | F14: 0.111 | G14: 1938.38 | H14: 215.16
A15: 9 | B15: 40301011002 | D15: 截桩头 | E15: 根 | F15: 68 | G15: 32.90 | H15: 2237.44
D16: 第五章 混凝土及钢筋混凝土工程
A17: 10 | B17: 40303001002 | D17: 混凝土垫层 | E17: m3 | F17: 28.742 | G17: =ROUND(H17/F17,2) -> 137.09 | H17: 3940.21
A18: 11 | B18: 40303002001 | D18: C20设备基础 | E18: m3 | F18: 104.806 | G18: 106.81 | H18: 11194.73
A19: 12 | B19: 40303003001 | D19: 混凝土承台 | E19: m3 | F19: 24.3 | G19: 112.45 | H19: 2732.53
A20: 13 | B20: 40303017001 | D20: 混凝土楼梯 | E20: m3 | F20: 1.977 | G20: 116.89 | H20: 231.09
A21: 14 | B21: 40406003002 | D21: 混凝土柱 | E21: m3 | F21: 6.075 | G21: 122.25 | H21: 742.64
A22: 15 | B22: 40601006004 | D22: 现浇混凝土池底板 | E22: m3 | F22: 83.4 | G22: 90.07 | H22: 7511.50
A23: 16 | B23: 40601007002 | D23: 现浇混凝土池壁(隔墙) | E23: m3 | F23: 151.51 | G23: 94.40 | H23: 14301.79
A24: 17 | B24: 40601010002 | D24: 现浇混凝土池盖板 | E24: m3 | F24: 7.076 | G24: 109.25 | H24: 773.06
A25: 18 | B25: 10505001002 | D25: 有梁板 | E25: m3 | F25: 39.09 | G25: 50.65 | H25: 1979.95
A26: 19 | B26: 40601030001 | D26: 井、池渗漏试验 | E26: m3 | F26: 464.979 | G26: 5.89 | H26: 2740.57
A27: 22 | B27: 11702029001 | D27: 散水 | E27: m2 | F27: 39.47 | G27: 13.71 | H27: 541.07
A28: 23 | B28: 10516003001 | D28: 机械连接 | E28: 个 | F28: 128 | G28: 3.70 | H28: 473.09
A29: 24 | B29: 10516003003 | D29: 机械连接 | E29: 个 | F29: 193 | G29: 6.71 | H29: 1295.80
A30: 25 | B30: 40901001009 | D30: 现浇构件钢筋 | E30: t | F30: 2.664 | G30: 1442.85 | H30: 3843.75
A31: 26 | B31: 40901001006 | D31: 现浇构件钢筋 | E31: t | F31: 31.154 | G31: 687.68 | H31: 21423.98
A32: 27 | B32: 40901001007 | D32: 现浇构件钢筋 | E32: t | F32: 1.372 | G32: 1121.48 | H32: 1538.67
A33: 28 | B33: 40901001008 | D33: 现浇构件钢筋 | E33: t | F33: 4.636 | G33: 1121.48 | H33: 5199.18
A34: 29 | B34: 40404004001 | D34: 钢板止水带 | E34: m | F34: 109.864 | G34: 21.22 | H34: 2331.31
D35: 第十一章 楼地面装饰工程
A36: 30 | B36: 11102003002 | D36: 防滑地面砖面层（楼1b） | E36: m2 | F36: 241.87 | G36: =ROUND(H36/F36,2) -> 35.86 | H36: 8672.77
A37: 31 | B37: 40601028003 | D37: 地防1（地面） | E37: m2 | F37: 198.05 | G37: 4.79 | H37: 947.93
D38: 第十二章 墙、柱面装饰与隔断、幕墙工程
A39: 32 | B39: 40601028005 | D39: 侧壁防水 | E39: m2 | F39: 690.32 | G39: 5.44 | H39: 3755.78
A40: 33 | B40: 11201001002 | D40: 真石漆墙面 (外墙2构筑物外墙) | E40: m2 | F40: 325.11 | G40: 43.63 | H40: 14183.43
D41: 措施项目
A42: 35 | B42: 41101001001 | D42: 墙面脚手架 池体 | E42: m2 | F42: 163.04 | G42: =ROUND(H42/F42,2) -> 7.38 | H42: 1203.93
A43: 36 | B43: 41101001002 | D43: 墙面脚手架 池体 | E43: m2 | F43: 348.711 | G43: 13.55 | H43: 4724.15
A44: 37 | B44: 粤011701010001 | D44: 满堂脚手架 | E44: m2 | F44: 1018.06 | G44: 7.43 | H44: 7565.80
A45: 38 | B45: 粤011701011001 | D45: 里脚手架 | E45: m2 | F45: 509.03 | G45: 10.61 | H45: 5403.04
A46: 44 | B46: 41102001001 | D46: 垫层模板 | E46: m2 | F46: 44.01 | G46: 12.65 | H46: 556.72
A47: 45 | B47: 11702001001 | D47: 设备基础 | E47: m2 | F47: 13 | G47: 23.27 | H47: 302.48
A48: 46 | B48: 11702001003 | D48: 桩承台模板 | E48: m2 | F48: 87.61 | G48: 23.10 | H48: 2023.83
A49: 47 | B49: 41102034001 | D49: 池底模板 | E49: m2 | F49: 55.57 | G49: 33.60 | H49: 1866.95
A50: 48 | B50: 41102035001 | D50: 池壁(隔墙)模板 | E50: m2 | F50: 1133.35 | G50: 55.54 | H50: 62943.51
A51: 49 | B51: 11702014001 | D51: 有梁板 | E51: m2 | F51: 212.92 | G51: 47.12 | H51: 10033.39
A52: 50 | B52: 41102013001 | D52: 梁模板 | E52: m2 | F52: 119.56 | G52: 35.70 | H52: 4268.17
A53: 51 | B53: 41102012001 | D53: 柱模板 | E53: m2 | F53: 80.87 | G53: 59.57 | H53: 4817.60
A54: 52 | B54: 41102020001 | D54: 楼梯模板 | E54: m2 | F54: 8.928 | G54: 89.12 | H54: 795.65
A55: 53 | B55: 40901010001 | D55: 止水螺栓 | E55: t | F55: 0.142 | G55: 3429.93 | H55: 487.05
A56: 合计 | H56: =SUM(H6:H55) -> 240527.33

Sheet 7【AAO生化池】
A1: 劳务采购工程量清单
A2: 工程名称: | C2: AAO生化池
A3: 序号 | B3: 项目编码 | D3: 项目名称 | E3: 单位 | F3: 工程量 | G3: 人工费
G4: 单价（元） | H4: 合价（元）
D5: 土石方工程
A6: 1 | B6: 40101001001 | D6: 挖一般土方 | E6: m3 | F6: 46647.37 | G6: =ROUND(H6/F6,2) -> 3.05 | H6: 142404.88
A7: 2 | B7: 40103001001 | D7: 回填土方 | E7: m3 | F7: 6515.76 | G7: 9.45 | H7: 61603.63
A8: 3 | B8: 40103002001 | D8: 场内利用 | E8: m3 | F8: 39154.246 | G8: 3.49 | H8: 136595.35
D9: 第三章 桩基工程
A10: 4 | B10: 40301002001 | D10: 预制钢筋混凝土管桩 | E10: m | F10: 6021 | G10: 14.68 | H10: 88376.89
A11: 5 | B11: 40301002004 | D11: 预制钢筋混凝土管桩（试验桩） | E11: m | F11: 40.5 | G11: 27.40 | H11: 1109.73
A12: 6 | B12: 40301002002 | D12: 预制钢筋混凝土管桩 | E12: m | F12: 2025 | G12: 29.03 | H12: 58781.51
A13: 7 | B13: 40301002003 | D13: 预制钢筋混凝土管桩 | E13: m | F13: 8748 | G13: 24.15 | H13: 211230.95
A14: 8 | B14: 40301002006 | D14: 预制钢筋混凝土管桩（试验桩） | E14: m | F14: 40.5 | G14: 44.92 | H14: 1819.45
A15: 9 | B15: 10515001001 | D15: 预制钢筋混凝土管桩插筋 | E15: t | F15: 94.206 | G15: 416.79 | H15: 39264.12
A16: 10 | B16: 40901009002 | D16: 预埋铁件 | E16: t | F16: 3.82 | G16: 1938.36 | H16: 7404.54
A17: 11 | B17: 10301004001 | D17: 截(凿)桩头 | E17: 个 | F17: 1250 | G17: 33.65 | H17: 42065.51
D18: 第五章 混凝土及钢筋混凝土工程
A19: 12 | B19: 40303001004 | D19: 混凝土垫层 | E19: m3 | F19: 1006.533 | G19: =ROUND(H19/F19,2) -> 137.10 | H19: 137992.29
A20: 13 | B20: 40601006001 | D20: 现浇混凝土池底板 | E20: m3 | F20: 6903.97 | G20: 87.04 | H20: 600907.74
A21: 14 | B21: 40601006002 | D21: 板底加强带 | E21: m3 | F21: 845.4 | G21: 88.20 | H21: 74560.90
A22: 15 | B22: 40601007001 | D22: 现浇混凝土池壁 | E22: m3 | F22: 2985.73 | G22: 94.40 | H22: 281837.99
A23: 16 | B23: 40601007002 | D23: 现浇混凝土池壁 | E23: m3 | F23: 3574.04 | G23: 105.12 | H23: 375692.35
A24: 17 | B24: 40601007003 | D24: 壁板加强带 | E24: m3 | F24: 378.61 | G24: 115.66 | H24: 43791.54
A25: 18 | B25: 10505001001 | D25: 现浇板（走道板、平台板） | E25: m3 | F25: 1025.74 | G25: 128.72 | H25: 132032.23
A26: 19 | B26: 10508001001 | D26: 梁板加强带 | E26: m3 | F26: 114.27 | G26: 89.92 | H26: 10275.15
A27: 20 | B27: 40601015002 | D27: 混凝土楼梯 | E27: m3 | F27: 7.75 | G27: 116.72 | H27: 904.56
A28: 23 | B28: 40901001007 | D28: 现浇构件钢筋 | E28: t | F28: 0.434 | G28: =ROUND(H28/F28,2) -> 1121.47 | H28: 486.72
A29: 24 | B29: 40901001008 | D29: 现浇构件钢筋 | E29: t | F29: 12.031 | G29: 1121.48 | H29: 13492.53
A30: 25 | B30: 40901001012 | D30: 现浇构件钢筋 | E30: t | F30: 22.608 | G30: 938.41 | H30: 21215.57
A31: 26 | B31: 40901001013 | D31: 现浇构件钢筋 | E31: t | F31: 37.527 | G31: 687.68 | H31: 25806.57
A32: 27 | B32: 40901001009 | D32: 现浇构件钢筋 | E32: t | F32: 783.016 | G32: 687.68 | H32: 538464.44
A33: 28 | B33: 40901001010 | D33: 现浇构件钢筋 | E33: t | F33: 1793.765 | G33: 687.68 | H33: 1233536.32
A34: 29 | B34: 10516003003 | D34: 机械连接 | E34: 个 | F34: 19556 | G34: 3.70 | H34: 72278.98
A35: 30 | B35: 10516003004 | D35: 机械连接 | E35: 个 | F35: 9304 | G35: 4.56 | H35: 42398.33
A36: 31 | B36: 10516003005 | D36: 机械连接 | E36: 个 | F36: 1034 | G36: 5.04 | H36: 5207.22
A37: 32 | B37: 10516003006 | D37: 机械连接 | E37: 个 | F37: 30640 | G37: 5.90 | H37: 180745.36
A38: 33 | B38: 10516003007 | D38: 机械连接 | E38: 个 | F38: 29860 | G38: 6.85 | H38: 204660.44
A39: 34 | B39: 40901009001 | D39: 预埋钢板 | E39: t | F39: 0.23 | G39: 1938.35 | H39: 445.82
D40: 第九章 屋面及防水工程
A41: 35 | B41: 40601029001 | D41: 变形缝 | E41: m | F41: 342.6 | G41: =ROUND(H41/F41,2) -> 10.86 | H41: 3719.85
A42: 36 | B42: 40402017001 | D42: 变形缝 | E42: m2 | F42: 2253.27 | G42: =ROUND(H42/F42,2) -> 13.24 | H42: 29833.29
A43: 37 | B43: 40601028001 | D43: 柔性防水（池防1） | E43: m2 | F43: 9000.5 | G43: 4.79 | H43: 43068.29
A44: 38 | B44: 40601028002 | D44: 侧壁防水 | E44: m2 | F44: 31952.082 | G44: 5.44 | H44: 173844.99
A45: 39 | B45: 40601030001 | D45: 井、池渗漏试验 | E45: m3 | F45: 65703.584 | G45: 1.07 | H45: 70298.02
A46: 40 | B46: 40404004001 | D46: 钢板止水带 | E46: m | F46: 3884.8 | G46: 21.22 | H46: 82435.46
D47: 第十一章 楼地面装饰工程
A48: 41 | B48: 11102003002 | D48: 防滑地面砖面层（楼1b） | E48: m2 | F48: 6149.63 | G48: =ROUND(H48/F48,2) -> 43.15 | H48: 265332.49
D49: 第十二章 墙、柱面装饰与隔断、幕墙工程
A50: 43 | B50: 11201001001 | D50: 真石漆墙面 (外墙2构筑物外墙) | E50: m2 | F50: 1960.603 | G50: =ROUND(H50/F50,2) -> 43.63 | H50: 85536.86
D51: 措施项目
A52: 44 | B52: 41101001001 | D52: 墙面脚手架 池体 | E52: m2 | F52: 5515.594 | G52: =ROUND(H52/F52,2) -> 13.55 | H52: 74724.79
A53: 45 | B53: 粤011701010001 | D53: 满堂脚手架 | E53: m2 | F53: 3413.86 | G53: 13.03 | H53: 44483.45
A54: 46 | B54: 粤011701011001 | D54: 里脚手架 | E54: m2 | F54: 10798 | G54: 4.95 | H54: 53396.11
A55: 52 | B55: 41102001002 | D55: 垫层模板 | E55: m2 | F55: 72.436 | G55: 12.65 | H55: 916.09
A56: 53 | B56: 41102034002 | D56: 池底模板 | E56: m2 | F56: 906.148 | G56: 33.58 | H56: 30425.89
A57: 54 | B57: 41102035002 | D57: 池壁(隔墙)模板 | E57: m2 | F57: 32778.426 | G57: 30.15 | H57: 988118.01
A58: 55 | B58: 41102035003 | D58: 池壁(隔墙)模板 | E58: m2 | F58: 1914.87 | G58: 46.08 | H58: 88231.66
A59: 56 | B59: 11702014001 | D59: 有梁板 | E59: m2 | F59: 6693.621 | G59: 38.29 | H59: 256284.69
A60: 57 | B60: 41102020001 | D60: 楼梯模板 | E60: m2 | F60: 31.88 | G60: 89.10 | H60: 2840.51
A61: 60 | B61: 41106001001 | D61: 大型机械设备安拆费 | E61: 项 | F61: 1 | G61: 14740.00 | H61: 14740.00
A62: 合计 | H62: =SUM(H6:H61) -> 7095620.06

Sheet 8【砂介质高效沉淀池】
A1: 劳务采购工程量清单
A2: 工程名称: | C2: 砂介质高效沉淀池
A3: 序号 | B3: 项目编码 | D3: 项目名称 | E3: 单位 | F3: 工程量 | G3: 人工费
G4: 单价（元） | H4: 合价（元）
D5: 第一章 土石方工程
A6: 1 | B6: 40101001001 | D6: 挖一般土方 | E6: m3 | F6: 1985.6 | G6: =ROUND(H6/F6,2) -> 3.05 | H6: 6062.00
A7: 2 | B7: 40103001003 | D7: 回填方 | E7: m3 | F7: 892.29 | G7: 12.30 | H7: 10971.54
A8: 3 | B8: 40103002001 | D8: 场内回填利用土方 | E8: m3 | F8: 959.467 | G8: 3.49 | H8: 3347.03
D9: 第二章 地基处理与边坡支护工程
A10: 4 | B10: 40101001003 | D10: 挖一般土方（利用） | E10: m3 | F10: 954.4 | G10: 4.52 | H10: 4310.15
A11: 5 | B11: 40103001004 | D11: 换填7:3砂石 | E11: m3 | F11: 954.4 | G11: 3.19 | H11: 3045.48
D12: 第五章 混凝土及钢筋混凝土工程
A13: 6 | B13: 40303001004 | D13: 混凝土垫层 | E13: m3 | F13: 109.68 | G13: =ROUND(H13/F13,2) -> 137.10 | H13: 15036.80
A14: 7 | B14: 40303002002 | D14: C20设备基础 | E14: m3 | F14: 0.67 | G14: 106.81 | H14: 71.56
A15: 8 | B15: 40103001005 | D15: 回填C20素砼 | E15: m3 | F15: 166.24 | G15: 106.81 | H15: 17756.25
A16: 9 | B16: 40601006012 | D16: 现浇混凝土池底板 50cm以外 | E16: m3 | F16: 519.64 | G16: 87.04 | H16: 45228.43
A17: 10 | B17: 40601006014 | D17: 渠道底板 | E17: m3 | F17: 84.51 | G17: 90.05 | H17: 7610.04
A18: 11 | B18: 40601007009 | D18: 现浇混凝土池壁（直行）-30cm以外 | E18: m3 | F18: 537.41 | G18: 94.39 | H18: 50728.81
A19: 12 | B19: 40601007008 | D19: 现浇混凝土池壁（直行）-30cm以内 | E19: m3 | F19: 242.16 | G19: 105.12 | H19: 25455.14
A20: 13 | B20: 40601011001 | D20: 现浇钢筋混凝土池 走道板 | E20: m3 | F20: 6.99 | G20: 128.72 | H20: 899.74
A21: 14 | B21: 40601010002 | D21: 现浇混凝土池盖板 | E21: m3 | F21: 7.64 | G21: 109.19 | H21: 834.20
A22: 15 | B22: 40601010001 | D22: 现浇混凝土池盖板 | E22: m3 | F22: 19.77 | G22: 101.75 | H22: 2011.57
A23: 16 | B23: 40601006013 | D23: 池底板加强带 | E23: m3 | F23: 37.96 | G23: 88.20 | H23: 3347.92
A24: 17 | B24: 10502001001 | D24: 矩形柱 | E24: m3 | F24: 15.81 | G24: 122.15 | H24: 1931.16
A25: 18 | B25: 40406004001 | D25: 女儿墙 | E25: m3 | F25: 8.64 | G25: 176.02 | H25: 1520.83
A26: 19 | B26: 10505001004 | D26: 有梁板 | E26: m3 | F26: 73.34 | G26: 50.65 | H26: 3714.73
A27: 20 | B27: 40601015002 | D27: 混凝土楼梯 | E27: m3 | F27: 2.12 | G27: 116.71 | H27: 247.43
A28: 23 | B28: 40601030001 | D28: 井、池渗漏试验 | E28: m3 | F28: 3631.97 | G28: =ROUND(H28/F28,2) -> 1.07 | H28: 3885.95
A29: 24 | B29: 11702029001 | D29: 散水 | E29: m2 | F29: 103.65 | G29: 3.47 | H29: 359.74
A30: 25 | B30: 40901001020 | D30: 现浇构件钢筋 | E30: t | F30: 14.765 | G30: 687.68 | H30: 10153.60
A31: 26 | B31: 40901001021 | D31: 现浇构件钢筋 | E31: t | F31: 47.848 | G31: 687.68 | H31: 32904.11
A32: 27 | B32: 40901001022 | D32: 现浇构件钢筋 | E32: t | F32: 170.885 | G32: 687.68 | H32: 117514.20
A33: 28 | B33: 40901001026 | D33: 现浇构件钢筋 | E33: t | F33: 8.006 | G33: 1121.48 | H33: 8978.57
A34: 29 | B34: 40901001024 | D34: 现浇构件钢筋 | E34: t | F34: 3.078 | G34: 1121.48 | H34: 3451.92
A35: 30 | B35: 40901001025 | D35: 现浇构件钢筋 | E35: t | F35: 0.399 | G35: 938.42 | H35: 374.43
A36: 31 | B36: 10516003009 | D36: 机械连接 | E36: 个 | F36: 580 | G36: 3.70 | H36: 2143.68
A37: 32 | B37: 10516003010 | D37: 机械连接 | E37: 个 | F37: 1678 | G37: 4.56 | H37: 7646.65
A38: 33 | B38: 10516003011 | D38: 机械连接 | E38: 个 | F38: 164 | G38: 5.90 | H38: 967.44
A39: 34 | B39: 40901009004 | D39: 预埋不锈钢板 | E39: t | F39: 0.011 | G39: 1938.18 | H39: 21.32
D40: 第九章 屋面及防水工程
A41: 35 | B41: 10902001002 | D41: 屋面4-(不上人屋面) | E41: m2 | F41: 661.5 | G41: 37.33 | H41: 24690.59
A42: 36 | B42: 40601028008 | D42: 地防1（地面） | E42: m2 | F42: 619.24 | G42: 4.78 | H42: 2962.93
A43: 37 | B43: 40601028009 | D43: 地防1（内墙） | E43: m2 | F43: 2529.56 | G43: 5.44 | H43: 13763.05
A44: 38 | B44: 40601028010 | D44: 地防1（外墙） | E44: m2 | F44: 749.17 | G44: 5.44 | H44: 4076.25
A45: 39 | B45: 40404004002 | D45: 钢板止水带 | E45: m | F45: 466.5 | G45: 21.22 | H45: 9899.13
D46: 第十一章 楼地面装饰工程
A47: 40 | B47: 11102003004 | D47: 楼地1b（防滑地砖面层） | E47: m2 | F47: 264.74 | G47: 35.85 | H47: 9490.21
D48: 第十二章 墙、柱面装饰与隔断、幕墙工程
A49: 41 | B49: 11201001005 | D49: 真石漆外墙（外墙1） | E49: m2 | F49: 72.72 | G49: 66.10 | H49: 4806.95
A50: 42 | B50: 11201001006 | D50: 真石漆外墙（外墙1）-独立柱 | E50: m2 | F50: 110.25 | G50: 67.92 | H50: 7488.07
A51: 43 | B51: 11201001004 | D51: 真石漆外墙（外墙2） | E51: m2 | F51: 112.7 | G51: 43.63 | H51: 4916.86
D52: 第十三章 天棚工程
A53: 44 | B53: 11301001002 | D53: 石粉类涂料顶棚 (棚2) | E53: m2 | F53: 1185.27 | G53: 29.42 | H53: 34867.13
D54: 第十五章 其他装饰工程
A55: 46 | B55: 10604002001 | D55: 钢吊车梁 | E55: t | F55: 1.465 | G55: =ROUND(H55/F55,2) -> 527.30 | H55: 772.50
D56: 措施项目
A57: 47 | B57: 41101001002 | D57: 综合脚手架 | E57: m2 | F57: 1463.5 | G57: =ROUND(H57/F57,2) -> 13.55 | H57: 19827.36
A58: 48 | B58: 粤011701010002 | D58: 满堂脚手架 | E58: m2 | F58: 521.54 | G58: 13.03 | H58: 6795.21
A59: 49 | B59: 粤011701011002 | D59: 里脚手架 | E59: m2 | F59: 260.77 | G59: 14.61 | H59: 3809.44
A60: 50 | B60: 粤011701010003 | D60: 满堂脚手架 | E60: m2 | F60: 476.29 | G60: 7.43 | H60: 3539.51
A61: 56 | B61: 41102001003 | D61: 垫层模板 | E61: m2 | F61: 37.14 | G61: 12.64 | H61: 469.45
A62: 57 | B62: 41102002001 | D62: 泵基础 | E62: m2 | F62: 3.86 | G62: 30.38 | H62: 117.26
A63: 58 | B63: 41102034003 | D63: 池底模板 | E63: m2 | F63: 130.58 | G63: 33.58 | H63: 4385.38
A64: 59 | B64: 41102035003 | D64: 池壁(直行)模板 | E64: m2 | F64: 361.5 | G64: 28.00 | H64: 10123.10
A65: 60 | B65: 41102035004 | D65: 池壁(隔墙)模板 | E65: m2 | F65: 3057.14 | G65: 37.33 | H65: 114136.88
A66: 61 | B66: 11702002002 | D66: 矩形柱 | E66: m2 | F66: 7.93 | G66: 46.44 | H66: 368.30
A67: 62 | B67: 11702002003 | D67: 矩形柱 | E67: m2 | F67: 67.39 | G67: 36.87 | H67: 2484.93
A68: 63 | B68: 11702002004 | D68: 矩形柱 | E68: m2 | F68: 34.12 | G68: 39.42 | H68: 1344.86
A69: 64 | B69: 11702014004 | D69: 有梁板 | E69: m2 | F69: 458.83 | G69: 47.12 | H69: 21622.01
A70: 65 | B70: 11702006004 | D70: 矩形梁 | E70: m2 | F70: 188.13 | G70: 45.27 | H70: 8515.92
A71: 66 | B71: 11702006005 | D71: 矩形梁 | E71: m2 | F71: 682.13 | G71: 53.54 | H71: 36524.39
A72: 67 | B72: 11702007002 | D72: 女儿墙 | E72: m2 | F72: 144 | G72: 25.05 | H72: 3607.36
A73: 68 | B73: 11702024002 | D73: 楼梯 | E73: m2 | F73: 11.05 | G73: 89.10 | H73: 984.57
A74: 合计 | H74: =SUM(H6:H73) -> 748922.02

Sheet 9【生物除臭设施】
A1: 劳务采购工程量清单
A2: 工程名称: | C2: 生物除臭设施
A3: 序号 | B3: 项目编码 | D3: 项目名称 | E3: 单位 | F3: 工程量 | G3: 人工费
G4: 单价（元） | H4: 合价（元）
D5: 第一章 土石方工程
A6: 1 | B6: 40101001002 | D6: 挖一般土方 | E6: m3 | F6: 266.74 | G6: =ROUND(H6/F6,2) -> 3.05 | H6: 812.93
A7: 2 | B7: 40103001002 | D7: 回填方 | E7: m3 | F7: 13.27 | G7: 12.32 | H7: 163.53
A8: 3 | B8: 40103002001 | D8: 场内利用 | E8: m3 | F8: 251.48 | G8: 3.49 | H8: 877.12
D9: 第三章 桩基工程
A10: 4 | B10: 40301002006 | D10: φ500预制钢筋混凝土管桩 | E10: m | F10: 603.2 | G10: =ROUND(H10/F10,2) -> 15.94 | H10: 9615.25
A11: 5 | B11: 40901001009 | D11: 预制钢筋混凝土管桩插筋 | E11: t | F11: 1.753 | G11: 416.79 | H11: 730.63
A12: 6 | B12: 40901009009 | D12: 桩基础预埋钢板（回填混凝土的底板） | E12: t | F12: 0.071 | G12: 1938.31 | H12: 137.62
A13: 7 | B13: 40301011005 | D13: 截桩头 | E13: 根 | F13: 32 | G13: 33.65 | H13: 1076.87
D14: 第五章 混凝土及钢筋混凝土工程
A15: 8 | B15: 40303001005 | D15: 混凝土垫层 | E15: m3 | F15: 56.355 | G15: =ROUND(H15/F15,2) -> 137.11 | H15: 7726.69
A16: 9 | B16: 10501004003 | D16: 筏板基础 | E16: m3 | F16: 112 | G16: 106.81 | H16: 11962.83
A17: 10 | B17: 40901001007 | D17: 现浇构件钢筋 | E17: t | F17: 37.754 | G17: 687.68 | H17: 25962.67
D18: 措施项目
A19: 16 | B19: 41102001002 | D19: 垫层模板 | E19: m2 | F19: 10.875 | G19: =ROUND(H19/F19,2) -> 12.68 | H19: 137.88
A20: 17 | B20: 11702001001 | D20: 基础模板 | E20: m2 | F20: 21.6 | G20: =ROUND(H20/F20,2) -> 23.27 | H20: 502.59
A21: 合计 | H21: =SUM(H6:H20) -> 59706.61

Sheet 10【储泥池】
A1: 劳务采购工程量清单
A2: 工程名称: | C2: 储泥池
A3: 序号 | B3: 项目编码 | D3: 项目名称 | E3: 单位 | F3: 工程量 | G3: 人工费
G4: 单价（元） | H4: 合价（元）
D5: 第一章 土石方工程
A6: 1 | B6: 40101001001 | D6: 挖一般土方 | E6: m3 | F6: 14.27 | G6: =ROUND(H6/F6,2) -> 3.04 | H6: 43.41
A7: 2 | B7: 40103001002 | D7: 回填方 | E7: m3 | F7: 2.37 | G7: 12.45 | H7: 29.51
A8: 3 | B8: 40103002002 | D8: 场内回填利用土方 | E8: m3 | F8: 11.545 | G8: 3.51 | H8: 40.47
D9: 第三章 桩基工程
A10: 4 | B10: 40301002003 | D10: φ500预制钢筋混凝土管桩 | E10: m | F10: 204.6 | G10: 16.02 | H10: 3278.47
A11: 5 | B11: 40901001012 | D11: 预制钢筋混凝土管桩插筋 | E11: t | F11: 0.48 | G11: 416.79 | H11: 200.06
A12: 6 | B12: 40901009001 | D12: 桩基础预埋钢板（回填混凝土的底板） | E12: t | F12: 0.029 | G12: 1938.28 | H12: 56.21
A13: 7 | B13: 40301011003 | D13: 截桩头 | E13: 根 | F13: 12 | G13: 33.66 | H13: 403.86
D14: 第五章 混凝土及钢筋混凝土工程
A15: 8 | B15: 40303001005 | D15: 混凝土垫层 | E15: m3 | F15: 6.05 | G15: =ROUND(H15/F15,2) -> 137.10 | H15: 829.44
A16: 9 | B16: 40303002002 | D16: C20设备基础 | E16: m3 | F16: 6.475 | G16: 106.87 | H16: 691.98
A17: 10 | B17: 40601006005 | D17: 现浇混凝土池底板 | E17: m3 | F17: 23.826 | G17: 90.06 | H17: 2145.87
A18: 11 | B18: 40601007006 | D18: 现浇混凝土池壁（直行） | E18: m3 | F18: 40.71 | G18: 105.12 | H18: 4279.31
A19: 12 | B19: 40601010003 | D19: 现浇混凝土池盖板 | E19: m3 | F19: 3.75 | G19: 109.19 | H19: 409.47
A20: 13 | B20: 40601021001 | D20: 混凝土池壁牛腿 | E20: m3 | F20: 0.09 | G20: 151.56 | H20: 13.64
A21: 14 | B21: 40601015003 | D21: 混凝土楼梯 | E21: m3 | F21: 1.842 | G21: 116.59 | H21: 214.75
A22: 15 | B22: 11702029002 | D22: 散水 | E22: m2 | F22: 33.9 | G22: 3.46 | H22: 117.41
A23: 16 | B23: 40901001013 | D23: 现浇构件钢筋 | E23: t | F23: 1.474 | G23: 687.68 | H23: 1013.64
A24: 17 | B24: 40901001014 | D24: 现浇构件钢筋 | E24: t | F24: 2.788 | G24: 687.68 | H24: 1917.25
A25: 18 | B25: 40901001015 | D25: 现浇构件钢筋 | E25: t | F25: 2.738 | G25: 687.68 | H25: 1882.87
A26: 19 | B26: 40901001016 | D26: 现浇构件钢筋 | E26: t | F26: 0.034 | G26: 1121.47 | H26: 38.13
A27: 20 | B27: 40901001017 | D27: 现浇构件钢筋 | E27: t | F27: 0.035 | G27: 1121.43 | H27: 39.25
A28: 21 | B28: 40601030001 | D28: 井、池渗漏试验 | E28: m3 | F28: 153.9 | G28: 5.89 | H28: 907.04
D29: 第九章 屋面及防水工程
A30: 22 | B30: 40404004002 | D30: 钢板止水带 | E30: m | F30: 57.4 | G30: =ROUND(H30/F30,2) -> 21.22 | H30: 1218.03
D31: 第十一章 楼地面装饰工程
A32: 23 | B32: 11102003003 | D32: 楼地1b（防滑地砖面层） | E32: m2 | F32: 31.54 | G32: 35.81 | H32: 1129.36
A33: 24 | B33: 40601028007 | D33: 地防1（地面） | E33: m2 | F33: 49.83 | G33: 4.78 | H33: 238.30
D34: 第十二章 墙、柱面装饰与隔断、幕墙工程
A35: 25 | B35: 11201001003 | D35: 真石漆外墙（外墙2） | E35: m2 | F35: 123.539 | G35: =ROUND(H35/F35,2) -> 43.61 | H35: 5388.05
A36: 26 | B36: 40601028008 | D36: 地防1（内墙） | E36: m2 | F36: 148.56 | G36: 5.44 | H36: 808.50
D37: 措施项目
A38: 28 | B38: 41101001002 | D38: 综合脚手架 | E38: m2 | F38: 139.95 | G38: 7.39 | H38: 1034.01
A39: 29 | B39: 粤011701010002 | D39: 满堂脚手架 | E39: m2 | F39: 40.7 | G39: 7.43 | H39: 302.46
A40: 30 | B40: 粤011701011001 | D40: 里脚手架 | E40: m2 | F40: 20.35 | G40: 7.34 | H40: 149.37
A41: 36 | B41: 41102001002 | D41: 垫层模板 | E41: m2 | F41: 3.31 | G41: 12.62 | H41: 41.77
A42: 37 | B42: 41102002001 | D42: 基础 | E42: m2 | F42: 5.1 | G42: 30.09 | H42: 153.46
A43: 38 | B43: 41102034002 | D43: 池底模板 | E43: m2 | F43: 12.92 | G43: 33.53 | H43: 433.18
A44: 39 | B44: 41102035002 | D44: 池壁(直行)模板 | E44: m2 | F44: 268.74 | G44: 28.00 | H44: 7524.47
A45: 40 | B45: 41102036002 | D45: 池盖模板 | E45: m2 | F45: 31.12 | G45: 36.31 | H45: 1129.85
A46: 41 | B46: 11702024002 | D46: 楼梯 | E46: m2 | F46: 7.45 | G46: 89.10 | H46: 663.81
A47: 合计 | H47: =SUM(H6:H46) -> 38766.66

Sheet 11【配水井及污泥泵房】
A1: 劳务采购工程量清单
A2: 工程名称: | C2: 配水井及污泥泵房
A3: 序号 | B3: 项目编码 | D3: 项目名称 | E3: 单位 | F3: 工程量 | G3: 人工费
G4: 单价（元） | H4: 合价（元）
D5: 第一章 土石方工程
A6: 1 | B6: 40101001001 | D6: 挖一般土方 | E6: m3 | F6: 68.59 | G6: =ROUND(H6/F6,2) -> 3.04 | H6: 208.39
A7: 2 | B7: 40103001001 | D7: 回填方 | E7: m3 | F7: 5.3 | G7: 12.30 | H7: 65.17
A8: 3 | B8: 40103002001 | D8: 场内回填利用土方 | E8: m3 | F8: 62.495 | G8: 3.49 | H8: 217.81
D9: 第三章 桩基工程
A10: 4 | B10: 40301002003 | D10: φ500预制钢筋混凝土管桩 | E10: m | F10: 454.73 | G10: =ROUND(H10/F10,2) -> 16.35 | H10: 7434.77
A11: 5 | B11: 40901001009 | D11: 预制钢筋混凝土管桩插筋 | E11: t | F11: 2.22 | G11: 416.79 | H11: 925.27
A12: 6 | B12: 40901009002 | D12: 桩基础预埋钢板（回填混凝土的底板） | E12: t | F12: 0.089 | G12: 1938.31 | H12: 172.51
A13: 7 | B13: 40301011003 | D13: 截桩头 | E13: 根 | F13: 37 | G13: 33.65 | H13: 1245.20
D14: 第五章 混凝土及钢筋混凝土工程
A15: 8 | B15: 40303001003 | D15: 混凝土垫层 | E15: m3 | F15: 39.43 | G15: =ROUND(H15/F15,2) -> 137.10 | H15: 5405.73
A16: 9 | B16: 40303002002 | D16: C20设备基础 | E16: m3 | F16: 4.89 | G16: 106.81 | H16: 522.30
A17: 10 | B17: 40601006006 | D17: 现浇混凝土池底板 | E17: m3 | F17: 113.49 | G17: 102.23 | H17: 11601.63
A18: 11 | B18: 40601006005 | D18: 现浇混凝土池底板 | E18: m3 | F18: 15.72 | G18: 90.05 | H18: 1415.57
A19: 12 | B19: 40601007003 | D19: 现浇混凝土池壁（弧形）-30cm以外 | E19: m3 | F19: 155.67 | G19: 96.29 | H19: 14989.31
A20: 13 | B20: 40601007004 | D20: 现浇混凝土池壁（直行）-30cm以内 | E20: m3 | F20: 21.75 | G20: 105.12 | H20: 2286.30
A21: 14 | B21: 40601010003 | D21: 现浇混凝土池盖板 | E21: m3 | F21: 21.28 | G21: 109.19 | H21: 2323.54
A22: 15 | B22: 40601010004 | D22: 现浇混凝土池盖板 | E22: m3 | F22: 3.98 | G22: 101.75 | H22: 404.96
A23: 16 | B23: 10502001001 | D23: 矩形柱 | E23: m3 | F23: 8.35 | G23: 122.15 | H23: 1019.95
A24: 17 | B24: 40406004002 | D24: 女儿墙 | E24: m3 | F24: 3.61 | G24: 176.02 | H24: 635.44
A25: 18 | B25: 10505001003 | D25: 有梁板 | E25: m3 | F25: 38.41 | G25: 50.65 | H25: 1945.51
A26: 19 | B26: 10505008002 | D26: 屋面檐口 | E26: m3 | F26: 5.12 | G26: 172.70 | H26: 884.21
A27: 20 | B27: 40601015001 | D27: 混凝土楼梯 | E27: m3 | F27: 0.89 | G27: 116.73 | H27: 103.89
A28: 23 | B28: 40601030002 | D28: 井、池渗漏试验 | E28: m3 | F28: 1107.715 | G28: 1.07 | H28: 1185.47
A29: 24 | B29: 11702029002 | D29: 散水 | E29: m2 | F29: 54.03 | G29: 3.47 | H29: 187.39
A30: 25 | B30: 40901001010 | D30: 现浇构件钢筋 | E30: t | F30: 5.723 | G30: 687.68 | H30: 3935.59
A31: 26 | B31: 40901001011 | D31: 现浇构件钢筋 | E31: t | F31: 31.427 | G31: 687.68 | H31: 21611.72
A32: 27 | B32: 40901001012 | D32: 现浇构件钢筋 | E32: t | F32: 6.016 | G32: 687.68 | H32: 4137.08
A33: 28 | B33: 40901001013 | D33: 现浇构件钢筋 | E33: t | F33: 3.368 | G33: 1121.48 | H33: 3777.14
A34: 29 | B34: 40901001014 | D34: 现浇构件钢筋 | E34: t | F34: 0.293 | G34: 1121.47 | H34: 328.59
A35: 30 | B35: 10516003004 | D35: 机械连接 | E35: 个 | F35: 498 | G35: 3.70 | H35: 1840.61
A36: 31 | B36: 10516003005 | D36: 机械连接 | E36: 个 | F36: 144 | G36: 4.56 | H36: 656.21
A37: 32 | B37: 40404004002 | D37: 钢板止水带 | E37: m | F37: 148.836 | G37: 21.22 | H37: 3158.30
D38: 第九章 屋面及防水工程
A39: 33 | B39: 10902001001 | D39: 屋面4-(不上人屋面) | E39: m2 | F39: 242.41 | G39: =ROUND(H39/F39,2) -> 37.31 | H39: 9045.07
D40: 第十一章 楼地面装饰工程
A41: 34 | B41: 11102003003 | D41: 楼地1b（防滑地砖面层） | E41: m2 | F41: 186.26 | G41: 35.86 | H41: 6679.36
A42: 35 | B42: 40601028006 | D42: 地防1（地面） | E42: m2 | F42: 212.68 | G42: 4.79 | H42: 1017.79
D43: 第十二章 墙、柱面装饰与隔断、幕墙工程
A44: 36 | B44: 40601028007 | D44: 地防1（内墙） | E44: m2 | F44: 547.79 | G44: =ROUND(H44/F44,2) -> 5.44 | H44: 2980.47
A45: 37 | B45: 40601028008 | D45: 地防1（外墙） | E45: m2 | F45: 293.33 | G45: 5.44 | H45: 1595.79
A46: 38 | B46: 11201001006 | D46: 真石漆外墙（外墙1）-独立柱 | E46: m2 | F46: 81.71 | G46: 67.88 | H46: 5546.47
A47: 39 | B47: 11201001007 | D47: 真石漆外墙（外墙2） | E47: m2 | F47: 97.23 | G47: 43.61 | H47: 4240.63
D48: 第十三章 天棚工程
A49: 40 | B49: 11301001003 | D49: 石粉类涂料顶棚 (棚2) | E49: m2 | F49: 302.4 | G49: =ROUND(H49/F49,2) -> 29.42 | H49: 8895.50
D50: 措施项目
A51: 42 | B51: 41101001004 | D51: 综合脚手架 | E51: m2 | F51: 443.64 | G51: 13.55 | H51: 6009.87
A52: 43 | B52: 41101001005 | D52: 综合脚手架 | E52: m2 | F52: 91.52 | G52: 7.38 | H52: 675.82
A53: 44 | B53: 粤011701010002 | D53: 满堂脚手架 | E53: m2 | F53: 178.49 | G53: 10.23 | H53: 1826.18
A54: 45 | B54: 粤011701010003 | D54: 满堂脚手架 | E54: m2 | F54: 206.11 | G54: 7.43 | H54: 1531.60
A55: 46 | B55: 粤011701010004 | D55: 满堂脚手架 | E55: m2 | F55: 33.2 | G55: 7.43 | H55: 246.72
A56: 47 | B56: 粤011701011002 | D56: 里脚手架 | E56: m2 | F56: 89.25 | G56: 9.76 | H56: 870.75
A57: 53 | B57: 41102001002 | D57: 垫层模板 | E57: m2 | F57: 12.51 | G57: 12.64 | H57: 158.16
A58: 54 | B58: 41102002001 | D58: 设备基础 | E58: m2 | F58: 6.12 | G58: 29.99 | H58: 183.56
A59: 55 | B59: 41102034002 | D59: 池底模板 | E59: m2 | F59: 39.42 | G59: 33.56 | H59: 1323.04
A60: 56 | B60: 41102035002 | D60: 池壁(直行)模板 | E60: m2 | F60: 169.91 | G60: 28.00 | H60: 4757.74
A61: 57 | B61: 41102035003 | D61: 池壁(隔墙)模板 | E61: m2 | F61: 777.45 | G61: 44.25 | H61: 34398.55
A62: 58 | B62: 11702002001 | D62: 矩形柱 | E62: m2 | F62: 77.24 | G62: 34.03 | H62: 2628.80
A63: 59 | B63: 11702014002 | D63: 有梁板 | E63: m2 | F63: 176.48 | G63: 41.71 | H63: 7361.24
A64: 60 | B64: 11702006001 | D64: 矩形梁 | E64: m2 | F64: 125.66 | G64: 45.29 | H64: 5690.80
A65: 61 | B65: 11702020001 | D65: 悬挑板 | E65: m2 | F65: 42.584 | G65: 35.83 | H65: 1525.68
A66: 62 | B66: 11702024001 | D66: 楼梯 | E66: m2 | F66: 4.63 | G66: 89.10 | H66: 412.55
A67: 合计 | H67: =SUM(H6:H66) -> 204227.70

Sheet 12【二沉池】
A1: 劳务采购工程量清单
A2: 工程名称: | C2: 二沉池
A3: 序号 | B3: 项目编码 | D3: 项目名称 | E3: 单位 | F3: 工程量 | G3: 人工费
G4: 单价（元） | H4: 合价（元）
D5: 第一章 土石方工程
A6: 1 | B6: 40101001001 | D6: 挖一般土方 | E6: m3 | F6: 5515.86 | G6: =ROUND(H6/F6,2) -> 3.05 | H6: 16838.86
A7: 2 | B7: 40101002001 | D7: 挖沟槽土方 | E7: m3 | F7: 53.87 | G7: 4.92 | H7: 265.28
A8: 3 | B8: 40103001002 | D8: 回填方 | E8: m3 | F8: 2941.44 | G8: 12.30 | H8: 36166.87
A9: 4 | B9: 40103002001 | D9: 场内回填利用土方 | E9: m3 | F9: 2187.074 | G9: 3.49 | H9: 7629.91
D10: 第三章 桩基工程
A11: 5 | B11: 40301002004 | D11: φ500预制钢筋混凝土管桩 | E11: m | F11: 7112.2 | G11: =ROUND(H11/F11,2) -> 16.92 | H11: 120348.15
A12: 6 | B12: 40301002005 | D12: φ500预制钢筋混凝土管桩-试验桩 | E12: m | F12: 74.4 | G12: 32.11 | H12: 2388.62
A13: 7 | B13: 40901001016 | D13: 预制钢筋混凝土管桩插筋 | E13: t | F13: 34.8 | G13: 416.79 | H13: 14504.29
A14: 8 | B14: 40901009005 | D14: 桩基础预埋钢板（回填混凝土的底板） | E14: t | F14: 0.007 | G14: 1938.57 | H14: 13.57
A15: 9 | B15: 40301011004 | D15: 截桩头 | E15: 根 | F15: 580 | G15: 33.65 | H15: 19518.42
D16: 第五章 混凝土及钢筋混凝土工程
A17: 10 | B17: 40303001001 | D17: 混凝土垫层 | E17: m3 | F17: 650.92 | G17: =ROUND(H17/F17,2) -> 137.10 | H17: 89239.18
A18: 11 | B18: 40601006001 | D18: 现浇混凝土池底板 | E18: m3 | F18: 2406.88 | G18: 98.77 | H18: 237717.91
A19: 12 | B19: 40601006005 | D19: 板底加强带 | E19: m3 | F19: 410 | G19: 91.22 | H19: 37401.84
A20: 13 | B20: 40601007001 | D20: 现浇混凝土池壁（弧形） | E20: m3 | F20: 852.12 | G20: 96.29 | H20: 82049.78
A21: 14 | B21: 40601007004 | D21: 现浇混凝土池壁（直行）-300厚 | E21: m3 | F21: 29 | G21: 105.12 | H21: 3048.39
A22: 15 | B22: 40601007005 | D22: 现浇混凝土池壁（直行）-200厚 | E22: m3 | F22: 15.6 | G22: 111.36 | H22: 1737.18
A23: 16 | B23: 40601007003 | D23: 池壁加强带 | E23: m3 | F23: 64.04 | G23: 115.66 | H23: 7407.11
A24: 17 | B24: 40601007002 | D24: 进出水槽 | E24: m3 | F24: 281.92 | G24: 247.35 | H24: 69731.79
A25: 18 | B25: 11702029001 | D25: 散水 | E25: m2 | F25: 513.96 | G25: 3.47 | H25: 1783.66
A26: 19 | B26: 40601030001 | D26: 井、池渗漏试验 | E26: m3 | F26: 20347.2 | G26: 1.07 | H26: 21769.66
A27: 22 | B27: 40901001013 | D27: 现浇构件钢筋 | E27: t | F27: 14.792 | G27: 687.68 | H27: 10172.16
A28: 23 | B28: 40901001014 | D28: 现浇构件钢筋 | E28: t | F28: 160.812 | G28: 687.68 | H28: 110587.20
A29: 24 | B29: 40901001015 | D29: 现浇构件钢筋 | E29: t | F29: 312.04 | G29: 687.68 | H29: 214583.67
A30: 25 | B30: 40901001017 | D30: 现浇构件钢筋 | E30: t | F30: 4.04 | G30: 1121.48 | H30: 4530.78
A31: 26 | B31: 10516003001 | D31: 机械连接 | E31: 个 | F31: 4624 | G31: 3.70 | H31: 17090.30
A32: 27 | B32: 40404004001 | D32: 钢板止水带 | E32: m | F32: 845.78 | G32: 21.22 | H32: 17947.45
D33: 第十一章 楼地面装饰工程
A34: 28 | B34: 40601028009 | D34: 地防1（地面） | E34: m2 | F34: 4106.44 | G34: =ROUND(H34/F34,2) -> 4.79 | H34: 19649.53
D35: 第十二章 墙、柱面装饰与隔断、幕墙工程
A36: 29 | B36: 11201001002 | D36: 真石漆外墙（外墙2） | E36: m2 | F36: 726.84 | G36: 43.63 | H36: 31708.76
A37: 30 | B37: 40601028010 | D37: 地防1（内墙） | E37: m2 | F37: 4268.52 | G37: 5.44 | H37: 23224.05
A38: 31 | B38: 40601028011 | D38: 地防1（外墙） | E38: m2 | F38: 1685.48 | G38: 5.44 | H38: 9170.47
D39: 第十五章 其他装饰工程
A40: 32 | B40: 10507004001 | D40: 台阶 | E40: m2 | F40: 9.04 | G40: =ROUND(H40/F40,2) -> 66.72 | H40: 603.17
D41: 措施项目
A42: 34 | B42: 41101001001 | D42: 综合脚手架 | E42: m2 | F42: 2426.44 | G42: 13.55 | H42: 32872.65
A43: 35 | B43: 粤011701010001 | D43: 墙面脚手架 | E43: m2 | F43: 2430.52 | G43: 4.94 | H43: 12018.82
A44: 36 | B44: 粤011701010002 | D44: 满堂脚手架 | E44: m2 | F44: 8 | G44: 7.43 | H44: 59.45
A45: 42 | B45: 10402001001 | D45: 砖胎膜 | E45: m3 | F45: 14.76 | G45: 155.52 | H45: 2295.50
A46: 43 | B46: 41102001001 | D46: 垫层模板 | E46: m2 | F46: 114.4 | G46: 12.65 | H46: 1447.46
A47: 44 | B47: 41102002001 | D47: 混凝土管模板 | E47: m2 | F47: 251.76 | G47: 23.27 | H47: 5857.96
A48: 45 | B48: 41102034001 | D48: 池底模板 | E48: m2 | F48: 343.48 | G48: 33.58 | H48: 11534.32
A49: 46 | B49: 41102035001 | D49: 池壁(弧形)模板 | E49: m2 | F49: 4881.4 | G49: 47.91 | H49: 233868.84
A50: 47 | B50: 41102035004 | D50: 池壁(直行)模板 | E50: m2 | F50: 373.28 | G50: 28.00 | H50: 10453.50
A51: 48 | B51: 41102035003 | D51: 进出水槽模板 | E51: m2 | F51: 2295.8 | G51: 39.74 | H51: 91244.05
A52: 合计 | H52: =SUM(H6:H51) -> 1630480.56

Sheet 13【接触消毒池及计量槽】
A1: 劳务采购工程量清单
A2: 工程名称: | C2: 接触消毒池及计量槽
A3: 序号 | B3: 项目编码 | D3: 项目名称 | E3: 单位 | F3: 工程量 | G3: 人工费
G4: 单价（元） | H4: 合价（元）
D5: 土方工程
A6: 1 | B6: 40101001001 | D6: 挖一般土方 | E6: m3 | F6: 5925.4 | G6: =ROUND(H6/F6,2) -> 3.05 | H6: 18089.76
A7: 2 | B7: 40103001002 | D7: 回填方 | E7: m3 | F7: 4697.02 | G7: 12.30 | H7: 57753.37
A8: 3 | B8: 40103002001 | D8: 场内利用 | E8: m3 | F8: 25.357 | G8: 3.48 | H8: 88.30
D9: 第三章 桩基工程
A10: 4 | B10: 40301002003 | D10: φ500预制钢筋混凝土管桩 | E10: m | F10: 1118.4 | G10: =ROUND(H10/F10,2) -> 17.03 | H10: 19050.40
A11: 5 | B11: 40901001018 | D11: 预制钢筋混凝土管桩插筋 | E11: t | F11: 3.84 | G11: 416.79 | H11: 1600.47
A12: 6 | B12: 40901009002 | D12: 桩基础预埋钢板（回填混凝土的底板） | E12: t | F12: 0.208 | G12: 1938.37 | H12: 403.18
A13: 7 | B13: 40301011003 | D13: 截桩头 | E13: 根 | F13: 96 | G13: 33.65 | H13: 3230.62
D14: 第五章 混凝土及钢筋混凝土工程
A15: 8 | B15: 40303001005 | D15: 混凝土垫层 | E15: m3 | F15: 148.74 | G15: =ROUND(H15/F15,2) -> 137.10 | H15: 20391.81
A16: 9 | B16: 40303001003 | D16: 回填C20混凝土 | E16: m3 | F16: 7 | G16: 106.81 | H16: 747.68
A17: 10 | B17: 40303002001 | D17: C20设备基础 | E17: m3 | F17: 0.13 | G17: 60.31 | H17: 7.84
A18: 11 | B18: 40406003001 | D18: 混凝土柱 | E18: m3 | F18: 1.33 | G18: 122.14 | H18: 162.45
A19: 12 | B19: 40601006004 | D19: 现浇混凝土池底板 | E19: m3 | F19: 492.8 | G19: 90.05 | H19: 44376.15
A20: 13 | B20: 40601007003 | D20: 现浇混凝土池壁（隔墙） | E20: m3 | F20: 217.706 | G20: 105.12 | H20: 22885.02
A21: 14 | B21: 40601010001 | D21: 现浇混凝土池盖板 | E21: m3 | F21: 183.146 | G21: 109.19 | H21: 19997.96
A22: 15 | B22: 40601007004 | D22: 现浇混凝土池壁 | E22: m3 | F22: 154.97 | G22: 94.39 | H22: 14628.38
A23: 16 | B23: 10505001002 | D23: 有梁板 | E23: m3 | F23: 42.849 | G23: 50.65 | H23: 2170.38
A24: 17 | B24: 10505008002 | D24: 雨蓬、悬挑板、阳台板 | E24: m3 | F24: 3.17 | G24: 172.70 | H24: 547.46
A25: 18 | B25: 40406004001 | D25: 女儿墙 | E25: m3 | F25: 1.56 | G25: 176.03 | H25: 274.61
A26: 19 | B26: 40601030001 | D26: 井、池渗漏试验 | E26: m3 | F26: 3540.712 | G26: 1.07 | H26: 3788.59
A27: 22 | B27: 40901001012 | D27: 现浇构件钢筋 | E27: t | F27: 0.955 | G27: 687.68 | H27: 656.73
A28: 23 | B28: 40901001013 | D28: 现浇构件钢筋 | E28: t | F28: 48.449 | G28: 687.68 | H28: 33317.41
A29: 24 | B29: 40901001014 | D29: 现浇构件钢筋 | E29: t | F29: 88.56 | G29: 687.68 | H29: 60900.94
A30: 25 | B30: 40901001017 | D30: 现浇构件钢筋 | E30: t | F30: 2.048 | G30: 1121.48 | H30: 2296.79
A31: 26 | B31: 10516003001 | D31: 机械连接 | E31: 个 | F31: 1662 | G31: 3.70 | H31: 6142.75
D32: 第九章 屋面及防水工程
A33: 27 | B33: 10902003002 | D33: 不上人屋面(屋面4) | E33: m2 | F33: 25.37 | G33: =ROUND(H33/F33,2) -> 37.36 | H33: 947.74
A34: 28 | B34: 10902003003 | D34: 屋面3-雨棚屋面(不上人屋面)II级防水 | E34: m2 | F34: 17.43 | G34: 19.02 | H34: 331.50
D35: 第十一章 楼地面装饰工程
A36: 29 | B36: 11102003002 | D36: 防滑地面砖面层（楼1b） | E36: m2 | F36: 19.47 | G36: 35.91 | H36: 699.13
A37: 30 | B37: 40601028005 | D37: 地防1（地面） | E37: m2 | F37: 790.28 | G37: 4.79 | H37: 3781.66
A38: 31 | B38: 40601028008 | D38: 地防1（天棚） | E38: m2 | F38: 933.13 | G38: 4.78 | H38: 4464.98
D39: 第十二章 墙、柱面装饰与隔断、幕墙工程
A40: 32 | B40: 40601028006 | D40: 地防1（内墙） | E40: m2 | F40: 1158.43 | G40: =ROUND(H40/F40,2) -> 5.44 | H40: 6302.62
A41: 33 | B41: 40601028009 | D41: 防水外墙面 | E41: m2 | F41: 661.66 | G41: 5.44 | H41: 3600.18
A42: 34 | B42: 11201001004 | D42: 真石漆墙面 (外墙2构筑物外墙) | E42: m2 | F42: 63.7 | G42: 45.40 | H42: 2891.71
D43: 第十五章 其他装饰工程
A44: 36 | B44: 40404004001 | D44: 钢板止水带 | E44: m | F44: 370.8 | G44: 21.22 | H44: 7868.38
D45: 措施项目
A46: 37 | B46: 41101001001 | D46: 墙面脚手架 池体 | E46: m2 | F46: 819.45 | G46: =ROUND(H46/F46,2) -> 13.55 | H46: 11102.48
A47: 38 | B47: 粤011701010001 | D47: 满堂脚手架 | E47: m2 | F47: 25.63 | G47: 7.42 | H47: 190.24
A48: 39 | B48: 粤011701010003 | D48: 满堂脚手架 | E48: m2 | F48: 873.09 | G48: 7.43 | H48: 6488.26
A49: 40 | B49: 粤011701011001 | D49: 里脚手架 | E49: m2 | F49: 12.815 | G49: 14.12 | H49: 180.94
A50: 41 | B50: 粤011701011003 | D50: 里脚手架 | E50: m2 | F50: 436.545 | G50: 10.61 | H50: 4633.46
A51: 42 | B51: 粤011701010002 | D51: 满堂脚手架 | E51: m2 | F51: 50.375 | G51: 7.44 | H51: 374.54
A52: 43 | B52: 粤011701011002 | D52: 里脚手架 | E52: m2 | F52: 25.188 | G52: 14.14 | H52: 356.23
A53: 49 | B53: 41102001001 | D53: 垫层模板 | E53: m2 | F53: 35.23 | G53: 12.64 | H53: 445.39
A54: 50 | B54: 11702001001 | D54: 设备基础 | E54: m2 | F54: 0.56 | G54: 23.27 | H54: 13.03
A55: 51 | B55: 41102034002 | D55: 池底模板 | E55: m2 | F55: 87.38 | G55: 33.59 | H55: 2934.77
A56: 52 | B56: 11702002002 | D56: 矩形柱 | E56: m2 | F56: 17.66 | G56: 29.81 | H56: 526.37
A57: 53 | B57: 11702021001 | D57: 栏板 | E57: m2 | F57: 25.944 | G57: 25.01 | H57: 648.85
A58: 54 | B58: 41102035002 | D58: 池壁(隔墙)模板 | E58: m2 | F58: 2210.92 | G58: 31.74 | H58: 70164.71
A59: 55 | B59: 41102036001 | D59: 走道板、水渠底板模板 | E59: m2 | F59: 803.561 | G59: 36.33 | H59: 29194.20
A60: 56 | B60: 11702006001 | D60: 矩形梁 | E60: m2 | F60: 232.611 | G60: 43.98 | H60: 10230.81
A61: 合计 | H61: =SUM(H6:H60) -> 501881.23

Sheet 14【精密过滤器】
A1: 劳务采购工程量清单
A2: 工程名称: | C2: 精密过滤器
A3: 序号 | B3: 项目编码 | D3: 项目名称 | E3: 单位 | F3: 工程量 | G3: 人工费
G4: 单价（元） | H4: 合价（元）
D5: 第一章 土石方工程
A6: 1 | B6: 40101001001 | D6: 挖一般土方 | E6: m3 | F6: 1017.14 | G6: =ROUND(H6/F6,2) -> 3.05 | H6: 3106.24
A7: 2 | B7: 40103001001 | D7: 回填方 | E7: m3 | F7: 783.49 | G7: 12.30 | H7: 9633.76
A8: 3 | B8: 40103002001 | D8: 场内回填利用土方 | E8: m3 | F8: 116.127 | G8: 3.49 | H8: 405.08
D9: 第三章 桩基工程
A10: 4 | B10: 40301002003 | D10: φ500预制钢筋混凝土管桩 | E10: m | F10: 648 | G10: =ROUND(H10/F10,2) -> 16.38 | H10: 10612.79
A11: 5 | B11: 40901001013 | D11: 预制钢筋混凝土管桩插筋 | E11: t | F11: 1.44 | G11: 416.79 | H11: 600.18
A12: 6 | B12: 40901009002 | D12: 桩基础预埋钢板（回填混凝土的底板） | E12: t | F12: 0.086 | G12: 1938.37 | H12: 166.70
A13: 7 | B13: 40301011003 | D13: 截桩头 | E13: 根 | F13: 36 | G13: 33.66 | H13: 1211.61
D14: 第五章 混凝土及钢筋混凝土工程
A15: 8 | B15: 40303001003 | D15: 混凝土垫层 | E15: m3 | F15: 37.09 | G15: =ROUND(H15/F15,2) -> 137.10 | H15: 5084.93
A16: 9 | B16: 40303002002 | D16: C20设备基础 | E16: m3 | F16: 24.2 | G16: 106.81 | H16: 2584.83
A17: 10 | B17: 40601006005 | D17: 现浇混凝土池底板 | E17: m3 | F17: 80.372 | G17: 90.05 | H17: 7237.24
A18: 11 | B18: 40601007004 | D18: 现浇混凝土池壁（直行）-200 | E18: m3 | F18: 6.02 | G18: 111.36 | H18: 670.37
A19: 12 | B19: 40601007003 | D19: 现浇混凝土池壁（直行）-300 | E19: m3 | F19: 96.43 | G19: 105.12 | H19: 10136.43
A20: 13 | B20: 40601010003 | D20: 现浇混凝土池盖板 | E20: m3 | F20: 7.719 | G20: 109.20 | H20: 842.94
A21: 14 | B21: 10502001001 | D21: 矩形柱 | E21: m3 | F21: 11.61 | G21: 122.15 | H21: 1418.13
A22: 15 | B22: 40406004002 | D22: 女儿墙 | E22: m3 | F22: 5.85 | G22: 176.02 | H22: 1029.74
A23: 16 | B23: 10505001003 | D23: 有梁板 | E23: m3 | F23: 54.87 | G23: 50.65 | H23: 2779.23
A24: 17 | B24: 10505008002 | D24: 屋面檐口 | E24: m3 | F24: 8.15 | G24: 172.70 | H24: 1407.50
A25: 18 | B25: 11702029001 | D25: 散水 | E25: m2 | F25: 65.4 | G25: 3.47 | H25: 226.72
A26: 19 | B26: 40901001014 | D26: 现浇构件钢筋 | E26: t | F26: 5.4 | G26: 687.68 | H26: 3713.47
A27: 20 | B27: 40901001015 | D27: 现浇构件钢筋 | E27: t | F27: 16.673 | G27: 687.68 | H27: 11465.69
A28: 21 | B28: 40901001016 | D28: 现浇构件钢筋 | E28: t | F28: 15.524 | G28: 687.68 | H28: 10675.54
A29: 22 | B29: 40901001017 | D29: 现浇构件钢筋 | E29: t | F29: 0.166 | G29: 1121.51 | H29: 186.17
A30: 23 | B30: 40901001018 | D30: 现浇构件钢筋 | E30: t | F30: 1.747 | G30: 1121.48 | H30: 1959.23
A31: 24 | B31: 40601029001 | D31: 女儿墙伸缩缝 | E31: m | F31: 4 | G31: 17.06 | H31: 68.24
A32: 25 | B32: 40601030002 | D32: 井、池渗漏试验 | E32: m3 | F32: 712.232 | G32: 1.07 | H32: 761.78
D33: 第六章 金属结构工程
A34: 28 | B34: 10604002001 | D34: 钢吊车梁 | E34: t | F34: 1.613 | G34: =ROUND(H34/F34,2) -> 523.76 | H34: 844.82
D35: 第九章 屋面及防水工程
A36: 29 | B36: 10902001001 | D36: 屋面4-(不上人屋面) | E36: m2 | F36: 267.88 | G36: 37.33 | H36: 9998.91
D37: 第十一章 楼地面装饰工程
A38: 30 | B38: 11102003003 | D38: 楼地1b（防滑地砖面层） | E38: m2 | F38: 78.17 | G38: 35.87 | H38: 2803.68
A39: 31 | B39: 40601028005 | D39: 地防1（地面） | E39: m2 | F39: 201.17 | G39: 4.79 | H39: 962.76
D40: 第十二章 墙、柱面装饰与隔断、幕墙工程
A41: 32 | B41: 11201001007 | D41: 真石漆外墙（外墙1） | E41: m2 | F41: 55.47 | G41: =ROUND(H41/F41,2) -> 66.16 | H41: 3669.68
A42: 33 | B42: 11201001008 | D42: 真石漆外墙（外墙1）-独立柱 | E42: m2 | F42: 116.47 | G42: 67.91 | H42: 7908.98
A43: 34 | B43: 11201001009 | D43: 真石漆外墙（外墙2） | E43: m2 | F43: 18.42 | G43: 43.58 | H43: 802.75
A44: 35 | B44: 40601028006 | D44: 地防1（墙体） | E44: m2 | F44: 345.01 | G44: 5.44 | H44: 1877.08
D45: 第十三章 天棚工程
A46: 36 | B46: 11301001003 | D46: 石粉类涂料顶棚 (棚2) | E46: m2 | F46: 392.053 | G46: =ROUND(H46/F46,2) -> 29.42 | H46: 11534.12
D47: 第十五章 其他装饰工程
A48: 38 | B48: 40404004002 | D48: 钢板止水带 | E48: m | F48: 210.1 | G48: 21.22 | H48: 4458.32
D49: 措施项目
A50: 39 | B50: 41101001004 | D50: 墙面脚手架 | E50: m2 | F50: 211.83 | G50: 4.94 | H50: 1047.35
A51: 40 | B51: 41101001003 | D51: 综合脚手架 | E51: m2 | F51: 728.61 | G51: 13.55 | H51: 9871.00
A52: 41 | B52: 粤011701010002 | D52: 满堂脚手架 | E52: m2 | F52: 201.17 | G52: 7.43 | H52: 1495.18
A53: 42 | B53: 粤011701010003 | D53: 满堂脚手架 | E53: m2 | F53: 203.85 | G53: 10.23 | H53: 2086.03
A54: 43 | B54: 粤011701011002 | D54: 里脚手架 | E54: m2 | F54: 100.58 | G54: 4.90 | H54: 492.47
A55: 49 | B55: 41102001002 | D55: 垫层模板 | E55: m2 | F55: 10.71 | G55: 12.64 | H55: 135.40
A56: 50 | B56: 41102002001 | D56: 设备基础 | E56: m2 | F56: 33 | G56: 30.09 | H56: 992.87
A57: 51 | B57: 41102034002 | D57: 池底模板 | E57: m2 | F57: 22.66 | G57: 33.64 | H57: 762.19
A58: 52 | B58: 41102035002 | D58: 池壁(直行)模板 | E58: m2 | F58: 692.752 | G58: 28.00 | H58: 19400.41
A59: 53 | B59: 11702002004 | D59: 矩形柱 | E59: m2 | F59: 106.38 | G59: 36.63 | H59: 3896.46
A60: 54 | B60: 11702014002 | D60: 有梁板 | E60: m2 | F60: 195.48 | G60: 47.13 | H60: 9213.34
A61: 55 | B61: 11702006003 | D61: 矩形梁 | E61: m2 | F61: 190.47 | G61: 53.56 | H61: 10200.66
A62: 56 | B62: 11702007002 | D62: 女儿墙 | E62: m2 | F62: 33.68 | G62: 25.07 | H62: 844.22
A63: 合计 | H63: =SUM(H6:H62) -> 193283.22

Sheet 15【污泥料仓】
A1: 劳务采购工程量清单
A2: 工程名称: | C2: 污泥料仓
A3: 序号 | B3: 项目编码 | D3: 项目名称 | E3: 单位 | F3: 工程量 | G3: 人工费
G4: 单价（元） | H4: 合价（元）
D5: 第三章 桩基工程
A6: 1 | B6: 40301002003 | D6: φ500预制钢筋混凝土管桩 | E6: m | F6: 148.5 | G6: =ROUND(H6/F6,2) -> 16.05 | H6: 2383.73
A7: 2 | B7: 40901001011 | D7: 预制钢筋混凝土管桩插筋 | E7: t | F7: 0.51 | G7: 416.78 | H7: 212.56
A8: 3 | B8: 40901009004 | D8: 桩基础预埋钢板（回填混凝土的底板） | E8: t | F8: 0.02 | G8: 1938.50 | H8: 38.77
A9: 4 | B9: 10301002001 | D9: 接桩 | E9: 根 | F9: 9 | G9: 34.48 | H9: 310.32
A10: 5 | B10: 40301011001 | D10: 截桩头 | E10: 根 | F10: 9 | G10: 33.64 | H10: 302.73
D11: 第五章 混凝土及钢筋混凝土工程
A12: 6 | B12: 40303001004 | D12: 混凝土垫层 | E12: m3 | F12: 10.53 | G12: =ROUND(H12/F12,2) -> 137.10 | H12: 1443.63
A13: 7 | B13: 40406003003 | D13: 混凝土柱 | E13: m3 | F13: 1.54 | G13: 118.10 | H13: 181.87
A14: 8 | B14: 10501004003 | D14: 筏板基础 | E14: m3 | F14: 53.58 | G14: 106.81 | H14: 5722.94
A15: 9 | B15: 40901009005 | D15: 预埋铁件 | E15: t | F15: 0.383 | G15: 2652.38 | H15: 1015.86
A16: 10 | B16: 40901001012 | D16: 现浇构件钢筋 | E16: t | F16: 0.498 | G16: 687.67 | H16: 342.46
A17: 11 | B17: 40901001013 | D17: 现浇构件钢筋 | E17: t | F17: 1.247 | G17: 687.68 | H17: 857.54
A18: 12 | B18: 40901001014 | D18: 现浇构件钢筋 | E18: t | F18: 6.367 | G18: 687.68 | H18: 4378.46
A19: 13 | B19: 40901001015 | D19: 现浇构件钢筋 | E19: t | F19: 0.415 | G19: 1121.47 | H19: 465.41
D20: 措施项目
A21: 19 | B21: 41102001002 | D21: 垫层模板 | E21: m2 | F21: 4.15 | G21: =ROUND(H21/F21,2) -> 12.80 | H21: 53.10
A22: 20 | B22: 11702001001 | D22: 基础模板 | E22: m2 | F22: 46.12 | G22: 23.27 | H22: 1073.13
A23: 21 | B23: 11702002001 | D23: 矩形柱 | E23: m2 | F23: 7.68 | G23: 31.81 | H23: 244.29
A24: 合计 | H24: =SUM(H6:H23) -> 19026.80

Sheet 16【基坑支护工程】
A1: 劳务采购工程量清单
A2: 工程名称: | C2: 基坑支护工程
A3: 序号 | B3: 项目编码 | D3: 项目名称 | E3: 单位 | F3: 工程量 | G3: 人工费
G4: 单价（元） | H4: 合价（元）
D5: 基坑支护工程
A6: 1 | B6: 040302008001 | D6: 喷射C20混凝土 80mm | E6: ㎡ | F6: 4210.550 | G6: =ROUND(H6/F6,2) -> 12.66 | H6: 53288.26
A7: 2 | B7: 040302008002 | D7: 喷射C20混凝土 50mm | E7: ㎡ | F7: 489.110 | G7: 7.91 | H7: 3869.38
A8: 3 | B8: 040901003001 | D8: 钢筋网片 | E8: t | F8: 15.610 | G8: 1298.00 | H8: 20261.78
A9: 4 | B9: 040501004001 | D9: 泄水管 | E9: m | F9: 715.200 | G9: 6.38 | H9: 4564.35
A10: 5 | B10: 040302006001 | D10: 钢筋土钉φ20 | E10: m | F10: 124.000 | G10: 14.83 | H10: 1838.43
A11: 6 | B11: 040302007001 | D11: 钢花管φ48 | E11: m | F11: 6904.000 | G11: 25.57 | H11: 176507.67
A12: 7 | B12: 040901001001 | D12: 钢筋插钉φ16 | E12: t | F12: 0.560 | G12: 687.68 | H12: 385.10
A13: 合计 | H13: =SUM(H6:H12) -> 260714.97

Sheet 17【综合楼】
A1: 劳务采购工程量清单
A2: 工程名称: | C2: 综合楼
A3: 序号 | B3: 项目编码 | D3: 项目名称 | E3: 单位 | F3: 工程量 | G3: 人工费
G4: 单价（元） | H4: 合价（元）
B5: 一 | D5: 土石方工程
A6: 1 | B6: 010101004001 | D6: 挖基坑土方 | E6: m3 | F6: 296.480 | G6: =ROUND(H6/F6,2) -> 4.71 | H6: 1395.94
A7: 2 | B7: 010101003001 | D7: 挖沟槽土方 | E7: m3 | F7: 192.950 | G7: 4.57 | H7: 880.90
A8: 3 | B8: 010101002001 | D8: 挖一般土方 | E8: m3 | F8: 832.970 | G8: 2.98 | H8: 2483.68
A9: 4 | B9: 040103001001 | D9: 回填方-基础及基槽 | E9: m3 | F9: 145.600 | G9: 12.32 | H9: 1793.50
A10: 5 | B10: 040103001004 | D10: 回填方-大开挖 | E10: m3 | F10: 449.860 | G10: 9.47 | H10: 4261.09
A11: 6 | B11: 040103001002 | D11: 房心回填土 | E11: m3 | F11: 269.910 | G11: 9.47 | H11: 2556.28
B12: 二 | D12: 桩基工程
A13: 7 | B13: 010301002011 | D13: 预制钢筋混凝土管桩 | E13: m | F13: 1934.750 | G13: =ROUND(H13/F13,2) -> 16.34 | H13: 31605.40
A14: 8 | B14: 010301002014 | D14: 预制钢筋混凝土管桩（试验桩） | E14: m | F14: 53.250 | G14: 31.54 | H14: 1679.76
A15: 9 | B15: 010301002013 | D15: 预埋铁件 | E15: t | F15: 0.280 | G15: 2645.00 | H15: 740.60
A16: 10 | B16: 010301002006 | D16: 接桩 | E16: 根 | F16: 112.000 | G16: 34.48 | H16: 3861.76
A17: 11 | B17: 010301004003 | D17: 截(凿)桩头 | E17: 个 | F17: 112.000 | G17: 33.72 | H17: 3776.46
A18: 12 | B18: 010515001009 | D18: 桩头插筋 | E18: t | F18: 4.650 | G18: 359.92 | H18: 1673.63
B19: 三 | D19: 砌筑工程
A20: 13 | B20: 010401001001 | D20: 砖基础 | E20: m3 | F20: 77.320 | G20: =ROUND(H20/F20,2) -> 155.52 | H20: 12024.96
A21: 14 | B21: 010402001001 | D21: 300厚外墙 | E21: m3 | F21: 18.110 | G21: 151.76 | H21: 2748.46
A22: 15 | B22: 010402001005 | D22: 200厚外墙 | E22: m3 | F22: 198.900 | G22: 161.77 | H22: 32176.65
A23: 16 | B23: 010402001004 | D23: 100厚外墙 | E23: m3 | F23: 16.360 | G23: 161.77 | H23: 2646.61
A24: 17 | B24: 010402001002 | D24: 200厚内墙 | E24: m3 | F24: 268.570 | G24: 154.47 | H24: 41484.67
A25: 18 | B25: 010402001006 | D25: 150厚内墙 | E25: m3 | F25: 13.070 | G25: 169.40 | H25: 2214.12
A26: 19 | B26: 010402001003 | D26: 100厚内墙 | E26: m3 | F26: 14.780 | G26: 169.41 | H26: 2503.81
A27: 20 | B27: 010401012001 | D27: 砖砌台阶 | E27: m2 | F27: 4.000 | G27: 67.02 | H27: 268.08
B28: 四 | D28: 混凝土及钢筋混凝土工程
A29: 21 | B29: 010501001001 | D29: 垫层 | E29: m3 | F29: 92.730 | G29: =ROUND(H29/F29,2) -> 57.84 | H29: 5363.13
A30: 22 | B30: 010501005001 | D30: 桩承台基础 | E30: m3 | F30: 101.170 | G30: 45.69 | H30: 4622.66
A31: 23 | B31: 010503001001 | D31: 基础梁 | E31: m3 | F31: 101.120 | G31: 36.43 | H31: 3684.00
A32: 24 | B32: 010501004001 | D32: 满堂基础 | E32: m3 | F32: 140.180 | G32: 45.69 | H32: 6405.10
A33: 25 | B33: 010502001001 | D33: 矩形柱 | E33: m3 | F33: 119.070 | G33: 122.15 | H33: 14544.17
A34: 26 | B34: 010504001001 | D34: 直形墙 | E34: m3 | F34: 1.440 | G34: 71.44 | H34: 102.87
A35: 27 | B35: 010502002001 | D35: 构造柱 | E35: m3 | F35: 60.640 | G35: 188.54 | H35: 11432.82
A36: 28 | B36: 010503005001 | D36: 反坎、过梁 | E36: m3 | F36: 13.800 | G36: 115.67 | H36: 1596.27
A37: 29 | B37: 010503005002 | D37: 窗台 | E37: m3 | F37: 3.430 | G37: 115.67 | H37: 396.75
A38: 30 | B38: 010507005001 | D38: 压顶 | E38: m3 | F38: 3.740 | G38: 231.04 | H38: 864.09
A39: 31 | B39: 010505001002 | D39: 有梁板 | E39: m3 | F39: 223.510 | G39: 50.65 | H39: 11321.00
A40: 33 | B40: 010505001001 | D40: 有梁板 | E40: m3 | F40: 228.440 | G40: 50.65 | H40: 11570.70
A41: 34 | B41: 010505006001 | D41: 栏板（女儿墙、种植屋面翻边） | E41: m3 | F41: 50.690 | G41: 171.97 | H41: 8717.41
A42: 35 | B42: 010505008001 | D42: 雨蓬板 | E42: m3 | F42: 26.730 | G42: 168.65 | H42: 4508.01
A43: 36 | B43: 010506001001 | D43: 直形楼梯 | E43: m3 | F43: 15.320 | G43: 87.84 | H43: 1345.74
A44: 37 | B44: 010507001005 | D44: 台阶 | E44: m2 | F44: 6.420 | G44: 7.75 | H44: 49.74
A45: 38 | B45: 010507001003 | D45: 坡道 | E45: m2 | F45: 7.930 | G45: 7.74 | H45: 61.40
A46: 39 | B46: 010507001004 | D46: 散水 | E46: m2 | F46: 198.220 | G46: 3.47 | H46: 687.67
A47: 40 | B47: 010515001003 | D47: 现浇构件圆钢 Ф10内 | E47: t | F47: 4.304 | G47: 710.25 | H47: 3056.92
A48: 41 | B48: 010515001004 | D48: 现浇构件钢筋φ8~10 | E48: t | F48: 30.303 | G48: 688.19 | H48: 20854.22
A49: 42 | B49: 010515001005 | D49: 现浇构件钢筋φ12~16 | E49: t | F49: 41.886 | G49: 500.16 | H49: 20949.70
A50: 43 | B50: 010515001006 | D50: 现浇构件钢筋φ18～25 | E50: t | F50: 63.447 | G50: 500.16 | H50: 31733.65
A51: 44 | B51: 010515001010 | D51: 现浇构件钢筋φ28～32 | E51: t | F51: 10.397 | G51: 500.16 | H51: 5200.16
A52: 45 | B52: 010515001007 | D52: 现浇构件箍筋 | E52: t | F52: 33.805 | G52: 1246.10 | H52: 42124.41
A53: 46 | B53: 010515001008 | D53: 现浇构件箍筋φ8~10 | E53: t | F53: 5.939 | G53: 1451.69 | H53: 8621.59
A54: 47 | B54: 010515001011 | D54: 现浇构件箍筋φ12~16 | E54: t | F54: 4.459 | G54: 750.54 | H54: 3346.66
A55: 48 | B55: 010516003001 | D55: 机械连接 | E55: 个 | F55: 16.000 | G55: 3.70 | H55: 59.14
A56: 49 | B56: 010516003002 | D56: 机械连接 | E56: 个 | F56: 1200.000 | G56: 4.56 | H56: 5468.40
A57: 50 | B57: 010516003004 | D57: 机械连接 | E57: 个 | F57: 224.000 | G57: 5.90 | H57: 1321.38
A58: 51 | B58: 穗010514003001 | D58: 成品通风道 | E58: m | F58: 8.400 | G58: 61.68 | H58: 518.09
A59: 52 | B59: 穗010514003002 | D59: 成品通风道 | E59: m | F59: 8.400 | G59: 61.68 | H59: 518.09
D60: 金属结构工程
A61: 53 | B61: 010607005001 | D61: 砌块墙钢丝网加固-不同材质交接处 | E61: m2 | F61: 233.349 | G61: =ROUND(H61/F61,2) -> 8.57 | H61: 2000.59
A62: 54 | B62: 010607005002 | D62: 砌块墙钢丝网加固-不同材质交接处 | E62: m2 | F62: 861.420 | G62: 8.58 | H62: 7386.68
B63: 五 | D63: 第八章 门窗工程
A64: 56 | B64: 010802003001 | D64: 钢质甲级双扇防火门 | E64: m2 | F64: 13.570 | G64: 26.77 | H64: 363.30
A65: 57 | B65: 010802003003 | D65: 钢质丙级单扇防火门 | E65: m2 | F65: 10.800 | G65: 40.99 | H65: 442.70
A66: 58 | B66: 010801001001 | D66: 木饰面普通门 | E66: m2 | F66: 109.250 | G66: 36.17 | H66: 3951.46
A67: 59 | B67: 010802001001 | D67: 木饰面铝合金平开门（带闭门器） | E67: m2 | F67: 9.200 | G67: 43.13 | H67: 396.79
A68: 60 | B68: 010802001003 | D68: 木饰面铝合金平开门 | E68: m2 | F68: 64.550 | G68: 32.04 | H68: 2067.88
A69: 61 | B69: 010802001002 | D69: 铝合金玻璃地弹门 | E69: m2 | F69: 13.430 | G69: 79.28 | H69: 1064.79
A70: 62 | B70: 010802001004 | D70: 米白色钢质门 | E70: m2 | F70: 6.480 | G70: 32.11 | H70: 208.07
A71: 63 | B71: 010802003005 | D71: 门联窗（MLC2123、MLC72a32、MLC48a33） | E71: m2 | F71: 87.485 | G71: 62.12 | H71: 5434.43
A72: 64 | B72: 010807001001 | D72: 铝合金推拉窗 | E72: m2 | F72: 12.060 | G72: 21.77 | H72: 262.52
A73: 65 | B73: 010807001002 | D73: 铝合金固定窗 | E73: m2 | F73: 62.720 | G73: 16.39 | H73: 1028.27
A74: 66 | B74: 010807001003 | D74: 铝合金平开窗 | E74: m2 | F74: 255.070 | G74: 21.70 | H74: 5534.60
A75: 67 | B75: 010807003001 | D75: 深灰色铝合金防雨百叶 | E75: m2 | F75: 168.900 | G75: 27.19 | H75: 4591.88
A76: 68 | B76: 010807004001 | D76: 金属纱窗 | E76: m2 | F76: 7.920 | G76: 25.14 | H76: 199.11
B77: 六 | D77: 第九章 屋面及防水工程
A78: 69 | B78: 010902001003 | D78: 屋面1-屋面砖屋面(上人屋面)I级防水 | E78: m2 | F78: 52.230 | G78: =ROUND(H78/F78,2) -> 46.63 | H78: 2435.37
A79: 70 | B79: 011102001002 | D79: 屋1-花岗岩地面 | E79: m2 | F79: 52.230 | G79: 27.45 | H79: 1433.74
A80: 71 | B80: 010902001002 | D80: 屋面2-混凝土保护层屋面(不上人屋面)I级防水 | E80: m2 | F80: 1009.610 | G80: 43.00 | H80: 43410.60
A81: 72 | B81: 010902001001 | D81: 屋面5-种植屋面(上人屋面)I级防水 | E81: m2 | F81: 38.230 | G81: 59.56 | H81: 2276.97
A82: 73 | B82: 010902001004 | D82: 庭院基础梁包耐穿刺卷材 | E82: m2 | F82: 20.740 | G82: 6.53 | H82: 135.45
A83: 74 | B83: 010903003001 | D83: 墙身防潮层 | E83: m2 | F83: 118.990 | G83: 8.29 | H83: 986.24
A84: 75 | B84: 010903003002 | D84: 棚4-防水层 | E84: m2 | F84: 244.710 | G84: 4.79 | H84: 1173.07
B85: 七 | D85: 保温、隔热、防腐工程
A86: 76 | B86: 011001001001 | D86: 屋面1、2-保温层 | E86: m2 | F86: 1061.840 | G86: =ROUND(H86/F86,2) -> 12.07 | H86: 12820.81
A87: 77 | B87: 011001001002 | D87: 屋面5-保温层 | E87: m2 | F87: 38.230 | G87: 12.07 | H87: 461.25
B88: 八 | D88: 楼地面装饰工程
A89: 78 | B89: 011102003001 | D89: 地1 | E89: m2 | F89: 836.180 | G89: 37.89 | H89: 31681.19
A90: 79 | B90: 011102003002 | D90: 地4-无沉箱 | E90: m2 | F90: 88.480 | G90: 66.54 | H90: 5887.25
A91: 80 | B91: 011102003009 | D91: 地5 | E91: m2 | F91: 27.020 | G91: 66.33 | H91: 1792.37
A92: 81 | B92: 011102003004 | D92: 楼1 | E92: m2 | F92: 179.308 | G92: 32.10 | H92: 5756.16
A93: 82 | B93: 011102003007 | D93: 楼1a | E93: m2 | F93: 444.950 | G93: 35.50 | H93: 15795.99
A94: 83 | B94: 011102003010 | D94: 楼1a-踏步 | E94: m2 | F94: 46.770 | G94: 132.02 | H94: 6174.68
A95: 84 | B95: 011102003005 | D95: 楼3 | E95: m2 | F95: 131.330 | G95: 39.75 | H95: 5220.33
A96: 85 | B96: 011102003008 | D96: 楼4 | E96: m2 | F96: 56.390 | G96: 109.36 | H96: 6166.71
A97: 86 | B97: 011102003006 | D97: 楼5 | E97: m2 | F97: 91.530 | G97: 60.68 | H97: 5554.32
A98: 87 | B98: 011106002001 | D98: 防滑条 | E98: m2 | F98: 8.978 | G98: 52.68 | H98: 472.92
A99: 88 | B99: 011105003001 | D99: 踢1 | E99: m2 | F99: 115.310 | G99: 66.03 | H99: 7613.48
A100: 89 | B100: 011102001001 | D100: 台阶及坡道-花岗岩贴面 | E100: m2 | F100: 32.670 | G100: 67.30 | H100: 2198.70
B101: 九 | D101: 墙、柱面装饰与隔断、幕墙工程
A102: 90 | B102: 011201001003 | D102: 内墙1 | E102: m2 | F102: 3800.510 | G102: =ROUND(H102/F102,2) -> 11.41 | H102: 43378.53
A103: 91 | B103: 011204003001 | D103: 内墙3 | E103: m2 | F103: 609.490 | G103: 82.13 | H103: 50057.32
A104: 92 | B104: 011201001002 | D104: 真石漆墙面 (外墙1) | E104: m2 | F104: 2844.930 | G104: 44.27 | H104: 125943.44
A105: 93 | B105: 011201001007 | D105: 随砌随抹（井道及封闭空调机位） | E105: m2 | F105: 535.480 | G105: 11.68 | H105: 6255.71
B106: 十 | D106: 天棚工程
A107: 94 | B107: 011301001002 | D107: 棚3-轻钢龙骨石膏吊顶 | E107: m2 | F107: 658.660 | G107: =ROUND(H107/F107,2) -> 23.08 | H107: 15204.57
A108: 95 | B108: 011302001001 | D108: 铝合金方形板吊顶 (棚4) | E108: m2 | F108: 244.710 | G108: 23.85 | H108: 5837.27
A109: 96 | B109: 011301001003 | D109: 轻钢龙骨钢板网抹灰吊顶 (棚5) | E109: m2 | F109: 83.020 | G109: 45.58 | H109: 3784.11
B110: 十一 | D110: 油漆、涂料、裱糊工程
A111: 98 | B111: 011201001005 | D111: 内墙1-涂料 | E111: m2 | F111: 3800.510 | G111: =ROUND(H111/F111,2) -> 14.49 | H111: 55066.58
A112: 99 | B112: 011201001006 | D112: 外墙1-真石漆 | E112: m2 | F112: 2844.930 | G112: 26.25 | H112: 74676.63
A113: 100 | B113: 011301001004 | D113: 棚1-涂料 | E113: m2 | F113: 1001.280 | G113: 18.24 | H113: 18262.21
A114: 101 | B114: 011301001005 | D114: 棚3-涂料 | E114: m2 | F114: 658.400 | G114: 21.26 | H114: 13996.79
A115: 102 | B115: 011301001006 | D115: 棚5-涂料 | E115: m2 | F115: 83.020 | G115: 25.73 | H115: 2135.81
B116: 十二 | D116: 其他
A117: 103 | B117: 011503008001 | D117: 玻璃栏板C3型-外走廊 | E117: m | F117: 10.890 | G117: =ROUND(H117/F117,2) -> 82.40 | H117: 897.33
A118: 104 | B118: 011503008002 | D118: 玻璃栏板PC14型-露台 | E118: m | F118: 21.540 | G118: 82.17 | H118: 1769.96
A119: 105 | B119: 011503008003 | D119: 玻璃栏板C3型-楼梯 | E119: m | F119: 25.890 | G119: 82.36 | H119: 2132.18
A120: 107 | B120: 011503001002 | D120: 靠墙扶手 | E120: m | F120: 12.300 | G120: 9.09 | H120: 111.83
A121: 108 | B121: 011505001001 | D121: 洗手台 | E121: m2 | F121: 8.880 | G121: 140.84 | H121: 1250.67
A122: 109 | B122: 011210005001 | D122: 成品隔断 | E122: m2 | F122: 74.220 | G122: 20.89 | H122: 1550.30
A123: 110 | B123: 011207001001 | D123: 玻璃镜面 | E123: m2 | F123: 9.530 | G123: 17.90 | H123: 170.58
A124: 112 | B124: 011505004001 | D124: 无障碍卫生间安全抓杆 | E124: 个 | F124: 2.000 | G124: 3.77 | H124: 7.54
A125: 113 | B125: 011505004002 | D125: 无障碍卫生间便器抓杆 | E125: 个 | F125: 2.000 | G125: 3.77 | H125: 7.54
A126: 114 | B126: 011505008001 | D126: 无障碍卫生间多功能台 | E126: 个 | F126: 2.000 | G126: 3.01 | H126: 6.02
A127: 115 | B127: 010606008001 | D127: 钢爬梯 | E127: t | F127: 0.300 | G127: 852.33 | H127: 255.70
A128: 116 | B128: 010903004001 | D128: 外墙变形缝 | E128: m | F128: 8.400 | G128: 8.54 | H128: 71.74
A129: 117 | B129: 010903004002 | D129: 墙面变形缝 | E129: m | F129: 8.400 | G129: 10.54 | H129: 88.55
A130: 118 | B130: 010904004001 | D130: 地面变形缝 | E130: m | F130: 5.800 | G130: 12.76 | H130: 73.99
A131: 119 | B131: 010902008001 | D131: 吊顶变形缝 | E131: m | F131: 5.400 | G131: 0.57 | H131: 3.06
A132: 120 | B132: 010902008002 | D132: 屋面变形缝 | E132: m | F132: 9.300 | G132: 25.04 | H132: 232.88
D133: 措施项目
A134: 121 | B134: 粤011701008002 | D134: 综合钢脚手架 | E134: m2 | F134: 2149.070 | G134: =ROUND(H134/F134,2) -> 14.73 | H134: 31647.57
A135: 122 | B135: 粤011701010003 | D135: 满堂脚手架 | E135: m2 | F135: 1993.400 | G135: 7.43 | H135: 14813.55
A136: 123 | B136: 粤011701011003 | D136: 里脚手架 | E136: m2 | F136: 996.700 | G136: 7.35 | H136: 7321.87
A137: 134 | B137: 010402001002 | D137: 砖胎膜 | E137: m3 | F137: 169.910 | G137: 155.52 | H137: 26424.74
A138: 135 | B138: 011702001004 | D138: 垫层 | E138: m2 | F138: 149.370 | G138: 10.65 | H138: 1591.43
A139: 136 | B139: 011702002003 | D139: 矩形柱模板 | E139: m2 | F139: 42.700 | G139: 31.53 | H139: 1346.24
A140: 137 | B140: 011702002005 | D140: 矩形柱模板 | E140: m2 | F140: 793.290 | G140: 34.32 | H140: 27227.49
A141: 138 | B141: 011702002004 | D141: 矩形柱模板 | E141: m2 | F141: 2.950 | G141: 29.43 | H141: 86.83
A142: 139 | B142: 011702002006 | D142: 矩形柱模板 | E142: m2 | F142: 75.000 | G142: 31.75 | H142: 2381.41
A143: 140 | B143: 011702003005 | D143: 构造柱 | E143: m2 | F143: 823.880 | G143: 38.93 | H143: 32074.90
A144: 141 | B144: 011702011001 | D144: 直形墙 | E144: m2 | F144: 35.190 | G144: 19.47 | H144: 685.24
A145: 142 | B145: 011702006001 | D145: 矩形梁 | E145: m2 | F145: 1400.170 | G145: 40.49 | H145: 56696.88
A146: 143 | B146: 011702006002 | D146: 矩形梁 | E146: m2 | F146: 667.880 | G146: 43.99 | H146: 29377.23
A147: 144 | B147: 011702009002 | D147: 过梁 | E147: m2 | F147: 79.490 | G147: 25.57 | H147: 2032.18
A148: 145 | B148: 011702008001 | D148: 反坎 | E148: m2 | F148: 101.630 | G148: 25.55 | H148: 2597.11
A149: 146 | B149: 011702008002 | D149: 窗台 | E149: m2 | F149: 33.780 | G149: 25.58 | H149: 864.00
A150: 147 | B150: 011702028001 | D150: 压顶 | E150: m | F150: 187.700 | G150: 19.60 | H150: 3678.22
A151: 148 | B151: 011702014002 | D151: 有梁板 | E151: m2 | F151: 1705.310 | G151: 36.50 | H151: 62240.05
A152: 149 | B152: 011702023001 | D152: 雨篷、悬挑板、阳台板 | E152: m2 | F152: 286.330 | G152: 39.95 | H152: 11440.06
A153: 150 | B153: 011702024002 | D153: 楼梯 | E153: m2 | F153: 59.230 | G153: 87.25 | H153: 5167.55
A154: 151 | B154: 011702025002 | D154: 栏板、反檐 | E154: m2 | F154: 812.320 | G154: 25.05 | H154: 20349.01
A155: 152 | B155: 011702027002 | D155: 台阶 | E155: m2 | F155: 46.100 | G155: 21.13 | H155: 974.29
A156: 153 | B156: 011703001001 | D156: 垂直运输 | E156: m2 | F156: 1993.400 | G156: 21.64 | H156: 43133.99
A157: 合计 | H157: =SUM(H6:H156) -> 1385583.65

Sheet 18【传达室】
A1: 劳务采购工程量清单
A2: 工程名称: | C2: 传达室
A3: 序号 | B3: 项目编码 | D3: 项目名称 | E3: 单位 | F3: 工程量 | G3: 人工费
G4: 单价（元） | H4: 合价（元）
D5: 第一章 土石方工程
A6: 1 | B6: 010101004002 | D6: 挖基坑土方 | E6: m3 | F6: 120.170 | G6: =ROUND(H6/F6,2) -> 4.71 | H6: 565.69
A7: 2 | B7: 010103001004 | D7: 回填方 | E7: m3 | F7: 108.150 | G7: 12.32 | H7: 1332.81
B8: 二 | D8: 桩基工程
A9: 3 | B9: 010301002001 | D9: φ500预制钢筋混凝土管桩 | E9: m | F9: 55.000 | G9: 16.68 | H9: 917.18
A10: 4 | B10: 010301002002 | D10: 预埋铁件 | E10: t | F10: 0.009 | G10: 2644.44 | H10: 23.80
A11: 5 | B11: 010301004001 | D11: 截(凿)桩头 | E11: 个 | F11: 4.000 | G11: 33.75 | H11: 135.00
A12: 6 | B12: 010515001007 | D12: 桩头插筋 | E12: t | F12: 0.219 | G12: 359.91 | H12: 78.82
A13: 7 | B13: 010201009003 | D13: 深层搅拌桩 | E13: m | F13: 200.000 | G13: 22.51 | H13: 4502.74
D14: 第四章 砌筑工程
A15: 8 | B15: 010401001004 | D15: 砖基础 | E15: m3 | F15: 2.530 | G15: =ROUND(H15/F15,2) -> 155.52 | H15: 393.47
A16: 9 | B16: 010402001008 | D16: 120厚内墙 | E16: m3 | F16: 0.580 | G16: 169.40 | H16: 98.25
A17: 10 | B17: 010402001009 | D17: 200厚外墙 | E17: m3 | F17: 10.740 | G17: 161.77 | H17: 1737.44
A18: 11 | B18: 010402001010 | D18: 300厚外墙 | E18: m3 | F18: 2.240 | G18: 151.76 | H18: 339.95
D19: 第五章 混凝土及钢筋混凝土工程
A20: 12 | B20: 010501001004 | D20: 垫层C15 | E20: m3 | F20: 0.680 | G20: =ROUND(H20/F20,2) -> 57.84 | H20: 39.33
A21: 13 | B21: 010501001005 | D21: 垫层C20 | E21: m3 | F21: 1.040 | G21: 57.84 | H21: 60.15
A22: 14 | B22: 010103001005 | D22: 回填中砂垫层 | E22: m3 | F22: 5.350 | G22: 55.01 | H22: 294.29
A23: 15 | B23: 010501005002 | D23: 桩承台基础 | E23: m3 | F23: 4.360 | G23: 45.69 | H23: 199.22
A24: 16 | B24: 010501004002 | D24: 满堂基础 | E24: m3 | F24: 2.590 | G24: 45.69 | H24: 118.34
A25: 17 | B25: 010503001002 | D25: 基础梁 | E25: m3 | F25: 0.920 | G25: 36.43 | H25: 33.52
A26: 18 | B26: 010502001004 | D26: 矩形柱 | E26: m3 | F26: 4.320 | G26: 122.15 | H26: 527.68
A27: 19 | B27: 010502002002 | D27: 构造柱 | E27: m3 | F27: 0.640 | G27: 188.53 | H27: 120.66
A28: 20 | B28: 010505001003 | D28: 有梁板 | E28: m3 | F28: 3.480 | G28: 50.65 | H28: 176.27
A29: 21 | B29: 010505008003 | D29: 雨蓬板 | E29: m3 | F29: 0.410 | G29: 172.71 | H29: 70.81
A30: 22 | B30: 010503005003 | D30: 过梁 | E30: m3 | F30: 0.100 | G30: 115.70 | H30: 11.57
A31: 23 | B31: 010505006004 | D31: 栏板（女儿墙） | E31: m3 | F31: 1.160 | G31: 176.03 | H31: 204.19
A32: 24 | B32: 010507001004 | D32: 散水 | E32: m2 | F32: 10.530 | G32: 3.46 | H32: 36.44
A33: 25 | B33: 010507004001 | D33: 台阶 | E33: m2 | F33: 1.350 | G33: 11.70 | H33: 15.80
A34: 26 | B34: 010516003002 | D34: 机械连接 | E34: 个 | F34: 64.000 | G34: 4.56 | H34: 291.65
A35: 27 | B35: 010515001005 | D35: 现浇构件箍筋 | E35: t | F35: 0.105 | G35: 1246.10 | H35: 130.84
A36: 28 | B36: 010515001006 | D36: 现浇构件箍筋φ8~10 | E36: t | F36: 0.494 | G36: 1451.68 | H36: 717.13
A37: 29 | B37: 010515001002 | D37: 现浇构件钢筋φ8~10 | E37: t | F37: 0.482 | G37: 688.20 | H37: 331.71
A38: 30 | B38: 010515001003 | D38: 现浇构件钢筋φ12~16 | E38: t | F38: 0.523 | G38: 500.15 | H38: 261.58
A39: 31 | B39: 010515001004 | D39: 现浇构件钢筋φ18～25 | E39: t | F39: 1.913 | G39: 500.16 | H39: 956.81
D40: 第六章 金属结构工程
A41: 32 | B41: 010607005001 | D41: 砌块墙钢丝网加固-不同材质交接处 | E41: m2 | F41: 21.030 | G41: =ROUND(H41/F41,2) -> 6.85 | H41: 144.05
D42: 第八章 门窗工程
A43: 33 | B43: 010802001004 | D43: 木饰面普通门（M1128) | E43: m2 | F43: 2.420 | G43: 31.75 | H43: 76.83
A44: 34 | B44: 010802001005 | D44: 木饰面铝合金门（M10a23） | E44: m2 | F44: 2.415 | G44: 31.81 | H44: 76.83
A45: 35 | B45: 010807001005 | D45: 铝合金推拉窗 | E45: m2 | F45: 6.240 | G45: 21.56 | H45: 134.51
A46: 36 | B46: 010807001006 | D46: 铝合金固定窗 | E46: m2 | F46: 5.110 | G46: 16.37 | H46: 83.64
A47: 37 | B47: 010807003003 | D47: 深灰色铝合金防雨百叶 | E47: m2 | F47: 3.360 | G47: 27.51 | H47: 92.44
D48: 第九章 屋面及防水工程
A49: 38 | B49: 010902001004 | D49: 屋面2-混凝土保护层屋面(不上人屋面)I级防水 | E49: m2 | F49: 13.230 | G49: =ROUND(H49/F49,2) -> 43.46 | H49: 574.97
A50: 39 | B50: 010902003004 | D50: 屋面3-雨棚屋面(不上人屋面)II级防水 | E50: m2 | F50: 3.140 | G50: 18.81 | H50: 59.06
A51: 40 | B51: 010903003001 | D51: 墙身防潮层 | E51: m2 | F51: 12.650 | G51: 8.32 | H51: 105.25
A52: 41 | B52: 010904003001 | D52: 棚4-防水层 | E52: m2 | F52: 3.490 | G52: 4.81 | H52: 16.78
D53: 第十章 保温、隔热、防腐工程
A54: 42 | B54: 011001001002 | D54: 屋面2-保温层 | E54: m2 | F54: 13.230 | G54: =ROUND(H54/F54,2) -> 12.05 | H54: 159.38
D55: 第十一章 楼地面装饰工程
A56: 43 | B56: 011102001002 | D56: 台阶-花岗岩贴面 | E56: m2 | F56: 1.350 | G56: 57.08 | H56: 77.06
A57: 44 | B57: 011102003007 | D57: 地1 | E57: m2 | F57: 8.470 | G57: 36.87 | H57: 312.25
A58: 45 | B58: 011102003006 | D58: 地4 | E58: m2 | F58: 3.740 | G58: 68.50 | H58: 256.18
A59: 46 | B59: 011105003002 | D59: 踢1 | E59: m2 | F59: 1.180 | G59: 67.15 | H59: 79.24
A60: 47 | B60: 011201001015 | D60: 外墙1 | E60: m2 | F60: 60.870 | G60: 44.29 | H60: 2696.04
A61: 48 | B61: 011201001014 | D61: 外墙2 | E61: m2 | F61: 54.250 | G61: 17.39 | H61: 943.66
A62: 49 | B62: 011201001007 | D62: 内墙1 | E62: m2 | F62: 27.200 | G62: 9.66 | H62: 262.63
A63: 50 | B63: 011204003005 | D63: 内墙3 | E63: m2 | F63: 23.110 | G63: 70.46 | H63: 1628.33
D64: 第十三章 天棚工程
A65: 51 | B65: 011302001003 | D65: 铝合金方形板吊顶 (棚4) | E65: m2 | F65: 3.490 | G65: =ROUND(H65/F65,2) -> 23.92 | H65: 83.49
D66: 第十四章 油漆、涂料、裱糊工程
A67: 52 | B67: 011301001001 | D67: 棚1-涂料 | E67: m2 | F67: 10.770 | G67: 18.29 | H67: 196.98
A68: 53 | B68: 011201001009 | D68: 内墙1-涂料 | E68: m2 | F68: 27.200 | G68: 14.49 | H68: 394.11
A69: 54 | B69: 011201001010 | D69: 真石漆墙面 | E69: m2 | F69: 114.284 | G69: 26.25 | H69: 3000.29
D70: 第十五章 其他装饰工程
A71: 55 | B71: 011207001001 | D71: 玻璃镜面 | E71: m2 | F71: 0.630 | G71: =ROUND(H71/F71,2) -> 17.10 | H71: 10.77
A72: 56 | B72: 011505001002 | D72: 洗手台 | E72: m2 | F72: 0.800 | G72: 140.53 | H72: 112.42
D73: 措施项目
A74: 57 | B74: 粤011701008001 | D74: 综合钢脚手架 | E74: m2 | F74: 114.560 | G74: 14.73 | H74: 1687.51
A75: 58 | B75: 粤011701010001 | D75: 满堂脚手架 | E75: m2 | F75: 16.394 | G75: 7.43 | H75: 121.88
A76: 59 | B76: 粤011701011001 | D76: 里脚手架 | E76: m2 | F76: 8.197 | G76: 4.90 | H76: 40.15
A77: 71 | B77: 011702001001 | D77: 垫层 | E77: m2 | F77: 3.960 | G77: 10.76 | H77: 42.61
A78: 72 | B78: 011702001003 | D78: 筏板基础 | E78: m2 | F78: 5.160 | G78: 19.36 | H78: 99.88
A79: 73 | B79: 011702001004 | D79: 桩承台模板 | E79: m2 | F79: 15.840 | G79: 23.05 | H79: 365.04
A80: 74 | B80: 011702002001 | D80: 矩形柱模板 | E80: m2 | F80: 17.580 | G80: 31.52 | H80: 554.07
A81: 75 | B81: 011702002002 | D81: 矩形柱模板 | E81: m2 | F81: 26.240 | G81: 36.57 | H81: 959.50
A82: 76 | B82: 011702003001 | D82: 构造柱 | E82: m2 | F82: 7.720 | G82: 36.24 | H82: 279.81
A83: 77 | B83: 011702009001 | D83: 过梁 | E83: m2 | F83: 1.934 | G83: 25.12 | H83: 48.58
A84: 78 | B84: 011702014001 | D84: 有梁板 | E84: m2 | F84: 17.660 | G84: 30.93 | H84: 546.29
A85: 79 | B85: 011702006001 | D85: 矩形梁 | E85: m2 | F85: 14.470 | G85: 35.78 | H85: 517.79
A86: 80 | B86: 011702006002 | D86: 矩形梁 | E86: m2 | F86: 9.280 | G86: 45.37 | H86: 421.02
A87: 81 | B87: 011702005001 | D87: 基础梁 | E87: m2 | F87: 5.580 | G87: 24.82 | H87: 138.51
A88: 82 | B88: 011702025001 | D88: 女儿墙模板 | E88: m2 | F88: 19.344 | G88: 25.00 | H88: 483.51
A89: 83 | B89: 011703001001 | D89: 垂直运输 | E89: m2 | F89: 19.890 | G89: 21.64 | H89: 430.40
A90: 合计 | H90: =SUM(H6:H89) -> 33036.88

Sheet 19【加药间】
A1: 劳务采购工程量清单
A2: 工程名称: | C2: 加药间
A3: 序号 | B3: 项目编码 | D3: 项目名称 | E3: 单位 | F3: 工程量 | G3: 人工费
G4: 单价（元） | H4: 合价（元）
D5: 第一章 土石方工程
A6: 1 | B6: 010101004001 | D6: 挖基坑土方 | E6: m3 | F6: 65.040 | G6: =ROUND(H6/F6,2) -> 4.76 | H6: 309.30
A7: 2 | B7: 010101003001 | D7: 挖沟槽土方 | E7: m3 | F7: 86.660 | G7: 4.56 | H7: 394.89
A8: 3 | B8: 010103001003 | D8: 回填方 | E8: m3 | F8: 63.150 | G8: 12.33 | H8: 778.50
A9: 4 | B9: 040103002001 | D9: 场内利用 | E9: m3 | F9: 79.080 | G9: 3.49 | H9: 275.85
B10: 二 | D10: 桩基工程
A11: 5 | B11: 010301002001 | D11: φ500预制钢筋混凝土管桩 | E11: m | F11: 794.640 | G11: =ROUND(H11/F11,2) -> 16.31 | H11: 12963.82
A12: 6 | B12: 010301002002 | D12: 预埋铁件 | E12: t | F12: 0.095 | G12: 2644.95 | H12: 251.27
A13: 7 | B13: 010301004001 | D13: 截(凿)桩头 | E13: 个 | F13: 44.000 | G13: 33.72 | H13: 1483.59
A14: 8 | B14: 010515001021 | D14: 桩头插筋 | E14: t | F14: 0.120 | G14: 359.92 | H14: 43.19
D15: 第四章 砌筑工程
A16: 9 | B16: 010401001003 | D16: 砖基础 | E16: m3 | F16: 16.510 | G16: =ROUND(H16/F16,2) -> 155.52 | H16: 2567.67
A17: 10 | B17: 010402001006 | D17: 200厚外墙 | E17: m3 | F17: 94.970 | G17: 161.77 | H17: 15363.58
A18: 11 | B18: 010402001007 | D18: 200厚砖砌围堰 | E18: m3 | F18: 16.480 | G18: 154.46 | H18: 2545.58
D19: 第五章 混凝土及钢筋混凝土工程
A20: 12 | B20: 010501001003 | D20: 垫层C20 | E20: m3 | F20: 7.420 | G20: =ROUND(H20/F20,2) -> 57.84 | H20: 429.14
A21: 13 | B21: 010501001004 | D21: 楼6、7（200厚C25混凝土） | E21: m3 | F21: 119.957 | G21: 57.84 | H21: 6938.01
A22: 14 | B22: 040303002003 | D22: C20设备基础 | E22: m3 | F22: 3.300 | G22: 60.28 | H22: 198.92
A23: 15 | B23: 010501005002 | D23: 桩承台基础 | E23: m3 | F23: 53.980 | G23: 45.69 | H23: 2466.45
A24: 16 | B24: 010501004002 | D24: 满堂基础 | E24: m3 | F24: 128.160 | G24: 45.69 | H24: 5855.89
A25: 17 | B25: 010503001002 | D25: 基础梁 | E25: m3 | F25: 44.893 | G25: 36.43 | H25: 1635.43
A26: 18 | B26: 010502001002 | D26: 矩形柱 | E26: m3 | F26: 44.530 | G26: 122.15 | H26: 5439.24
A27: 19 | B27: 010503005003 | D27: 过梁 | E27: m3 | F27: 1.250 | G27: 115.67 | H27: 144.59
A28: 20 | B28: 010505001003 | D28: 有梁板 | E28: m3 | F28: 145.500 | G28: 50.65 | H28: 7369.73
A29: 21 | B29: 010505006002 | D29: 栏板（女儿墙） | E29: m3 | F29: 18.180 | G29: 176.02 | H29: 3200.10
A30: 22 | B30: 010505008002 | D30: 雨蓬板 | E30: m3 | F30: 14.210 | G30: 172.70 | H30: 2454.04
A31: 23 | B31: 010507001006 | D31: 坡道 | E31: m2 | F31: 24.300 | G31: 14.60 | H31: 354.69
A32: 24 | B32: 010507004002 | D32: 台阶 | E32: m2 | F32: 2.460 | G32: 11.47 | H32: 28.21
A33: 25 | B33: 010507001005 | D33: 散水 | E33: m2 | F33: 100.800 | G33: 3.47 | H33: 349.91
A34: 26 | B34: 010515001015 | D34: 现浇构件箍筋 | E34: t | F34: 0.402 | G34: 1246.09 | H34: 500.93
A35: 27 | B35: 010515001016 | D35: 现浇构件箍筋φ8~10 | E35: t | F35: 6.947 | G35: 1451.69 | H35: 10084.89
A36: 28 | B36: 010515001020 | D36: 现浇构件箍筋φ12~16 | E36: t | F36: 0.918 | G36: 750.54 | H36: 689.00
A37: 29 | B37: 010515001017 | D37: 现浇构件钢筋φ8~10 | E37: t | F37: 11.613 | G37: 688.19 | H37: 7991.95
A38: 30 | B38: 010515001018 | D38: 现浇构件钢筋φ12~16 | E38: t | F38: 18.867 | G38: 500.16 | H38: 9436.52
A39: 31 | B39: 010515001019 | D39: 现浇构件钢筋φ18～25 | E39: t | F39: 29.691 | G39: 500.16 | H39: 14850.25
A40: 32 | B40: 010516003009 | D40: 机械连接 | E40: 个 | F40: 272.000 | G40: 4.56 | H40: 1239.50
A41: 33 | B41: 010516003010 | D41: 机械连接 | E41: 个 | F41: 127.000 | G41: 5.90 | H41: 749.17
D42: 第八章 门窗工程
A43: 34 | B43: 010802001003 | D43: 米白色钢制普通门 | E43: m2 | F43: 16.200 | G43: =ROUND(H43/F43,2) -> 43.59 | H43: 706.11
A44: 35 | B44: 010803001001 | D44: 卷帘门 | E44: m2 | F44: 31.500 | G44: 39.82 | H44: 1254.20
A45: 36 | B45: 010807001003 | D45: 铝合金推拉窗 | E45: m2 | F45: 29.700 | G45: 21.70 | H45: 644.37
A46: 37 | B46: 010807001004 | D46: 铝合金固定窗 | E46: m2 | F46: 41.580 | G46: 16.41 | H46: 682.24
A47: 38 | B47: 010807003002 | D47: 深灰色铝合金防雨百叶 | E47: m2 | F47: 5.400 | G47: 27.19 | H47: 146.81
D48: 第九章 屋面及防水工程
A49: 39 | B49: 010902001002 | D49: 屋面2-混凝土保护层屋面(不上人屋面)I级防水 | E49: m2 | F49: 661.650 | G49: =ROUND(H49/F49,2) -> 42.71 | H49: 28256.16
A50: 40 | B50: 010902003002 | D50: 屋面3-雨棚屋面(不上人屋面)II级防水 | E50: m2 | F50: 118.400 | G50: 19.05 | H50: 2255.72
A51: 41 | B51: 010903003001 | D51: 墙身防潮层 | E51: m2 | F51: 82.560 | G51: 8.29 | H51: 684.56
D52: 第十章 保温、隔热、防腐工程
A53: 42 | B53: 011001001001 | D53: 屋面1、2-保温层 | E53: m2 | F53: 661.650 | G53: =ROUND(H53/F53,2) -> 12.08 | H53: 7989.76
D54: 第十一章 楼地面装饰工程
A55: 43 | B55: 011102003004 | D55: 抗腐蚀地面一（地6） | E55: m2 | F55: 297.080 | G55: 62.59 | H55: 18595.22
A56: 44 | B56: 011102003005 | D56: 抗腐蚀地面二（地7） | E56: m2 | F56: 302.705 | G56: 115.71 | H56: 35026.76
A57: 45 | B57: 011105003002 | D57: 踢1 | E57: m2 | F57: 22.050 | G57: 66.18 | H57: 1459.30
A58: 47 | B58: 011102001003 | D58: 台阶-花岗岩贴面 | E58: m2 | F58: 2.460 | G58: 55.94 | H58: 137.61
D59: 第十二章 墙、柱面装饰与隔断、幕墙工程
A60: 48 | B60: 011201001010 | D60: 内墙2 | E60: m2 | F60: 634.670 | G60: =ROUND(H60/F60,2) -> 15.89 | H60: 10084.88
A61: 49 | B61: 011201001008 | D61: 外墙1 | E61: m2 | F61: 822.230 | G61: 47.74 | H61: 39256.43
D62: 油漆、涂料、裱糊工程
A63: 50 | B63: 011201001009 | D63: 外墙1-真石漆 | E63: m2 | F63: 822.230 | G63: 26.25 | H63: 21582.17
A64: 51 | B64: 011301001007 | D64: 石粉类涂料顶棚 (棚2) | E64: m2 | F64: 797.490 | G64: 25.33 | H64: 20201.39
D65: 第十五章 其他装饰工程
A66: 52 | B66: 040201022002 | D66: 排水沟、截水沟 300(深)*500(宽) | E66: m | F66: 62.750 | G66: =ROUND(H66/F66,2) -> 57.30 | H66: 3595.37
A67: 53 | B67: 010606008002 | D67: 钢爬梯 | E67: t | F67: 0.300 | G67: 852.33 | H67: 255.70
D68: 措施项目
A69: 54 | B69: 粤011701008001 | D69: 综合钢脚手架 | E69: m2 | F69: 930.240 | G69: 14.73 | H69: 13698.21
A70: 55 | B70: 粤011701010001 | D70: 满堂脚手架 | E70: m2 | F70: 678.720 | G70: 10.23 | H70: 6943.58
A71: 56 | B71: 粤011701011001 | D71: 里脚手架 | E71: m2 | F71: 339.360 | G71: 4.90 | H71: 1661.42
A72: 68 | B72: 011702001007 | D72: 满堂基础模板 | E72: m2 | F72: 19.460 | G72: 25.13 | H72: 489.05
A73: 69 | B73: 011702005001 | D73: 基础梁 | E73: m2 | F73: 415.230 | G73: 24.73 | H73: 10269.99
A74: 70 | B74: 011702001006 | D74: 桩承台模板 | E74: m2 | F74: 115.380 | G74: 23.11 | H74: 2666.08
A75: 71 | B75: 011702001001 | D75: 垫层 | E75: m2 | F75: 18.990 | G75: 10.66 | H75: 202.39
A76: 72 | B76: 011702001003 | D76: 设备基础 | E76: m2 | F76: 10.120 | G76: 27.08 | H76: 274.02
A77: 73 | B77: 011702002001 | D77: 矩形柱模板 | E77: m2 | F77: 370.360 | G77: 36.62 | H77: 13564.39
A78: 74 | B78: 011702009001 | D78: 过梁 | E78: m2 | F78: 19.110 | G78: 25.55 | H78: 488.25
A79: 75 | B79: 011702014001 | D79: 有梁板 | E79: m2 | F79: 761.670 | G79: 47.55 | H79: 36219.09
A80: 76 | B80: 011702006001 | D80: 矩形梁 | E80: m2 | F80: 320.680 | G80: 50.06 | H80: 16052.42
A81: 77 | B81: 011702023001 | D81: 雨篷、悬挑板、阳台板 | E81: m2 | F81: 133.090 | G81: 39.96 | H81: 5318.42
A82: 78 | B82: 011702025002 | D82: 女儿墙模板 | E82: m2 | F82: 181.760 | G82: 25.06 | H82: 4554.27
A83: 79 | B83: 011702026001 | D83: 电缆沟、地沟 | E83: m2 | F83: 37.500 | G83: 23.02 | H83: 863.27
A84: 80 | B84: 011703001001 | D84: 垂直运输 | E84: m2 | F84: 678.720 | G84: 21.64 | H84: 14686.42
A85: 合计 | H85: =SUM(H6:H84) -> 440149.83

Sheet 20【鼓风机房及配电中心】
A1: 劳务采购工程量清单
A2: 工程名称: | C2: 鼓风机房及配电中心
A3: 序号 | B3: 项目编码 | D3: 项目名称 | E3: 单位 | F3: 工程量 | G3: 人工费
G4: 单价（元） | H4: 合价（元）
B5: 一 | D5: 土石方工程
A6: 1 | B6: 010101004003 | D6: 挖一般土方 | E6: m3 | F6: 397.820 | G6: =ROUND(H6/F6,2) -> 1.61 | H6: 639.41
A7: 2 | B7: 010101004004 | D7: 挖基坑土方 | E7: m3 | F7: 111.690 | G7: 4.72 | H7: 527.10
A8: 3 | B8: 010101003003 | D8: 挖沟槽土方 | E8: m3 | F8: 62.980 | G8: 4.54 | H8: 285.93
A9: 4 | B9: 040103001008 | D9: 回填方 | E9: m3 | F9: 386.540 | G9: 12.32 | H9: 4760.91
A10: 5 | B10: 040103002001 | D10: 场内利用 | E10: m3 | F10: 127.970 | G10: 3.49 | H10: 446.45
B11: 二 | D11: 桩基工程
A12: 6 | B12: 010301002001 | D12: φ500预制钢筋混凝土管桩 | E12: m | F12: 392.150 | G12: =ROUND(H12/F12,2) -> 16.38 | H12: 6424.41
A13: 7 | B13: 040301002004 | D13: φ600预制钢筋混凝土管桩 | E13: m | F13: 244.500 | G13: 25.16 | H13: 6150.93
A14: 8 | B14: 010301002002 | D14: 预埋铁件 | E14: t | F14: 0.110 | G14: 2645.00 | H14: 290.95
A15: 9 | B15: 010515001020 | D15: 桩头插筋 | E15: t | F15: 1.852 | G15: 359.92 | H15: 666.57
A16: 10 | B16: 010301004001 | D16: 截(凿)桩头 | E16: 个 | F16: 38.000 | G16: 34.57 | H16: 1313.76
B17: 三 | D17: 砌筑工程
A18: 11 | B18: 010401001003 | D18: 砖基础 | E18: m3 | F18: 16.210 | G18: =ROUND(H18/F18,2) -> 155.52 | H18: 2521.01
A19: 12 | B19: 010402001007 | D19: 200厚外墙 | E19: m3 | F19: 56.390 | G19: 161.77 | H19: 9122.38
A20: 13 | B20: 010402001008 | D20: 200厚内墙 防火墙 | E20: m3 | F20: 34.140 | G20: 154.47 | H20: 5273.44
B21: 四 | D21: 第五章 混凝土及钢筋混凝土工程
A22: 14 | B22: 010501001002 | D22: 垫层 | E22: m3 | F22: 44.780 | G22: 60.34 | H22: 2701.91
A23: 15 | B23: 010501005002 | D23: 桩承台基础 | E23: m3 | F23: 37.800 | G23: =ROUND(H23/F23,2) -> 45.69 | H23: 1727.16
A24: 16 | B24: 010501004002 | D24: 满堂基础 | E24: m3 | F24: 52.490 | G24: 45.69 | H24: 2398.37
A25: 17 | B25: 010502001002 | D25: 矩形柱 | E25: m3 | F25: 44.270 | G25: 119.62 | H25: 5295.49
A26: 18 | B26: 010503005003 | D26: 过梁 | E26: m3 | F26: 1.670 | G26: 115.67 | H26: 193.17
A27: 19 | B27: 010505001002 | D27: 有梁板 | E27: m3 | F27: 68.510 | G27: 50.65 | H27: 3470.10
A28: 20 | B28: 010505006002 | D28: 栏板（女儿墙） | E28: m3 | F28: 8.900 | G28: 176.02 | H28: 1566.61
A29: 21 | B29: 010505008002 | D29: 雨蓬板 | E29: m3 | F29: 11.010 | G29: 172.70 | H29: 1901.40
A30: 22 | B30: 040303002001 | D30: C20设备基础 | E30: m3 | F30: 2.850 | G30: 60.28 | H30: 171.79
A31: 23 | B31: 010507001006 | D31: 坡道 | E31: m2 | F31: 36.410 | G31: 14.59 | H31: 531.31
A32: 24 | B32: 010507001007 | D32: 散水 | E32: m2 | F32: 76.970 | G32: 3.47 | H32: 267.20
A33: 25 | B33: 010515001013 | D33: 现浇构件箍筋 | E33: t | F33: 0.215 | G33: 1246.09 | H33: 267.91
A34: 26 | B34: 010515001014 | D34: 现浇构件箍筋φ8~10 | E34: t | F34: 5.450 | G34: 1451.69 | H34: 7911.71
A35: 27 | B35: 010515001019 | D35: 现浇构件箍筋φ12～16 | E35: t | F35: 0.903 | G35: 750.54 | H35: 677.74
A36: 28 | B36: 010515001015 | D36: 现浇构件钢筋φ10 内 | E36: t | F36: 0.620 | G36: 710.26 | H36: 440.36
A37: 29 | B37: 010515001016 | D37: 现浇构件钢筋φ8~10 | E37: t | F37: 5.603 | G37: 688.19 | H37: 3855.93
A38: 30 | B38: 010515001017 | D38: 现浇构件钢筋φ12~16 | E38: t | F38: 16.580 | G38: 500.16 | H38: 8292.65
A39: 31 | B39: 010515001018 | D39: 现浇构件钢筋φ18～25 | E39: t | F39: 22.771 | G39: 500.16 | H39: 11389.14
A40: 32 | B40: 010516003004 | D40: 机械连接 | E40: 个 | F40: 360.000 | G40: 4.56 | H40: 1640.52
A41: 33 | B41: 010516003005 | D41: 机械连接 | E41: 个 | F41: 105.000 | G41: 5.90 | H41: 619.40
B42: 五 | D42: 金属结构工程
A43: 34 | B43: 010607005001 | D43: 砌块墙钢丝网加固-不同材质交接处 | E43: m2 | F43: 6.050 | G43: =ROUND(H43/F43,2) -> 6.92 | H43: 41.84
B44: 六 | D44: 第八章 门窗工程
A45: 35 | B45: 010802003004 | D45: 钢质甲级双扇防火门 | E45: m2 | F45: 22.680 | G45: 17.33 | H45: 392.96
A46: 36 | B46: 010802003006 | D46: 钢质甲级单扇防火门 | E46: m2 | F46: 2.530 | G46: 17.11 | H46: 43.28
A47: 37 | B47: 010802003005 | D47: 防火门闭门器 | E47: 套 | F47: 9.000 | G47: 25.57 | H47: 230.17
A48: 38 | B48: 010802001004 | D48: 米白色钢制普通门 | E48: m2 | F48: 19.980 | G48: 43.63 | H48: 871.74
A49: 39 | B49: 010807001003 | D49: 铝合金推拉窗 | E49: m2 | F49: 21.450 | G49: 21.75 | H49: 466.46
A50: 40 | B50: 010807001004 | D50: 铝合金固定窗 | E50: m2 | F50: 27.960 | G50: 16.42 | H50: 459.20
A51: 41 | B51: 010807003002 | D51: 深灰色铝合金防雨百叶 | E51: m2 | F51: 5.400 | G51: 27.19 | H51: 146.81
B52: 七 | D52: 第九章 屋面及防水工程
A53: 42 | B53: 010902001002 | D53: 屋面2-混凝土保护层屋面(不上人屋面)I级防水 | E53: m2 | F53: 367.200 | G53: =ROUND(H53/F53,2) -> 43.78 | H53: 16074.24
A54: 43 | B54: 010902003002 | D54: 屋面3-雨棚屋面(不上人屋面)II级防水 | E54: m2 | F54: 82.800 | G54: 19.05 | H54: 1577.48
A55: 44 | B55: 010903003001 | D55: 墙身防潮层 | E55: m2 | F55: 26.440 | G55: 8.28 | H55: 218.80
A56: 45 | B56: 010903002001 | D56: 电缆沟防水涂料 | E56: m2 | F56: 40.140 | G56: 6.40 | H56: 257.08
A57: 46 | B57: 010903003002 | D57: 电缆沟防水墙面 | E57: m2 | F57: 106.200 | G57: 9.53 | H57: 1012.19
B58: 八 | D58: 保温、隔热、防腐工程
A59: 47 | B59: 011001001001 | D59: 屋面1、2-保温层 | E59: m2 | F59: 367.200 | G59: =ROUND(H59/F59,2) -> 12.07 | H59: 4433.79
B60: 九 | D60: 楼地面装饰工程
A61: 48 | B61: 011102003002 | D61: 地1 | E61: m2 | F61: 350.040 | G61: 36.73 | H61: 12857.18
A62: 49 | B62: 011105003001 | D62: 踢1 | E62: m2 | F62: 17.640 | G62: 67.90 | H62: 1197.83
B63: 十 | D63: 墙、柱面装饰与隔断、幕墙工程
A64: 51 | B64: 011202001002 | D64: 内墙2-独立柱 | E64: m2 | F64: 30.480 | G64: =ROUND(H64/F64,2) -> 27.92 | H64: 850.86
A65: 52 | B65: 011201001011 | D65: 内墙2 | E65: m2 | F65: 798.080 | G65: 15.89 | H65: 12681.17
A66: 53 | B66: 011201001010 | D66: 真石漆墙面 (外墙1) | E66: m2 | F66: 577.860 | G66: 44.27 | H66: 25583.58
B67: 十一 | D67: 油漆、涂料、裱糊工程
A68: 54 | B68: 011201001012 | D68: 外墙1-真石漆 | E68: m2 | F68: 577.860 | G68: =ROUND(H68/F68,2) -> 26.25 | H68: 15169.47
A69: 55 | B69: 011301001007 | D69: 石粉类涂料顶棚 (棚2) | E69: m2 | F69: 411.490 | G69: 25.33 | H69: 10423.67
B70: 十二 | D70: 其他
A71: 56 | B71: 010401014002 | D71: 电缆沟垫层 | E71: m2 | F71: 46.790 | G71: 21.81 | H71: 1020.41
A72: 57 | B72: 010401014003 | D72: 电缆沟支墩 | E72: m3 | F72: 32.600 | G72: 187.03 | H72: 6097.11
A73: 58 | B73: 010516002001 | D73: 预埋铁件 | E73: t | F73: 0.771 | G73: 2644.99 | H73: 2039.29
A74: 59 | B74: 011210005002 | D74: 挡鼠板 | E74: m2 | F74: 3.850 | G74: 3.55 | H74: 13.67
A75: 60 | B75: 010607005002 | D75: 进、出风口装设圆形不锈钢防护网 | E75: m2 | F75: 0.750 | G75: 9.15 | H75: 6.86
A76: 61 | B76: 010606008002 | D76: 钢爬梯 | E76: t | F76: 0.300 | G76: 852.33 | H76: 255.70
A77: 62 | B77: 040402016001 | D77: 10mm厚不锈钢花纹钢盖板 | E77: m | F77: 21.900 | G77: 12.27 | H77: 268.73
A78: 63 | B78: 040201022002 | D78: 排水沟、截水沟 300(深)*200(宽) | E78: m | F78: 3.700 | G78: 42.69 | H78: 157.95
D79: 措施项目
A80: 64 | B80: 粤011701008002 | D80: 综合钢脚手架 | E80: m2 | F80: 627.480 | G80: =ROUND(H80/F80,2) -> 14.73 | H80: 9240.50
A81: 65 | B81: 粤011701010003 | D81: 满堂脚手架 | E81: m2 | F81: 350.040 | G81: 7.43 | H81: 2600.96
A82: 66 | B82: 粤011701011003 | D82: 里脚手架 | E82: m2 | F82: 188.240 | G82: 7.32 | H82: 1378.21
A83: 77 | B83: 011702001008 | D83: 垫层 | E83: m2 | F83: 58.170 | G83: 10.66 | H83: 619.95
A84: 78 | B84: 011702001009 | D84: 满堂基础 | E84: m2 | F84: 11.230 | G84: 25.02 | H84: 280.92
A85: 79 | B85: 011702005002 | D85: 基础梁 | E85: m2 | F85: 129.870 | G85: 24.74 | H85: 3213.07
A86: 80 | B86: 011702001010 | D86: 桩承台 | E86: m2 | F86: 111.590 | G86: 23.11 | H86: 2578.30
A87: 81 | B87: 011702002007 | D87: 矩形柱模板 | E87: m2 | F87: 38.210 | G87: 39.43 | H87: 1506.55
A88: 82 | B88: 011702002006 | D88: 矩形柱模板 | E88: m2 | F88: 310.630 | G88: 36.62 | H88: 11374.49
A89: 83 | B89: 011702003006 | D89: 构造柱 | E89: m2 | F89: 16.840 | G89: 41.38 | H89: 696.85
A90: 84 | B90: 011702009003 | D90: 过梁 | E90: m2 | F90: 23.490 | G90: 25.57 | H90: 600.70
A91: 85 | B91: 011702014003 | D91: 有梁板 | E91: m2 | F91: 319.690 | G91: 41.71 | H91: 13333.65
A92: 86 | B92: 011702006002 | D92: 矩形梁 | E92: m2 | F92: 234.430 | G92: 45.27 | H92: 10612.08
A93: 87 | B93: 011702023002 | D93: 雨篷、悬挑板、阳台板 | E93: m2 | F93: 92.268 | G93: 39.97 | H93: 3688.11
A94: 88 | B94: 011702025003 | D94: 女儿墙模板 | E94: m2 | F94: 149.120 | G94: 25.05 | H94: 3735.12
A95: 89 | B95: 011702001011 | D95: 设备基础 | E95: m2 | F95: 4.630 | G95: 10.59 | H95: 49.01
A96: 90 | B96: 011703001001 | D96: 垂直运输 | E96: m2 | F96: 376.480 | G96: 21.64 | H96: 8146.42
A97: 合计 | H97: =SUM(H5:H96) -> 282247.53

Sheet 21【机修车间及仓库】
A1: 劳务采购工程量清单
A2: 工程名称: | C2: 机修车间及仓库
A3: 序号 | B3: 项目编码 | D3: 项目名称 | E3: 单位 | F3: 工程量 | G3: 人工费
G4: 单价（元） | H4: 合价（元）
B5: 一 | D5: 土石方工程
A6: 1 | B6: 010101004002 | D6: 挖基坑土方 | E6: m3 | F6: 50.700 | G6: =ROUND(H6/F6,2) -> 4.67 | H6: 236.86
A7: 2 | B7: 010101003002 | D7: 挖沟槽土方 | E7: m3 | F7: 62.140 | G7: =ROUND(H7/F7,2) -> 4.57 | H7: 284.18
A8: 3 | B8: 010101002002 | D8: 挖一般土方 | E8: m3 | F8: 199.680 | G8: 2.99 | H8: 596.43
A9: 4 | B9: 040103001005 | D9: 回填方-基础及基槽 | E9: m3 | F9: 64.880 | G9: 12.32 | H9: 799.44
A10: 5 | B10: 040103001006 | D10: 回填方-大开挖 | E10: m3 | F10: 195.780 | G10: 9.47 | H10: 1854.46
B11: 二 | D11: 桩基工程
A12: 6 | B12: 010301002017 | D12: 预制钢筋混凝土管桩 | E12: m | F12: 469.000 | G12: 16.40 | H12: 7693.51
A13: 7 | B13: 010301002013 | D13: 预埋铁件 | E13: t | F13: 0.070 | G13: 2645.00 | H13: 185.15
A14: 8 | B14: 010301002006 | D14: 接桩 | E14: 根 | F14: 28.000 | G14: 34.48 | H14: 965.44
A15: 9 | B15: 010301004003 | D15: 截(凿)桩头 | E15: 个 | F15: 28.000 | G15: 33.71 | H15: 943.94
A16: 10 | B16: 010515001009 | D16: 桩头插筋 | E16: t | F16: 1.326 | G16: 359.92 | H16: 477.25
B17: 三 | D17: 砌筑工程
A18: 11 | B18: 010401001002 | D18: 砖基础 | E18: m3 | F18: 10.360 | G18: 155.52 | H18: 1611.21
A19: 12 | B19: 010402001005 | D19: 200厚外墙 | E19: m3 | F19: 48.780 | G19: 161.77 | H19: 7891.29
A20: 13 | B20: 010402001002 | D20: 200厚内墙 | E20: m3 | F20: 24.250 | G20: 154.47 | H20: 3745.78
B21: 四 | D21: 混凝土及钢筋混凝土工程
A22: 14 | B22: 010501001001 | D22: 垫层 | E22: m3 | F22: 29.010 | G22: 57.84 | H22: 1677.82
A23: 15 | B23: 010501005001 | D23: 桩承台基础 | E23: m3 | F23: 26.810 | G23: 45.69 | H23: 1225.00
A24: 16 | B24: 010503001001 | D24: 基础梁 | E24: m3 | F24: 23.310 | G24: 36.43 | H24: 849.23
A25: 17 | B25: 010501004001 | D25: 满堂基础 | E25: m3 | F25: 72.960 | G25: 45.69 | H25: 3333.69
A26: 18 | B26: 010502001001 | D26: 矩形柱 | E26: m3 | F26: 20.100 | G26: 122.15 | H26: 2455.17
A27: 19 | B27: 010502002001 | D27: 构造柱 | E27: m3 | F27: 0.820 | G27: 188.54 | H27: 154.60
A28: 20 | B28: 010503005001 | D28: 圈梁、过梁 | E28: m3 | F28: 1.696 | G28: 115.94 | H28: 196.64
A29: 21 | B29: 010503005002 | D29: 窗台 | E29: m3 | F29: 1.020 | G29: 115.68 | H29: 117.99
A30: 22 | B30: 010505001001 | D30: 有梁板 | E30: m3 | F30: 87.960 | G30: 50.65 | H30: 4455.27
A31: 23 | B31: 010505006001 | D31: 栏板（女儿墙） | E31: m3 | F31: 7.940 | G31: 176.02 | H31: 1397.61
A32: 24 | B32: 010505008001 | D32: 雨蓬板 | E32: m3 | F32: 10.060 | G32: 172.70 | H32: 1737.35
A33: 25 | B33: 010507001003 | D33: 坡道 | E33: m2 | F33: 19.440 | G33: 14.57 | H33: 283.17
A34: 26 | B34: 010507004001 | D34: 台阶 | E34: m3 | F34: 0.276 | G34: 17.93 | H34: 4.95
A35: 27 | B35: 010507001004 | D35: 散水 | E35: m2 | F35: 75.700 | G35: 3.47 | H35: 262.58
A36: 28 | B36: 010515001003 | D36: 现浇构件钢筋 | E36: t | F36: 0.412 | G36: 710.24 | H36: 292.62
A37: 29 | B37: 010515001010 | D37: 现浇构件钢筋 | E37: t | F37: 0.063 | G37: 445.08 | H37: 28.04
A38: 30 | B38: 010515001004 | D38: 现浇构件钢筋φ8~10 | E38: t | F38: 5.702 | G38: 688.19 | H38: 3924.06
A39: 31 | B39: 010515001005 | D39: 现浇构件钢筋φ12~16 | E39: t | F39: 9.452 | G39: =ROUND(H39/F39,2) -> 500.16 | H39: 4727.51
A40: 32 | B40: 010515001006 | D40: 现浇构件钢筋φ18～25 | E40: t | F40: 16.025 | G40: 500.16 | H40: 8015.06
A41: 33 | B41: 010515001012 | D41: 现浇构件钢筋25以外 | E41: t | F41: 1.292 | G41: 442.31 | H41: 571.46
A42: 34 | B42: 010515001007 | D42: 现浇构件箍筋 | E42: t | F42: 7.004 | G42: 1246.10 | H42: 8727.68
A43: 35 | B43: 010515001008 | D43: 现浇构件箍筋φ8~10 | E43: t | F43: 0.644 | G43: 1451.69 | H43: 934.89
A44: 36 | B44: 010515001014 | D44: 现浇构件箍筋φ12~16 | E44: t | F44: 0.291 | G44: 750.55 | H44: 218.41
A45: 37 | B45: 010515001013 | D45: 现浇构件箍筋φ18~25 | E45: t | F45: 1.651 | G45: 750.54 | H45: 1239.14
A46: 38 | B46: 010516003002 | D46: 机械连接 | E46: 个 | F46: 196.000 | G46: 4.56 | H46: 893.17
A47: 39 | B47: 010516003003 | D47: 机械连接 | E47: 个 | F47: 92.000 | G47: 5.90 | H47: 542.71
D48: 金属结构工程
A49: 40 | B49: 010607005001 | D49: 砌块墙钢丝网加固-不同材质交接处 | E49: m2 | F49: 7.645 | G49: 8.52 | H49: 65.17
B50: 五 | D50: 第八章 门窗工程
A51: 41 | B51: 010802001002 | D51: 米白色钢制普通门 | E51: m2 | F51: 25.110 | G51: 32.00 | H51: 803.46
A52: 42 | B52: 010807001001 | D52: 铝合金推拉窗 | E52: m2 | F52: 38.250 | G52: 21.72 | H52: 830.95
A53: 43 | B53: 010807001002 | D53: 铝合金固定窗 | E53: m2 | F53: 30.600 | G53: 16.40 | H53: 501.84
B54: 六 | D54: 第九章 屋面及防水工程
A55: 44 | B55: 010902001003 | D55: 屋面2-混凝土保护层屋面(不上人屋面)I级防水 | E55: m2 | F55: 348.000 | G55: 42.97 | H55: 14952.25
A56: 45 | B56: 010902003001 | D56: 屋面3-雨棚屋面(不上人屋面)II级防水 | E56: m2 | F56: 70.400 | G56: 19.96 | H56: 1405.29
A57: 46 | B57: 010903003001 | D57: 墙身防潮层 | E57: m2 | F57: 22.680 | G57: 8.29 | H57: 188.13
B58: 七 | D58: 保温、隔热、防腐工程
A59: 47 | B59: 011001001002 | D59: 屋面1、2-保温层 | E59: m2 | F59: 348.000 | G59: 12.07 | H59: 4201.96
B60: 八 | D60: 楼地面装饰工程
A61: 48 | B61: 011102003002 | D61: 地1 | E61: m2 | F61: 309.100 | G61: 36.73 | H61: 11354.73
A62: 49 | B62: 011105003001 | D62: 踢1 | E62: m2 | F62: 11.380 | G62: 66.15 | H62: 752.76
A63: 50 | B63: 011102003003 | D63: 环氧树脂自流平面层(地2) | E63: m2 | F63: 33.060 | G63: 44.45 | H63: 1469.64
A64: 51 | B64: 011102001001 | D64: 坡道-金刚砂 | E64: m2 | F64: 19.440
A65: 52 | B65: 011102001002 | D65: 台阶及坡道-花岗岩贴面 | E65: m2 | F65: 2.760 | G65: 58.61 | H65: 161.75
B66: 九 | D66: 墙、柱面装饰与隔断、幕墙工程
A67: 53 | B67: 011201001008 | D67: 石粉类涂料内墙面 (内墙2) | E67: m2 | F67: 595.630 | G67: 24.14 | H67: 14380.64
A68: 54 | B68: 011201001009 | D68: 真石漆墙面 (外墙1) | E68: m2 | F68: 509.530 | G68: 44.27 | H68: 22555.51
A69: 55 | B69: 011204003001 | D69: 墙裙 | E69: m2 | F69: 19.350 | G69: 32.89 | H69: 636.51
B70: 十一 | D70: 油漆、涂料、裱糊工程
A71: 56 | B71: 011201001006 | D71: 外墙1-真石漆 | E71: m2 | F71: 509.530 | G71: =ROUND(H71/F71,2) -> 26.25 | H71: 13374.02
A72: 57 | B72: 011301001005 | D72: 石粉类涂料顶棚 (棚2) | E72: m2 | F72: 465.720 | G72: =ROUND(H72/F72,2) -> 29.42 | H72: 13699.18
B73: 十二 | D73: 其他
A74: 58 | B74: 040201022001 | D74: 排水沟、截水沟 | E74: m | F74: 11.600 | G74: =ROUND(H74/F74,2) -> 44.47 | H74: 515.89
A75: 59 | B75: 010606008002 | D75: 钢爬梯 | E75: t | F75: 0.300 | G75: =ROUND(H75/F75,2) -> 852.33 | H75: 255.70
D76: 措施项目
A77: 60 | B77: 粤011701008002 | D77: 综合钢脚手架 | E77: m2 | F77: 508.800 | G77: =ROUND(H77/F77,2) -> 14.73 | H77: 7492.58
A78: 61 | B78: 粤011701010003 | D78: 满堂脚手架 | E78: m2 | F78: 342.160 | G78: 7.43 | H78: 2542.99
A79: 62 | B79: 粤011701011003 | D79: 里脚手架 | E79: m2 | F79: 182.400 | G79: 7.32 | H79: 1335.74
A80: 73 | B80: 011702001003 | D80: 垫层 | E80: m2 | F80: 52.350 | G80: 10.66 | H80: 558.17
A81: 74 | B81: 011702001001 | D81: 桩承台模板 | E81: m2 | F81: 66.210 | G81: 23.10 | H81: 1529.43
A82: 75 | B82: 011702001002 | D82: 满堂基础模板 有梁式 | E82: m2 | F82: 13.100 | G82: 25.08 | H82: 328.56
A83: 76 | B83: 011702005001 | D83: 梁模板 基础梁模板 | E83: m2 | F83: 157.780 | G83: 24.74 | H83: 3903.17
A84: 77 | B84: 011702002003 | D84: 矩形柱模板 | E84: m2 | F84: 132.790 | G84: 36.62 | H84: 4863.27
A85: 78 | B85: 011702002005 | D85: 矩形柱模板 | E85: m2 | F85: 33.340 | G85: 39.39 | H85: 1313.33
A86: 79 | B86: 011702003005 | D86: 构造柱 | E86: m2 | F86: 12.070 | G86: 41.58 | H86: 501.86
A87: 80 | B87: 011702009002 | D87: 过梁 | E87: m2 | F87: 33.500 | G87: 25.56 | H87: 856.34
A88: 81 | B88: 011702014002 | D88: 有梁板 | E88: m2 | F88: 310.510 | G88: 41.71 | H88: 12949.97
A89: 82 | B89: 011702006001 | D89: 矩形梁 | E89: m2 | F89: 171.650 | G89: 45.29 | H89: 7773.35
A90: 83 | B90: 011702006002 | D90: 矩形梁 | E90: m2 | F90: 134.490 | G90: 48.77 | H90: 6558.97
A91: 84 | B91: 011702023001 | D91: 雨篷、悬挑板、阳台板 | E91: m2 | F91: 111.630 | G91: 39.95 | H91: 4459.38
A92: 85 | B92: 011702025002 | D92: 栏板、反檐 | E92: m2 | F92: 132.630 | G92: 25.05 | H92: 3321.80
A93: 86 | B93: 011703001001 | D93: 垂直运输 | E93: m2 | F93: 364.800 | G93: 21.64 | H93: 7893.69
A94: 合计 | H94: =SUM(H6:H93) -> 245838.74

Sheet 22【污泥脱水车间】
A1: 劳务采购工程量清单
A2: 工程名称: | C2: 污泥脱水车间
A3: 序号 | B3: 项目编码 | D3: 项目名称 | E3: 单位 | F3: 工程量 | G3: 人工费
G4: 单价（元） | H4: 合价（元）
B5: 二 | D5: 桩基工程
A6: 1 | B6: 040301002001 | D6: φ600预制钢筋混凝土管桩 | E6: m | F6: 929.750 | G6: =ROUND(H6/F6,2) -> 24.96 | H6: 23204.33
A7: 2 | B7: 010301002002 | D7: 预埋铁件 | E7: t | F7: 0.207 | G7: =ROUND(H7/F7,2) -> 2644.98 | H7: 547.51
A8: 3 | B8: 010515001023 | D8: 桩头插筋 | E8: t | F8: 2.730 | G8: 359.92 | H8: 982.58
A9: 4 | B9: 010301004001 | D9: 截(凿)桩头 | E9: 个 | F9: 50.000 | G9: 34.62 | H9: 1730.79
B10: 三 | D10: 砌筑工程
A11: 5 | B11: 010401001003 | D11: 砖基础 | E11: m3 | F11: 5.980 | G11: 155.52 | H11: 930.02
A12: 6 | B12: 010402001006 | D12: 200厚外墙 | E12: m3 | F12: 97.860 | G12: 161.77 | H12: 15831.11
A13: 7 | B13: 010402001007 | D13: 200厚内墙 | E13: m3 | F13: 17.220 | G13: 154.47 | H13: 2659.89
B14: 四 | D14: 混凝土及钢筋混凝土工程
A15: 8 | B15: 010501001001 | D15: 垫层 | E15: m3 | F15: 20.340 | G15: 57.84 | H15: 1176.38
A16: 9 | B16: 010501005002 | D16: 桩承台基础 | E16: m3 | F16: 80.880 | G16: 45.69 | H16: 3695.57
A17: 10 | B17: 010501004002 | D17: 满堂基础 | E17: m3 | F17: 78.890 | G17: 45.69 | H17: 3604.64
A18: 11 | B18: 010502001002 | D18: 矩形柱 | E18: m3 | F18: 85.630 | G18: 122.15 | H18: 10459.53
A19: 12 | B19: 010502002002 | D19: 构造柱 | E19: m3 | F19: 1.090 | G19: 188.53 | H19: 205.50
A20: 13 | B20: 010503005003 | D20: 圈梁、过梁 | E20: m3 | F20: 5.990 | G20: 115.67 | H20: 692.88
A21: 14 | B21: 010505001002 | D21: 有梁板 | E21: m3 | F21: 125.050 | G21: 50.65 | H21: 6333.92
A22: 15 | B22: 010505006002 | D22: 栏板（女儿墙） | E22: m3 | F22: 10.260 | G22: 176.02 | H22: 1806.01
A23: 16 | B23: 010505008002 | D23: 雨蓬板 | E23: m3 | F23: 13.940 | G23: 172.70 | H23: 2407.40
A24: 17 | B24: 040303002001 | D24: C20设备基础 | E24: m3 | F24: 3.640 | G24: 60.28 | H24: 219.41
A25: 18 | B25: 010507001007 | D25: 坡道 | E25: m2 | F25: 21.420 | G25: 14.58 | H25: 312.37
A26: 19 | B26: 010507004002 | D26: 台阶 | E26: m2 | F26: 2.760 | G26: 11.45 | H26: 31.60
A27: 20 | B27: 010507001008 | D27: 散水 | E27: m2 | F27: 83.000 | G27: 3.47 | H27: 288.02
A28: 21 | B28: 010515001015 | D28: 现浇构件箍筋圆钢 Ф10以内 | E28: t | F28: 0.528 | G28: 1246.10 | H28: 657.94
A29: 22 | B29: 010515001016 | D29: 现浇构件箍筋φ8~10 | E29: t | F29: 10.515 | G29: 1451.69 | H29: 15264.52
A30: 23 | B30: 010515001022 | D30: 现浇构件箍筋φ12～16 | E30: t | F30: 1.315 | G30: 750.54 | H30: 986.96
A31: 24 | B31: 010515001017 | D31: 现浇构件圆钢 Ф10以内 | E31: t | F31: 0.679 | G31: 710.25 | H31: 482.26
A32: 25 | B32: 010515001018 | D32: 现浇构件钢筋φ8~10 | E32: t | F32: 10.584 | G32: 688.19 | H32: 7283.80
A33: 26 | B33: 010515001019 | D33: 现浇构件钢筋φ12~16 | E33: t | F33: 16.559 | G33: 500.16 | H33: 8282.15
A34: 27 | B34: 010515001020 | D34: 现浇构件钢筋φ18～25 | E34: t | F34: 42.439 | G34: 500.16 | H34: 21226.29
A35: 28 | B35: 010516003004 | D35: 机械连接 | E35: 个 | F35: 576.000 | G35: 4.56 | H35: 2624.83
A36: 29 | B36: 010516003005 | D36: 机械连接 | E36: 个 | F36: 169.000 | G36: 5.90 | H36: 996.93
D37: 金属结构工程
A38: 30 | B38: 010607005001 | D38: 砌块墙钢丝网加固-不同材质交接处 | E38: m2 | F38: 11.700 | G38: 6.86 | H38: 80.26
B39: 六 | D39: 第八章 门窗工程
A40: 31 | B40: 010802003003 | D40: 钢质甲级双扇防火门 | E40: m2 | F40: 13.770 | G40: =ROUND(H40/F40,2) -> 17.35 | H40: 238.89
A41: 32 | B41: 010802003004 | D41: 钢质甲级单扇防火门 | E41: m2 | F41: 5.060 | G41: 17.45 | H41: 88.29
A42: 33 | B42: 010802003005 | D42: 防火门闭门器 | E42: 套 | F42: 8.000 | G42: 25.58 | H42: 204.60
A43: 34 | B43: 010802001005 | D43: 米白色钢制普通门 | E43: m2 | F43: 17.100 | G43: 43.59 | H43: 745.34
A44: 35 | B44: 010802001006 | D44: 木饰面铝合金平开门 | E44: m2 | F44: 2.300 | G44: 32.01 | H44: 73.62
A45: 36 | B45: 010807001005 | D45: 铝合金推拉窗 | E45: m2 | F45: 29.350 | G45: 21.73 | H45: 637.86
A46: 37 | B46: 010807001006 | D46: 铝合金固定窗 | E46: m2 | F46: 54.800 | G46: 16.40 | H46: 898.71
B47: 六 | D47: 第九章 屋面及防水工程
A48: 38 | B48: 010902001002 | D48: 屋面2-混凝土保护层屋面(不上人屋面)I级防水 | E48: m2 | F48: 442.400 | G48: 42.95 | H48: 19000.99
A49: 39 | B49: 010902003002 | D49: 屋面3-雨棚屋面(不上人屋面)II级防水 | E49: m2 | F49: 97.110 | G49: 19.05 | H49: 1849.92
A50: 40 | B50: 010903003001 | D50: 墙身防潮层 | E50: m2 | F50: 23.120 | G50: 8.28 | H50: 191.45
A51: 41 | B51: 010904003001 | D51: 棚4-防水层 | E51: m2 | F51: 4.050 | G51: 4.85 | H51: 19.65
A52: 42 | B52: 010903003002 | D52: 电缆沟防水墙面 | E52: m2 | F52: 2.760 | G52: 9.67 | H52: 26.69
A53: 43 | B53: 010903002002 | D53: 电缆沟防水涂料 | E53: m2 | F53: 6.900 | G53: 6.41 | H53: 44.24
B54: 七 | D54: 保温、隔热、防腐工程
A55: 44 | B55: 011001001002 | D55: 屋面1、2-保温层 | E55: m2 | F55: 442.400 | G55: 12.07 | H55: 5341.80
B56: 八 | D56: 楼地面装饰工程
A57: 45 | B57: 011102003004 | D57: 地1 | E57: m2 | F57: 534.920 | G57: 36.73 | H57: 19649.44
A58: 46 | B58: 011102003005 | D58: 地4 | E58: m2 | F58: 4.320 | G58: 67.19 | H58: 290.25
A59: 47 | B59: 011105003002 | D59: 踢1 | E59: m2 | F59: 12.410 | G59: 65.98 | H59: 818.80
A60: 48 | B60: 011102001004 | D60: 坡道-金刚砂 | E60: m2 | F60: 21.420
A61: 49 | B61: 011102001004 | D61: 台阶-花岗岩贴面 | E61: m2 | F61: 2.760 | G61: 55.84 | H61: 154.13
B62: 九 | D62: 墙、柱面装饰与隔断、幕墙工程
A63: 50 | B63: 011201001011 | D63: 内墙2 | E63: m2 | F63: 964.500 | G63: 15.89 | H63: 15325.13
A64: 51 | B64: 011202001003 | D64: 内墙2-独立柱 | E64: m2 | F64: 125.610 | G64: 27.89 | H64: 3503.89
A65: 52 | B65: 011204003003 | D65: 内墙3 | E65: m2 | F65: 37.270 | G65: 70.55 | H65: 2629.26
A66: 53 | B66: 011201001010 | D66: 真石漆墙面 (外墙1) | E66: m2 | F66: 951.630 | G66: 44.27 | H66: 42127.24
B67: 十 | D67: 天棚工程
A68: 54 | B68: 011302001002 | D68: 铝合金方形板吊顶 (棚4) | E68: m2 | F68: 4.050 | G68: 24.15 | H68: 97.80
B69: 十一 | D69: 油漆、涂料、裱糊工程
A70: 55 | B70: 011201001012 | D70: 外墙1-真石漆 | E70: m2 | F70: 951.630 | G70: 26.25 | H70: 24978.83
A71: 56 | B71: 011301001006 | D71: 石粉类涂料顶棚 (棚2) | E71: m2 | F71: 727.520 | G71: =ROUND(H71/F71,2) -> 25.33 | H71: 18428.23
B72: 十二 | D72: 其他
A73: 57 | B73: 040201022002 | D73: 排水沟、截水沟 400(深)*600(宽) | E73: m | F73: 34.400 | G73: 57.67 | H73: 1983.78
A74: 58 | B74: 010606008003 | D74: 钢楼梯 | E74: t | F74: 0.300 | G74: 852.33 | H74: 255.70
A75: 59 | B75: 010401014005 | D75: 电缆沟垫层 | E75: m2 | F75: 4.140 | G75: 21.81 | H75: 90.31
A76: 60 | B76: 010401014004 | D76: 电缆沟支墩 | E76: m3 | F76: 1.380 | G76: 187.03 | H76: 258.10
A77: 61 | B77: 010516002001 | D77: 预埋铁件 | E77: t | F77: 0.110 | G77: 2645.00 | H77: 290.95
A78: 62 | B78: 011210005001 | D78: 挡鼠板 | E78: m2 | F78: 2.350 | G78: 3.58 | H78: 8.41
A79: 63 | B79: 040402016002 | D79: 10mm厚不锈钢花纹钢盖板 | E79: m | F79: 6.900 | G79: 12.27 | H79: 84.67
A80: 64 | B80: 011503001002 | D80: 不锈钢栏杆 | E80: m | F80: 43.720 | G80: 33.48 | H80: 1463.94
A81: 65 | B81: 010606008002 | D81: 钢梯 | E81: t | F81: 0.487 | G81: 829.65 | H81: 404.04
A82: 66 | B82: 010604001001 | D82: 钢梁 | E82: t | F82: 3.266 | G82: 517.49 | H82: 1690.12
A83: 67 | B83: 011505001001 | D83: 洗手台 | E83: m2 | F83: 1.350 | G83: 145.73 | H83: 196.73
A84: 68 | B84: 011207001002 | D84: 玻璃镜面 | E84: m2 | F84: 0.630 | G84: 17.10 | H84: 10.77
D85: 措施项目
A86: 69 | B86: 粤011701008002 | D86: 综合钢脚手架 | E86: m2 | F86: 939.890 | G86: 14.73 | H86: 13840.95
A87: 70 | B87: 粤011701010003 | D87: 满堂脚手架 | E87: m2 | F87: 387.360 | G87: 18.63 | H87: 7216.82
A88: 71 | B88: 粤011701010004 | D88: 满堂脚手架 | E88: m2 | F88: 76.320 | G88: 7.43 | H88: 567.02
A89: 72 | B89: 粤011701011004 | D89: 里脚手架 | E89: m2 | F89: 193.680 | G89: 17.04 | H89: 3299.61
A90: 73 | B90: 粤011701011003 | D90: 里脚手架 | E90: m2 | F90: 38.160 | G90: 7.33 | H90: 279.75
A91: 84 | B91: 011702001001 | D91: 垫层 | E91: m2 | F91: 60.570 | G91: 10.66 | H91: 645.51
A92: 85 | B92: 011702001002 | D92: 满堂基础 | E92: m2 | F92: 10.540 | G92: 24.99 | H92: 263.37
A93: 86 | B93: 011702005001 | D93: 基础梁 | E93: m2 | F93: 148.280 | G93: 24.74 | H93: 3668.19
A94: 87 | B94: 011702001003 | D94: 桩承台 | E94: m2 | F94: 122.470 | G94: 23.11 | H94: 2830.11
A95: 88 | B95: 011702002006 | D95: 矩形柱模板 | E95: m2 | F95: 12.720 | G95: 53.23 | H95: 677.10
A96: 89 | B96: 011702002007 | D96: 矩形柱模板 | E96: m2 | F96: 293.870 | G96: 36.87 | H96: 10835.63
A97: 90 | B97: 011702002009 | D97: 矩形柱 | E97: m2 | F97: 209.840 | G97: 34.29 | H97: 7195.93
A98: 91 | B98: 011702002008 | D98: 矩形柱模板 | E98: m2 | F98: 32.940 | G98: 31.69 | H98: 1043.91
A99: 92 | B99: 011702003006 | D99: 构造柱 | E99: m2 | F99: 15.020 | G99: 41.42 | H99: 622.18
A100: 93 | B100: 011702009003 | D100: 过梁 | E100: m2 | F100: 38.530 | G100: 25.54 | H100: 984.15
A101: 94 | B101: 011702014003 | D101: 有梁板 | E101: m2 | F101: 439.260 | G101: 41.71 | H101: 18321.75
A102: 95 | B102: 011702006005 | D102: 矩形梁 | E102: m2 | F102: 230.030 | G102: 45.27 | H102: 10412.86
A103: 96 | B103: 011702006004 | D103: 矩形梁 | E103: m2 | F103: 292.900 | G103: 63.11 | H103: 18484.71
A104: 97 | B104: 011702023003 | D104: 雨篷、悬挑板、阳台板 | E104: m2 | F104: 154.410 | G104: 39.96 | H104: 6169.57
A105: 98 | B105: 011702025004 | D105: 女儿墙模板 | E105: m2 | F105: 171.010 | G105: 25.05 | H105: 4283.74
A106: 99 | B106: 011702026001 | D106: 电缆沟、地沟 | E106: m2 | F106: 83.330 | G106: 23.01 | H106: 1917.65
A107: 100 | B107: 011702001004 | D107: 设备基础 | E107: m2 | F107: 13.510 | G107: 10.65 | H107: 143.82
A108: 101 | B108: 011703001001 | D108: 垂直运输 | E108: m2 | F108: 510.420 | G108: 21.64 | H108: 11044.67
A109: 合计 | H109: =SUM(H6:H108) -> 423856.97

Sheet 23【厂区围墙及大门】
A1: 劳务采购工程量清单
A2: 工程名称: | C2: 厂区围墙及大门
A3: 序号 | B3: 项目编码 | D3: 项目名称 | E3: 单位 | F3: 工程量 | G3: 人工费
G4: 单价（元） | H4: 合价（元）
D5: 厂区围墙及大门
D6: 围墙拆除及恢复（管线迁改）
A7: 1 | B7: 010502001004 | D7: 矩形柱 | E7: m3 | F7: 18.056 | G7: =ROUND(H7/F7,2) -> 122.17 | H7: 2205.98
A8: 2 | B8: 010503001002 | D8: 基础梁 | E8: m3 | F8: 9.472 | G8: =ROUND(H8/F8,2) -> 36.42 | H8: 345.01
A9: 3 | B9: 011201001008 | D9: 外墙1-真石漆 | E9: m2 | F9: 184.630 | G9: 43.62 | H9: 8053.71
A10: 4 | B10: 010501001004 | D10: 垫层 | E10: m3 | F10: 10.360 | G10: 57.84 | H10: 599.18
A11: 5 | B11: 010501003002 | D11: 独立基础 | E11: m3 | F11: 15.651 | G11: 45.69 | H11: 715.08
A12: 6 | B12: 010515001005 | D12: 现浇构件钢筋 | E12: t | F12: 1.628 | G12: 1246.10 | H12: 2028.65
A13: 7 | B13: 010515001006 | D13: 现浇构件钢筋 | E13: t | F13: 2.331 | G13: 478.16 | H13: 1114.59
A14: 8 | B14: 040501004003 | D14: UPVC泄水管 φ75 | E14: m | F14: 7.400 | G14: 6.22 | H14: 46.01
A15: 9 | B15: 010903004003 | D15: 墙面变形缝 | E15: m | F15: 0.740 | G15: 9.97 | H15: 7.38
A16: 11 | B16: 011602001001 | D16: 拆除混凝土基础 | E16: m3 | F16: 2.830 | G16: 44.07 | H16: 124.71
A17: 12 | B17: 011601001001 | D17: 砖砌体拆除 | E17: m3 | F17: 10.480 | G17: 87.79 | H17: 920.03
A18: 13 | B18: 011609001001 | D18: 铝制围栏拆除 | E18: m | F18: 116.881 | G18: 21.30 | H18: 2489.66
A19: 14 | B19: 010101004001 | D19: 挖基坑土方 | E19: m3 | F19: 571.200 | G19: 3.36 | H19: 1917.81
A20: 15 | B20: 010103001001 | D20: 回填方 | E20: m3 | F20: 461.550 | G20: 12.32 | H20: 5685.99
A21: 16 | B21: 040103002001 | D21: 场内利用 | E21: m3 | F21: 40.418 | G21: 3.58 | H21: 144.50
A22: 17 | B22: 010502001003 | D22: 矩形柱 | E22: m3 | F22: 124.440 | G22: 122.15 | H22: 15200.08
A23: 18 | B23: 010503001001 | D23: 基础梁 | E23: m3 | F23: 65.024 | G23: 36.43 | H23: 2368.81
A24: 19 | B24: 011201001007 | D24: 外墙1-真石漆 | E24: m2 | F24: 1269.260 | G24: 43.63 | H24: 55376.89
A25: 20 | B25: 010501001003 | D25: 垫层 | E25: m3 | F25: 71.400 | G25: 57.84 | H25: 4129.49
A26: 21 | B26: 010501003001 | D26: 独立基础 | E26: m3 | F26: 107.865 | G26: 45.69 | H26: 4928.80
A27: 22 | B27: 010515001001 | D27: 现浇构件钢筋 | E27: t | F27: 11.176 | G27: 1246.10 | H27: 13926.41
A28: 23 | B28: 010515001002 | D28: 现浇构件钢筋 | E28: t | F28: 16.002 | G28: 478.16 | H28: 7651.52
A29: 24 | B29: 040501004001 | D29: UPVC泄水管 φ75 | E29: m | F29: 50.800 | G29: 6.22 | H29: 315.82
A30: 25 | B30: 010903004002 | D30: 墙面变形缝 | E30: m | F30: 18.220 | G30: 10.53 | H30: 191.86
D31: 围墙大门
A32: 27 | B32: 010804005002 | D32: 单向开启暗装式(全封闭)伸缩钢制大门 | E32: m2 | F32: 13.500 | G32: =ROUND(H32/F32,2) -> 21.69 | H32: 292.80
D33: 地磅
A34: 28 | B34: 010501006002 | D34: 地磅基础 | E34: m3 | F34: 21.600 | G34: 45.69 | H34: 986.95
A35: 29 | B35: 010501001005 | D35: 垫层 | E35: m3 | F35: 4.157 | G35: 57.88 | H35: 240.60
A36: 30 | B36: 010515001003 | D36: 现浇构件钢筋 | E36: t | F36: 0.799 | G36: 478.16 | H36: 382.05
A37: 31 | B37: 010515001004 | D37: 现浇构件钢筋 | E37: t | F37: 0.198 | G37: 750.56 | H37: 148.61
A38: 32 | B38: 010516002001 | D38: 铁预埋件 | E38: t | F38: 0.365 | G38: 2644.99 | H38: 965.42
A39: 33 | B39: 040501004002 | D39: DN150UPVC排水管 | E39: m | F39: 1.500 | G39: 10.86 | H39: 16.29
D40: 措施项目
A41: 34 | B41: 粤011701009001 | D41: 活动脚手架 | E41: m2 | F41: 1022.000 | G41: =ROUND(H41/F41,2) -> 1.60 | H41: 1630.19
A42: 46 | B42: 011702001001 | D42: 垫层 | E42: m2 | F42: 84.957 | G42: 10.66 | H42: 905.44
A43: 47 | B43: 011702005001 | D43: 基础梁 | E43: m2 | F43: 770.880 | G43: 24.74 | H43: 19068.20
A44: 48 | B44: 011702002001 | D44: 矩形柱模板 | E44: m2 | F44: 1378.240 | G44: 31.73 | H44: 43729.07
A45: 49 | B45: 011702001002 | D45: 独立基础 | E45: m2 | F45: 449.680 | G45: 19.22 | H45: 8641.19
A46: 50 | B46: 011702001003 | D46: 筏板基础 | E46: m2 | F46: 14.500 | G46: 19.22 | H46: 278.63
A47: 合计 | H47: =SUM(H7:H46) -> 207773.41

Sheet 24【厂区照明工程-安装工程】
A1: 劳务采购工程量清单
A2: 工程名称: | C2: 厂区照明工程-安装工程
A3: 序号 | B3: 项目编码 | D3: 项目名称 | E3: 单位 | F3: 工程量 | G3: 人工费
G4: 单价（元） | H4: 合价（元）
D5: 厂区照明工程
A6: 1 | B6: 030412007001 | D6: 庭园型路灯（H=3.5m） | 1x36W LED光源 色温约≤4500K | E6: 套 | F6: 95.000 | G6: =ROUND(H6/F6,2) -> 271.14 | H6: 25758.53
A7: 2 | B7: 030411001001 | D7: PC32 | E7: m | F7: 1742.400 | G7: =ROUND(H7/F7,2) -> 6.39 | H7: 11126.10
A8: 3 | B8: 030408001001 | D8: 照明线 | YJV-1kV 5×6 | E8: m | F8: 1534.000 | G8: 2.55 | H8: 3914.74
A9: 4 | B9: 030408001002 | D9: 照明线 | YJV-1kV 3×6 | E9: m | F9: 208.400 | G9: 1.96 | H9: 408.78
A10: 5 | B10: 030412007002 | D10: 球场高杆灯 篮球场专用防眩灯 | 3×150W 色温5500K IP65 LED灯源 | E10: 套 | F10: 6.000 | G10: 1127.24 | H10: 6763.46
A11: 6 | B11: 030404016001 | D11: 厂区排水泵控制箱 | 非标WxHxD=450x450x300mm 不锈钢IP55 | E11: 台 | F11: 1.000 | G11: 275.83 | H11: 275.83
D12: 土石方工程
A13: 7 | B13: 040101002001 | D13: 挖沟槽土方 | E13: m3 | F13: 64.880 | G13: 6.03 | H13: 390.95
A14: 8 | B14: 040103001001 | D14: 回填方 | E14: m3 | F14: 64.160 | G14: 12.30 | H14: 789.39
D15: 措施项目
A16: 16 | B16: 031301017001 | D16: 脚手架搭拆 | E16: 项 | F16: 1.000 | G16: 772.22 | H16: 772.22
A17: 合计 | H17: =SUM(H6:H16) -> 50200.00

Sheet 25【安防工程-安装工程】
A1: 劳务采购工程量清单
A2: 工程名称: | C2: 安防工程-安装工程
A3: 序号 | B3: 项目编码 | D3: 项目名称 | E3: 单位 | F3: 工程量 | G3: 人工费
G4: 单价（元） | H4: 合价（元）
D5: 安防系统
A6: 1 | B6: 030507008001 | D6: 高清红外球形摄像机 | E6: 台 | F6: 54.000 | G6: =ROUND(H6/F6,2) -> 195.92 | H6: 10579.68
A7: 2 | B7: 030507013001 | D7: 数字硬盘录像机 | 32路视频输入 4口 硬盘8Tx4 含操作键盘 | E7: 台 | F7: 1.000 | G7: =ROUND(H7/F7,2) -> 457.40 | H7: 457.40
A8: 3 | B8: 030507013002 | D8: 数字硬盘录像机 | 4口 无硬盘 含操作键盘 | E8: 台 | F8: 1.000 | G8: 152.33 | H8: 152.33
A9: 4 | B9: 030501012001 | D9: 工业级交换机 | 24电口，1000M | E9: 台 | F9: 1.000 | G9: 146.89 | H9: 146.89
A10: 5 | B10: 粤030503014001 | D10: 安防监控主机（含32寸显示器、键盘、鼠标） | E10: 台 | F10: 1.000 | G10: 266.63 | H10: 266.63
A11: 6 | B11: 030507014001 | D11: 32寸显示器（不含主材） | E11: 台 | F11: 1.000 | G11: 106.83 | H11: 106.83
A12: 7 | B12: 030501017001 | D12: 视频监控软件 | E12: 套 | F12: 1.000 | G12: 78.38 | H12: 78.38
A13: 8 | B13: 030404017001 | D13: 安防视频箱 | E13: 台 | F13: 13.000 | G13: 172.70 | H13: 2245.10
A14: 9 | B14: 030502013001 | D14: 4口光纤收发器 | E14: 台 | F14: 17.000 | G14: 212.99 | H14: 3620.83
A15: 10 | B15: 040205003001 | D15: 监控立杆 | H=4m，不锈钢立杆 | E15: 根 | F15: 9.000 | G15: 141.40 | H15: 1272.57
A16: 11 | B16: 040205003002 | D16: 监控立杆 | H=2m，不锈钢立杆 | E16: 根 | F16: 4.000 | G16: 51.10 | H16: 204.40
A17: 12 | B17: 030507001001 | D17: 脉冲电子围栏前端 | E17: 套 | F17: 7.000 | G17: 24.20 | H17: 169.40
A18: 13 | B18: 030507001002 | D18: 脉冲电子围栏报警主机 | E18: 套 | F18: 1.000 | G18: 302.50 | H18: 302.50
A19: 14 | B19: 031101001001 | D19: 开关电源电池 | 12V,7Ah | E19: 台 | F19: 1.000 | G19: 64.42 | H19: 64.42
A20: 15 | B20: 030501017002 | D20: 电子围栏管理平台软件 | E20: 套 | F20: 1.000 | G20: 78.38 | H20: 78.38
A21: 16 | B21: 030507014002 | D21: 55"液晶电视 | E21: 台 | F21: 1.000 | G21: 152.33 | H21: 152.33
A22: 17 | B22: 030507006001 | D22: 门禁控制器（含读卡器、电磁锁、支架等） | E22: 台 | F22: 3.000 | G22: 97.96 | H22: 293.88
A23: 18 | B23: 030507005001 | D23: 发卡器（含卡片） | E23: 台 | F23: 1.000 | G23: 60.52 | H23: 60.52
A24: 19 | B24: 030507001003 | D24: 红外接近探测器 | E24: 套 | F24: 1.000 | G24: 147.06 | H24: 147.06
A25: 20 | B25: 030901013001 | D25: 悬挂式七氟丙烷气体灭火器 10KG | E25: 套 | F25: 2.000 | G25: 5.51 | H25: 11.01
A26: 21 | B26: 030408002001 | D26: 监控电源线 | KVVP-450/750V,3×2.5 | E26: m | F26: 2767.054 | G26: 3.99 | H26: 11032.98
A27: 22 | B27: 030502007001 | D27: 单模铠装光缆 | 2芯 | E27: m | F27: 2304.920 | G27: 1.85 | H27: 4267.29
A28: 23 | B28: 030502005001 | D28: 监控六类双绞线 | E28: m | F28: 1292.210 | G28: 0.99 | H28: 1279.28
A29: 24 | B29: 030411001001 | D29: 电缆管SC32 | E29: m | F29: 3941.626 | G29: 6.67 | H29: 26276.68
A30: 25 | B30: 030505005001 | D30: 高清视频线 | E30: m | F30: 5.000 | G30: 0.99 | H30: 4.95
A31: 26 | B31: 030507017005 | D31: 安全防范分系统调试 （摄像机） | E31: 台 | F31: 61.000 | G31: 45.64 | H31: 2784.04
A32: 27 | B32: 030507017006 | D32: 安全防范分系统调试 | E32: 系统 | F32: 1.000 | G32: 3024.91 | H32: 3024.91
D33: 措施项目
A34: 9 | B34: 031301017001 | D34: 脚手架搭拆 | E34: 项 | F34: 1.000 | G34: 2148.53 | H34: 2148.53
A35: 合计 | H35: =SUM(H6:H34) -> 71229.20

Sheet 26【工艺管线-安装工程】
A1: 劳务成本分析表
A2: 工程名称: | C2: 工艺管线-安装工程
A3: 序号 | B3: 项目编码 | D3: 项目名称 | E3: 单位 | F3: 工程量 | G3: 人工费
G4: 单价（元） | H4: 合价（元）
D5: 室外工艺管道
A6: 1 | B6: 030801005001 | D6: 钢管 D1420×12 | E6: m | F6: 194.440 | G6: =ROUND(H6/F6,2) -> 163.08 | H6: 31709.06
A7: 2 | B7: 030801005002 | D7: 钢管 D1020×10 | E7: m | F7: 342.700 | G7: =ROUND(H7/F7,2) -> 105.79 | H7: 36255.89
A8: 3 | B8: 030801005003 | D8: 钢管 D630×8 | E8: m | F8: 27.910 | G8: 64.76 | H8: 1807.57
A9: 4 | B9: 030801005004 | D9: 钢管 D530×8 | E9: m | F9: 7.020 | G9: 54.98 | H9: 385.98
A10: 5 | B10: 030804002001 | D10: 焊接弯头90° D1420*12 | E10: 个 | F10: 3.000 | G10: 452.24 | H10: 1356.72
A11: 6 | B11: 030804002002 | D11: 焊接弯头90° D1020*10 | E11: 个 | F11: 8.000 | G11: 373.12 | H11: 2984.98
A12: 7 | B12: 030804002003 | D12: 焊接弯头45° D1020*10 | E12: 个 | F12: 4.000 | G12: 373.12 | H12: 1492.49
A13: 8 | B13: 030804002006 | D13: 焊接弯头12° D1020*10 | E13: 个 | F13: 4.000 | G13: 373.12 | H13: 1492.49
A14: 9 | B14: 030804002004 | D14: 焊接弯头30° D630*8 | E14: 个 | F14: 4.000 | G14: 178.38 | H14: 713.53
A15: 10 | B15: 030804002005 | D15: 焊接弯头30° D530*8 | E15: 个 | F15: 1.000 | G15: 167.44 | H15: 167.44
A16: 11 | B16: 030804002007 | D16: 三通 DN1400 | E16: 个 | F16: 2.000 | G16: 452.24 | H16: 904.47
A17: 12 | B17: 030804002008 | D17: 异径三通 DN1400*DN1000 | E17: 个 | F17: 2.000 | G17: 452.24 | H17: 904.47
A18: 13 | B18: 030804002009 | D18: 异径管 DN1400*DN1000 | E18: 个 | F18: 1.000 | G18: 452.24 | H18: 452.24
A19: 14 | B19: 030801016003 | D19: UPVC管 DN25 | E19: m | F19: 65.000 | G19: 7.91 | H19: 514.16
A20: 15 | B20: 030411001002 | D20: 镀锌钢管 DN50 | E20: m | F20: 10.000 | G20: 11.40 | H20: 113.95
D21: 曝气管道
A22: 16 | B22: 030801007001 | D22: 不锈钢管 D820×6 | E22: m | F22: 28.150 | G22: 125.72 | H22: 3538.97
A23: 17 | B23: 030804002010 | D23: 不锈钢焊接弯头30° D820*6 | E23: 个 | F23: 2.000 | G23: 403.52 | H23: 807.04
D24: 加药管
A25: 18 | B25: 030801016001 | D25: UPVC管 DN25 | E25: m | F25: 888.530 | G25: 7.91 | H25: 7028.32
A26: 19 | B26: 030801016002 | D26: UPVC管 DN32 | E26: m | F26: 167.510 | G26: 8.14 | H26: 1363.86
A27: 20 | B27: 030411001001 | D27: 镀锌钢管 DN150 | E27: m | F27: 102.850 | G27: 30.51 | H27: 3138.45
A28: 21 | B28: 040501018001 | D28: 400*300加药管沟 | E28: m | F28: 165.000 | G28: 144.27 | H28: 23804.48
D29: 回流、剩余污泥系统
A30: 22 | B30: 030801005005 | D30: 钢管 D920×10 | E30: m | F30: 155.330 | G30: 94.28 | H30: 14644.90
A31: 23 | B31: 030801005006 | D31: 钢管 D219×6 | E31: m | F31: 176.910 | G31: 29.88 | H31: 5286.12
A32: 24 | B32: 030804002012 | D32: 焊接弯头90° D912*10 | E32: 个 | F32: 2.000 | G32: 268.13 | H32: 536.25
A33: 25 | B33: 030804002013 | D33: 焊接弯头45° D912*10 | E33: 个 | F33: 2.000 | G33: 268.13 | H33: 536.25
A34: 26 | B34: 030804002014 | D34: 焊接弯头90° D219*6 | E34: 个 | F34: 6.000 | G34: 59.05 | H34: 354.29
A35: 27 | B35: 030804002015 | D35: 焊接弯头45° D219*6 | E35: 个 | F35: 2.000 | G35: 59.05 | H35: 118.10
A36: 28 | B36: 030804002016 | D36: 正三通 D219*6 | E36: 个 | F36: 1.000 | G36: 59.05 | H36: 59.05
A37: 29 | B37: 040504002001 | D37: 污泥流量计井 1.4*1.4*2.0m | E37: 座 | F37: 2.000 | G37: 1352.60 | H37: 2705.20
A38: 30 | B38: 031003010001 | D38: 可曲绕橡胶接头 DN200 | E38: 个 | F38: 1.000 | G38: 178.11 | H38: 178.11
A39: 31 | B39: 030601004002 | D39: 电磁流量计 DN200 | E39: 台 | F39: 1.000 | G39: =ROUND(H39/F39,2) -> 443.75 | H39: 443.75
D40: 除臭管
A41: 32 | B41: 040501002001 | D41: 夹砂玻璃钢管 DN1600 | E41: m | F41: 58.870 | G41: 170.69 | H41: 10048.40
A42: 33 | B42: 040501002002 | D42: 夹砂玻璃钢管 DN1000 | E42: m | F42: 27.710 | G42: 81.17 | H42: 2249.20
A43: 34 | B43: 040501002003 | D43: 夹砂玻璃钢管 DN600 | E43: m | F43: 52.030 | G43: 49.86 | H43: 2594.33
A44: 35 | B44: 040501002004 | D44: 夹砂玻璃钢管 DN400 | E44: m | F44: 16.820 | G44: 26.90 | H44: 452.52
A45: 36 | B45: 040501002005 | D45: 夹砂玻璃钢管 DN300 | E45: m | F45: 82.010 | G45: 20.93 | H45: 1716.62
A46: 37 | B46: 040501002006 | D46: 夹砂玻璃钢管 DN200 | E46: m | F46: 23.220 | G46: 15.11 | H46: 350.93
D47: 土石方
A48: 38 | B48: 040101002007 | D48: 挖沟槽土方 2m内 | E48: m3 | F48: 3137.140 | G48: 6.31 | H48: 19800.61
A49: 39 | B49: 040101002008 | D49: 挖沟槽土方 4m内 | E49: m3 | F49: 2095.390 | G49: 6.71 | H49: 14069.49
A50: 40 | B50: 040103001002 | D50: 回填石屑 | E50: m3 | F50: 2903.770 | G50: 15.98 | H50: 46415.79
A51: 41 | B51: 040305001001 | D51: 中粗砂垫层 | E51: m3 | F51: 57.430 | G51: 39.68 | H51: 2279.05
A52: 42 | B52: 040103001003 | D52: 回填中粗砂 | E52: m3 | F52: 824.440 | G52: 15.98 | H52: 13177.62
A53: 43 | B53: 040103002001 | D53: 余方弃置 | E53: m3 | F53: 5233.340 | G53: 6.29 | H53: 32941.86
D54: 进水流量计井 4.2*3.3*2.7m
D55: 结构部分
A56: 44 | B56: 040303001001 | D56: 混凝土垫层 | E56: m3 | F56: 2.430 | G56: 111.19 | H56: 270.18
A57: 45 | B57: 040601006001 | D57: 现浇混凝土池底板 | E57: m3 | F57: 6.633 | G57: 90.01 | H57: 597.02
A58: 46 | B58: 040601010001 | D58: 现浇混凝土池盖板 | E58: m3 | F58: 0.595 | G58: 105.26 | H58: 62.63
A59: 47 | B59: 040601007001 | D59: 现浇混凝土池壁 | E59: m3 | F59: 11.200 | G59: 102.09 | H59: 1143.40
A60: 48 | B60: 010505001001 | D60: 有梁板 | E60: m3 | F60: 1.673 | G60: 46.52 | H60: 77.83
A61: 49 | B61: 040601030001 | D61: 井、池渗漏试验 | E61: m3 | F61: 42.966 | G61: 5.90 | H61: 253.43
A62: 50 | B62: 040901001001 | D62: 现浇构件钢筋 | E62: t | F62: 0.089 | G62: 687.64 | H62: 61.20
A63: 51 | B63: 040901001002 | D63: 现浇构件钢筋 | E63: t | F63: 2.092 | G63: 687.68 | H63: 1438.63
A64: 52 | B64: 040901001003 | D64: 现浇构件钢筋 | E64: t | F64: 0.059 | G64: 687.63 | H64: 40.57
A65: 53 | B65: 040901001004 | D65: 现浇构件钢筋 | E65: t | F65: 0.109 | G65: 1121.47 | H65: 122.24
A66: 54 | B66: 040201013002 | D66: 水泥搅拌桩 | E66: m3 | F66: 21.200 | G66: 78.11 | H66: 1655.99
D67: 管道部分
A68: 55 | B68: 030801005007 | D68: 钢管 D920×10 | E68: m | F68: 1.400 | G68: 94.29 | H68: 132.00
A69: 56 | B69: 040502002001 | D69: 异径管(Q235B) DN1000*900 | E69: 个 | F69: 4.000 | G69: 151.84 | H69: 607.36
A70: 57 | B70: 031003010002 | D70: 可曲绕橡胶接头 DN900 | E70: 个 | F70: 1.000 | G70: 358.21 | H70: 358.21
A71: 58 | B71: 040502006001 | D71: 法兰盘 DN900 | E71: 个 | F71: 2.000 | G71: =ROUND(H71/F71,2) -> 166.94 | H71: 333.88
A72: 59 | B72: 040502008005 | D72: 柔性防水套管 DN1000 | E72: 个 | F72: 4.000 | G72: 1092.88 | H72: 4371.52
A73: 60 | B73: 010606006004 | D73: 复合钢格盖板 2400*1400 | E73: 块 | F73: 2.000 | G73: 182.90 | H73: 365.79
A74: 61 | B74: 010606006005 | D74: 复合钢格盖板 800*800 | E74: 块 | F74: 2.000 | G74: 66.76 | H74: 133.51
A75: 62 | B75: 030109001001 | D75: 潜水泵 | E75: 台 | F75: 1.000 | G75: 192.30 | H75: 192.30
A76: 63 | B76: 040503002001 | D76: 混凝土支墩 600*600*400 | E76: m3 | F76: 0.290 | G76: 245.79 | H76: 71.28
D77: 风管疏水阀井 4.5*2.6*3.75m
D78: 结构部分
A79: 64 | B79: 040303001002 | D79: 混凝土垫层 | E79: m3 | F79: 1.734 | G79: 111.01 | H79: 192.49
A80: 65 | B80: 040601006002 | D80: 现浇混凝土池底板 | E80: m3 | F80: 5.865 | G80: 90.13 | H80: 528.59
A81: 66 | B81: 040601010002 | D81: 现浇混凝土池盖板 | E81: m3 | F81: 1.464 | G81: 105.87 | H81: 155.00
A82: 67 | B82: 040601007002 | D82: 现浇混凝土池壁 | E82: m3 | F82: 16.116 | G82: 102.11 | H82: 1645.67
A83: 68 | B83: 010505001002 | D83: 有梁板 | E83: m3 | F83: 0.417 | G83: 46.93 | H83: 19.57
A84: 69 | B84: 040601030002 | D84: 井、池渗漏试验 | E84: m3 | F84: 50.310 | G84: 5.89 | H84: 296.45
A85: 70 | B85: 040901001005 | D85: 现浇构件钢筋 | E85: t | F85: 0.011 | G85: 687.27 | H85: 7.56
A86: 71 | B86: 040901001006 | D86: 现浇构件钢筋 | E86: t | F86: 3.324 | G86: 687.68 | H86: 2285.85
A87: 72 | B87: 040901001007 | D87: 现浇构件钢筋 | E87: t | F87: 0.034 | G87: 1121.47 | H87: 38.13
A88: 73 | B88: 040201015005 | D88: 水泥搅拌桩 | E88: m3 | F88: 23.550 | G88: 78.12 | H88: 1839.70
D89: 管道部分
A90: 74 | B90: 040502008002 | D90: 柔性防水套管 DN1000 | E90: 个 | F90: 2.000 | G90: 1092.88 | H90: 2185.76
A91: 75 | B91: 040502008003 | D91: 柔性防水套管 DN800 | E91: 个 | F91: 2.000 | G91: 879.57 | H91: 1759.14
A92: 76 | B92: 040502008004 | D92: 柔性防水套管 DN600 | E92: 个 | F92: 2.000 | G92: 640.76 | H92: 1281.52
A93: 77 | B93: 010606006003 | D93: 复合钢格盖板 1200*900 | E93: 块 | F93: 2.000 | G93: 137.99 | H93: 275.98
A94: 78 | B94: 030109001003 | D94: 潜水泵 | E94: 台 | F94: 1.000 | G94: 192.30 | H94: 192.30
A95: 79 | B95: 040503002002 | D95: 混凝土支墩 600*600*400 | E95: m3 | F95: 0.290 | G95: 245.79 | H95: 71.28
D96: 管道地基处理
A97: 80 | B97: 040201015006 | D97: 水泥搅拌桩 | E97: m | F97: 19336.850 | G97: 15.33 | H97: 296450.60
D98: 措施项目
A99: 81 | B99: 041101005001 | D99: 井字架 | E99: 座 | F99: 3.000 | G99: 130.71 | H99: 392.13
A100: 97 | B100: 041102001001 | D100: 垫层模板 | E100: m2 | F100: 0.790 | G100: 12.78 | H100: 10.10
A101: 98 | B101: 041102034001 | D101: 池底模板 | E101: m2 | F101: 1.510 | G101: 40.37 | H101: 60.96
A102: 99 | B102: 041102035001 | D102: 池壁(隔墙)模板 | E102: m2 | F102: 36.420 | G102: 29.78 | H102: 1084.65
A103: 100 | B103: 041102035002 | D103: 井筒(隔墙)模板 | E103: m2 | F103: 4.610 | G103: 44.15 | H103: 203.53
A104: 101 | B104: 041102036001 | D104: 池盖模板 | E104: m2 | F104: 0.720 | G104: 95.86 | H104: 69.02
A105: 102 | B105: 041102037001 | D105: 流槽模板 | E105: m2 | F105: 3.250 | G105: 25.70 | H105: 83.51
A106: 103 | B106: 041102001002 | D106: 垫层模板 | E106: m2 | F106: 6.800 | G106: 12.65 | H106: 86.04
A107: 104 | B107: 041102002001 | D107: 底板模板 | E107: m2 | F107: 8.390 | G107: 23.27 | H107: 195.21
A108: 105 | B108: 041102035003 | D108: 墙身模板 | E108: m2 | F108: 72.500 | G108: 29.80 | H108: 2160.30
A109: 106 | B109: 041102001003 | D109: 垫层模板 | E109: m2 | F109: 1.980 | G109: 12.78 | H109: 25.30
A110: 107 | B110: 041102034002 | D110: 池底模板 | E110: m2 | F110: 5.700 | G110: 33.58 | H110: 191.41
A111: 108 | B111: 041102036002 | D111: 池盖模板 | E111: m2 | F111: 6.060 | G111: 36.57 | H111: 221.59
A112: 109 | B112: 011702014001 | D112: 有梁板 | E112: m2 | F112: 12.410 | G112: 92.91 | H112: 1153.00
A113: 110 | B113: 041102001004 | D113: 垫层模板 | E113: m2 | F113: 1.900 | G113: 12.65 | H113: 24.04
A114: 111 | B114: 041102034003 | D114: 池底模板 | E114: m2 | F114: 5.700 | G114: 33.58 | H114: 191.41
A115: 112 | B115: 041102036003 | D115: 池盖模板 | E115: m2 | F115: 6.060 | G115: 36.57 | H115: 221.59
A116: 113 | B116: 011702014002 | D116: 有梁板 | E116: m2 | F116: 3.200 | G116: 92.98 | H116: 297.53
A117: 114 | B117: 041102001005 | D117: 镇墩模板 | E117: m2 | F117: 2.880 | G117: 23.26 | H117: 67.00
A118: 合计 | H118: =SUM(H6:H117) -> 620147.88

Sheet 27【绿化灌溉管线-安装工程】
A1: 劳务采购工程量清单
A2: 工程名称: | C2: 绿化灌溉管线-安装工程
A3: 序号 | B3: 项目编码 | D3: 项目名称 | E3: 单位 | F3: 工程量 | G3: 人工费
G4: 单价（元） | H4: 合价（元）
A5: 1 | B5: 030807001001 | D5: 闸阀 | DN100 PN=1.0MPa | E5: 个 | F5: 6.000 | G5: =ROUND(H5/F5,2) -> 81.15 | H5: 486.90
A6: 2 | B6: 030807001003 | D6: 塑料球阀 | DN40 PN=1.0MPa | E6: 个 | F6: 13.000 | G6: =ROUND(H6/F6,2) -> 20.97 | H6: 272.61
A7: 3 | B7: 030807001002 | D7: 塑料球阀 | DN50 PN=1.0MPa | E7: 个 | F7: 23.000 | G7: 20.97 | H7: 482.31
A8: 4 | B8: 031003001002 | D8: 电磁阀 |DN50 | E8: 个 | F8: 23.000 | G8: 20.97 | H8: 482.31
A9: 5 | B9: 031003001003 | D9: 电磁阀 |DN40 | E9: 个 | F9: 13.000 | G9: 20.97 | H9: 272.61
A10: 6 | B10: 031003001004 | D10: 2寸进排气阀 | E10: 个 | F10: 5.000 | G10: 20.97 | H10: 104.85
A11: 7 | B11: 031003001001 | D11: 快速取水阀 DN20 | E11: 个 | F11: 29.000 | G11: 10.45 | H11: 303.05
A12: 8 | B12: 031003005001 | D12: 塑料阀门箱 | 6寸圆形 | E12: 个 | F12: 29.000 | G12: 31.68 | H12: 918.72
A13: 9 | B13: 031003005003 | D13: 塑料阀门箱 | 10寸圆形 | E13: 个 | F13: 5.000 | G13: 31.68 | H13: 158.40
A14: 10 | B14: 031003005004 | D14: 塑料阀门箱 | 12寸方形 | E14: 个 | F14: 6.000 | G14: 66.00 | H14: 396.00
A15: 11 | B15: 031003005005 | D15: 塑料阀门箱 | 15寸方形 | E15: 个 | F15: 70.000 | G15: 66.00 | H15: 4620.00
A16: 12 | B16: 050103002001 | D16: 伸缩散射喷头 | E16: 个 | F16: 338.000 | G16: 2.76 | H16: 932.88
A17: 13 | B17: 050103002002 | D17: 伸缩散射喷头 | E17: 个 | F17: 5.000 | G17: 2.76 | H17: 13.80
A18: 14 | B18: 050103002003 | D18: 伸缩散射喷头 | E18: 个 | F18: 708.000 | G18: 2.76 | H18: 1954.08
A19: 15 | B19: 031001006001 | D19: UPVC给水管 De20,PN=1.0MPa | E19: m | F19: 371.000 | G19: 5.62 | H19: 2084.28
A20: 16 | B20: 031001006005 | D20: UPVC给水管 De32,PN=1.0MPa | E20: m | F20: 2712.900 | G20: 5.62 | H20: 15241.07
A21: 17 | B21: 031001006002 | D21: UPVC给水管 De50,PN=1.0MPa | E21: m | F21: 1477.720 | G21: 7.25 | H21: 10714.95
A22: 18 | B22: 031001006003 | D22: UPVC给水管 De63,PN=1.0MPa | E22: m | F22: 829.020 | G22: 7.37 | H22: 6107.39
A23: 19 | B23: 031001006004 | D23: UPVC给水管 De110,PN=1.0MPa | E23: m | F23: 1224.650 | G23: 9.23 | H23: 11305.97
A24: 20 | B24: 030411001001 | D24: 埋地钢管 DN150 | E24: m | F24: 53.800 | G24: 30.50 | H24: 1640.90
A25: 21 | B25: 030411001002 | D25: 埋地钢管 DN100 | E25: m | F25: 24.290 | G25: 26.16 | H25: 635.45
A26: 22 | B26: 040101002002 | D26: 挖沟槽土方 | E26: m3 | F26: 1002.290 | G26: 6.31 | H26: 6323.70
A27: 23 | B27: 040103001001 | D27: 回填土方 | E27: m3 | F27: 1002.290 | G27: 12.30 | H27: 12324.08
A28: 合计 | H28: =SUM(H5:H27) -> 77776.31

Sheet 28【厂区雨污水管道-安装工程】
A1: 劳务采购工程量清单
A2: 工程名称: | C2: 厂区雨污水管道-安装工程
A3: 序号 | B3: 项目编码 | D3: 项目名称 | E3: 单位 | F3: 工程量 | G3: 人工费
G4: 单价（元） | H4: 合价（元）
D5: 雨水管道安装工程
A6: 1 | B6: 040501001001 | D6: II级钢筋混凝土管 | d300 | E6: m | F6: 143.840 | G6: =ROUND(H6/F6,2) -> 8.14 | H6: 1170.85
A7: 2 | B7: 040501001002 | D7: II级钢筋混凝土管 | d400 | E7: m | F7: 457.100 | G7: =ROUND(H7/F7,2) -> 11.44 | H7: 5227.44
A8: 3 | B8: 040501001003 | D8: II级钢筋混凝土管 | d500 | E8: m | F8: 66.300 | G8: 37.00 | H8: 2453.40
A9: 4 | B9: 040501001004 | D9: II级钢筋混凝土管 | d600 | E9: m | F9: 355.600 | G9: 43.99 | H9: 15644.02
A10: 5 | B10: 040501001006 | D10: II级钢筋混凝土管 | d2000 | E10: m | F10: 278.000 | G10: 388.98 | H10: 108135.15
A11: 6 | B11: 040504002001 | D11: 钢筋混凝土雨水检查井 2600×1000 | E11: 座 | F11: 8.000 | G11: 1574.82 | H11: 12598.58
A12: 7 | B12: 040504002010 | D12: 钢筋混凝土雨水跌水井 3200*2000 跌差4m | E12: 座 | F12: 2.000 | G12: 5020.63 | H12: 10041.26
A13: 8 | B13: 040504009001 | D13: 平篦式单篦雨水口 | E13: 座 | F13: 49.000 | G13: 90.19 | H13: 4419.31
A14: 9 | B14: 040504002003 | D14: 钢筋混凝土雨水检查井φ1000 | E14: 座 | F14: 19.000 | G14: 440.34 | H14: 8366.41
A15: 10 | B15: 040504002013 | D15: 钢筋混凝土雨水检查井φ1250 | E15: 座 | F15: 13.000 | G15: 685.65 | H15: 8913.43
A16: 11 | B16: 040504007001 | D16: 八字排出口DN600 | E16: 座 | F16: 1.000 | G16: 1210.22 | H16: 1210.22
A17: 12 | B17: 040504007002 | D17: 八字排出口DN2000 | E17: 座 | F17: 2.000 | G17: 5548.81 | H17: 11097.61
D18: 污水管道安装工程
A19: 13 | B19: 040501001007 | D19: II级钢筋混凝土管 | d300 | E19: m | F19: 303.800 | G19: 10.81 | H19: 3283.53
A20: 14 | B20: 040501001009 | D20: II级钢筋混凝土管 | d400 | E20: m | F20: 323.200 | G20: 13.19 | H20: 4261.83
A21: 15 | B21: 040501001008 | D21: II级钢筋混凝土管 | d500 | E21: m | F21: 211.400 | G21: 38.81 | H21: 8205.33
A22: 16 | B22: 040504002014 | D22: 钢筋混凝土污水检查井φ1000 | E22: 座 | F22: 51.000 | G22: 723.39 | H22: 36892.85
A23: 17 | B23: 040504008001 | D23: 化粪池G3-6SF | E23: 座 | F23: 1.000 | G23: 1707.42 | H23: 1707.42
A24: 18 | B24: 040504008003 | D24: 隔油池GG-3SF | E24: 座 | F24: 1.000 | G24: 971.85 | H24: 971.85
A25: 19 | B25: 040504002011 | D25: 钢筋混凝土污水跌水井 1400*2100 跌差3m | E25: 座 | F25: 2.000 | G25: 1703.11 | H25: 3406.21
A26: 20 | B26: 040504002012 | D26: 钢筋混凝土污水跌水井 1400*2100 跌差4m | E26: 座 | F26: 1.000 | G26: 1983.51 | H26: 1983.51
D27: 给水、雨污水管线土石方工程
A28: 21 | B28: 040101002001 | D28: 挖沟槽土方 2m内 | E28: m3 | F28: 2798.150 | G28: 6.31 | H28: 17657.20
A29: 22 | B29: 040101002006 | D29: 挖沟槽土方 4m内 | E29: m3 | F29: 4540.110 | G29: 6.71 | H29: 30477.32
A30: 23 | B30: 040101002009 | D30: 挖沟槽土方 6m内 | E30: m3 | F30: 5414.530 | G30: 7.15 | H30: 38733.46
A31: 24 | B31: 040101002007 | D31: 挖沟槽土方 支撑2m内 | E31: m3 | F31: 46.150 | G31: 7.56 | H31: 348.85
A32: 25 | B32: 040103001001 | D32: 回填土方 | E32: m3 | F32: 5187.900 | G32: 2.55 | H32: 13249.95
A33: 26 | B33: 040103001002 | D33: 回填石屑 | E33: m3 | F33: 3838.100 | G33: 15.98 | H33: 61350.11
A34: 27 | B34: 040305001001 | D34: 中粗砂垫层 | E34: m3 | F34: 123.850 | G34: 39.68 | H34: 4914.86
A35: 28 | B35: 040103001006 | D35: 回填中粗砂 | E35: m3 | F35: 270.610 | G35: 15.98 | H35: 4325.41
A36: 29 | B36: 040103002001 | D36: 余方弃置 | E36: m3 | F36: 5089.370 | G36: 6.29 | H36: 32035.64
A37: 30 | B37: 粤040101006002 | D37: IV型拉森钢板桩 | E37: t | F37: 19.300 | G37: 540.20 | H37: 10425.85
D38: 管道地基处理
A39: 31 | B39: 040101002004 | D39: 挖沟槽土方（外运） | E39: m3 | F39: 111.460 | G39: =ROUND(H39/F39,2) -> 6.80 | H39: 757.61
A40: 32 | B40: 040103002003 | D40: 余方弃置 | E40: m3 | F40: 111.460 | G40: 5.37 | H40: 598.35
A41: 33 | B41: 040103001005 | D41: 7：3砂碎石换填 | E41: m3 | F41: 111.460 | G41: 3.19 | H41: 355.68
A42: 34 | B42: 040201015002 | D42: 水泥搅拌桩 | E42: m | F42: 7958.350 | G42: 15.33 | H42: 122008.50
D43: 措施项目
A44: 35 | B44: 041101005001 | D44: 井字架 | E44: 座 | F44: 95.000 | G44: 176.24 | H44: 16742.80
A45: 36 | B45: 041102002001 | D45: 基础模板 | E45: m2 | F45: 43.010 | G45: 23.27 | H45: 1000.75
A46: 37 | B46: 041102035001 | D46: 墙身模板 | E46: m2 | F46: 264.100 | G46: 28.00 | H46: 7395.60
A47: 38 | B47: 041102001001 | D47: 垫层模板 | E47: m2 | F47: 40.520 | G47: 12.65 | H47: 512.45
A48: 39 | B48: 041102034001 | D48: 池底模板 | E48: m2 | F48: 76.400 | G48: 40.63 | H48: 3103.86
A49: 40 | B49: 041102035002 | D49: 池壁(隔墙)模板 | E49: m2 | F49: 991.840 | G49: 44.24 | H49: 43879.87
A50: 41 | B50: 041102035003 | D50: 井筒(隔墙)模板 | E50: m3 | F50: 19.400 | G50: 201.45 | H50: 3908.17
A51: 42 | B51: 041102036001 | D51: 池盖模板 | E51: m2 | F51: 17.580 | G51: 95.86 | H51: 1685.24
A52: 43 | B52: 041102001002 | D52: 垫层模板 | E52: m2 | F52: 12.900 | G52: 23.27 | H52: 300.15
A53: 44 | B53: 041102034002 | D53: 矩形底板 | E53: m2 | F53: 30.860 | G53: 33.62 | H53: 1037.54
A54: 45 | B54: 041102035004 | D54: 矩形井壁 | E54: m2 | F54: 518.760 | G54: 28.01 | H54: 14527.90
A55: 46 | B55: 041102035005 | D55: 井筒(隔墙)模板 | E55: m3 | F55: 2.590 | G55: 201.45 | H55: 521.75
A56: 47 | B56: 041102036002 | D56: 池盖模板 | E56: m3 | F56: 5.050 | G56: 95.86 | H56: 484.10
A57: 合计 | H57: =SUM(H6:H56) -> 682329.18

Sheet 29【给水管道安装工程...】
A1: 劳务采购工程量清单
A2: 工程名称: | C2: 给水管道安装工程(含回用水管、消防水管）
A3: 序号 | B3: 项目编码 | D3: 项目名称 | E3: 单位 | F3: 工程量 | G3: 人工费
G4: 单价（元） | H4: 合价（元）
D5: 厂区给水部分
A6: 1 | B6: 040501008001 | D6: PE给水管 | DN150 PN=1.25MPa（牵引管） | E6: m | F6: 14.540 | G6: =ROUND(H6/F6,2) -> 49.02 | H6: 712.78
A7: 2 | B7: 031001006001 | D7: PE给水管 | DN150 PN=1.0MPa | E7: m | F7: 73.870 | G7: =ROUND(H7/F7,2) -> 13.83 | H7: 1021.40
A8: 3 | B8: 031001006004 | D8: PE给水管 | DN100 PN=1.0MPa | E8: m | F8: 531.000 | G8: 9.94 | H8: 5280.26
A9: 4 | B9: 031001006005 | D9: PE给水管 | DN50 PN=1.0MPa | E9: m | F9: 6.000 | G9: 7.96 | H9: 47.77
A10: 5 | B10: 031001006006 | D10: PE给水管 | DN20 PN=1.0MPa | E10: m | F10: 105.280 | G10: 6.04 | H10: 635.79
A11: 6 | B11: 040502009001 | D11: 水表 DN100 | E11: 个 | F11: 1.000 | G11: 91.75 | H11: 91.75
A12: 7 | B12: 040502005002 | D12: 蝶阀 DN100 | E12: 个 | F12: 2.000 | G12: 42.59 | H12: 85.18
A13: 8 | B13: 040502005003 | D13: 止回阀 DN100 | E13: 个 | F13: 1.000 | G13: 42.59 | H13: 42.59
A14: 9 | B14: 031003010001 | D14: 可曲绕橡胶接头 DN100 | E14: 个 | F14: 1.000 | G14: 81.15 | H14: 81.15
A15: 10 | B15: 040504001003 | D15: 砖砌矩形水表井 2.15*1.1*1.4m | E15: 座 | F15: 1.000 | G15: 1443.56 | H15: 1443.56
A16: 11 | B16: 030804002001 | D16: 对夹三通 D400*150 | E16: 个 | F16: 1.000 | G16: 131.89 | H16: 131.89
D17: 厂区回用水部分
A18: 12 | B18: 031001006002 | D18: PE给水管 | DN150 PN=1.0MPa | E18: m | F18: 1260.550 | G18: 13.83 | H18: 17429.63
A19: 13 | B19: 031001006007 | D19: PE给水管 | DN80 PN=1.0MPa | E19: m | F19: 2.000 | G19: 8.85 | H19: 17.70
A20: 14 | B20: 031001006008 | D20: PE给水管 | DN25 PN=1.0MPa | E20: m | F20: 21.000 | G20: 6.04 | H20: 126.82
D21: 厂区消防水部分
A22: 15 | B22: 031001006003 | D22: PE给水管 | DN100 PN=1.0MPa | E22: m | F22: 1025.320 | G22: 9.94 | H22: 10195.78
A23: 16 | B23: 030901011001 | D23: 室外地上式消火栓SS100/65 | E23: 套 | F23: 11.000 | G23: 121.33 | H23: 1334.63
A24: 17 | B24: 040504001001 | D24: 砌筑闸阀井 φ1200 | E24: 座 | F24: 4.000 | G24: 528.11 | H24: 2112.44
A25: 18 | B25: 040504001002 | D25: 砖砌矩形水表井 2.15*1.1*1.4m | E25: 座 | F25: 1.000 | G25: 1443.56 | H25: 1443.56
A26: 19 | B26: 040502009002 | D26: 水表 DN100 | E26: 个 | F26: 1.000 | G26: 91.75 | H26: 91.75
A27: 20 | B27: 040502005004 | D27: 蝶阀 DN100 | E27: 个 | F27: 6.000 | G27: 42.59 | H27: 255.54
A28: 21 | B28: 040502005005 | D28: 止回阀 DN100 | E28: 个 | F28: 1.000 | G28: 42.59 | H28: 42.59
A29: 22 | B29: 031003010002 | D29: 可曲绕橡胶接头 DN100 | E29: 个 | F29: 1.000 | G29: 81.15 | H29: 81.15
D30: 土石方部分
A31: 23 | B31: 040101002006 | D31: 挖沟槽土方 | E31: m3 | F31: 1782.590 | G31: 6.31 | H31: 11246.43
A32: 24 | B32: 040103001002 | D32: 回填石屑 | E32: m3 | F32: 1321.590 | G32: 15.98 | H32: 21125.12
A33: 25 | B33: 040305001001 | D33: 砂垫层 | E33: m3 | F33: 425.180 | G33: 39.68 | H33: 16872.84
A34: 26 | B34: 040103002001 | D34: 余方弃置 | E34: m3 | F34: 1782.590 | G34: 5.37 | H34: 9569.29
D35: 破复人行道 | E35: m2 | F35: 7.000
A36: 27 | B36: 041001002001 | D36: 拆除人行道砖 | E36: m2 | F36: 7.000 | G36: 3.96 | H36: 27.74
A37: 28 | B37: 041001002002 | D37: 拆除人行道混凝土垫层 | E37: m2 | F37: 7.000 | G37: 7.41 | H37: 51.90
A38: 29 | B38: 041001003001 | D38: 拆除人行道级配碎石垫层 | E38: m2 | F38: 7.000 | G38: 8.72 | H38: 61.02
A39: 30 | B39: 040204001001 | D39: 人行道整形碾压 | E39: m2 | F39: 7.000 | G39: 1.51 | H39: 10.60
A40: 31 | B40: 040204002001 | D40: 6cm厚Cf4.0步道砖 | E40: m2 | F40: 7.000 | G40: 21.05 | H40: 147.38
A41: 32 | B41: 040204002002 | D41: 10cm厚C20素砼混凝土垫层 | E41: m2 | F41: 7.000 | G41: 12.23 | H41: 85.63
A42: 33 | B42: 040202011001 | D42: 15cm厚级配碎石垫层 | E42: m2 | F42: 7.000 | G42: 3.74 | H42: 26.21
D43: 措施项目
A44: 50 | B44: 041101005001 | D44: 井字架 | E44: 座 | F44: 6.000 | G44: 326.58 | H44: 1959.48
A45: 合计 | H45: =SUM(H6:H44) -> 103889.35

Sheet 30【进水管道与尾水管道】
A1: 劳务采购工程量清单
A2: 工程名称: | C2: 进水管道与尾水管道
A3: 序号 | B3: 项目编码 | D3: 项目名称 | E3: 单位 | F3: 工程量 | G3: 人工费
G4: 单价（元） | H4: 合价（元）
D5: 进水管道工程
A6: 1 | B6: 040501012001 | D6: Ⅲ级钢筋混凝土管（顶管施工） | D1400 | E6: m | F6: 168.000 | G6: =ROUND(H6/F6,2) -> 534.70 | H6: 89829.90
A7: 2 | B7: 040501012004 | D7: 泥浆运输 | E7: m3 | F7: 258.480 | G7: =ROUND(H7/F7,2) -> 49.87 | H7: 12890.23
A8: 3 | B8: 040501012002 | D8: 泥水切削机械及附属设施安拆 | E8: 套 | F8: 1.000 | G8: 12748.53 | H8: 12748.53
A9: 4 | B9: 040501012003 | D9: 中继间安拆 | E9: 套 | F9: 1.000 | G9: 1868.77 | H9: 1868.77
A10: 5 | B10: 040504002001 | D10: 污水检查井 3300*2800 H=13.249 | E10: 座 | F10: 1.000 | G10: 10052.78 | H10: 10052.78
A11: 6 | B11: 040504002002 | D11: 污水检查井 1900×1000 H=9.483 | E11: 座 | F11: 1.000 | G11: 1644.37 | H11: 1644.37
D12: φ7000钢筋混凝土沉井
A13: 7 | B13: 040601002001 | D13: 沉井下沉 | E13: m3 | F13: 670.250 | G13: 80.28 | H13: 53808.62
A14: 8 | B14: 040103001001 | D14: 回填石屑 | E14: m3 | F14: 798.120 | G14: 15.98 | H14: 12757.23
A15: 9 | B15: 040601001001 | D15: 中粗砂垫层 | E15: m3 | F15: 78.500 | G15: 84.24 | H15: 6612.93
A16: 10 | B16: 040601001002 | D16: 刃脚垫层 | E16: m3 | F16: 9.890 | G16: 238.31 | H16: 2356.87
A17: 11 | B17: 040601003001 | D17: 沉井混凝土封底 | E17: m3 | F17: 44.010 | G17: 103.68 | H17: 4563.01
A18: 12 | B18: 040601003002 | D18: 沉井混凝土底板 | E18: m3 | F18: 27.190 | G18: 131.18 | H18: 3566.82
A19: 13 | B19: 040601001003 | D19: 沉井混凝土刃脚 | E19: m3 | F19: 16.720 | G19: 81.78 | H19: 1367.35
A20: 14 | B20: 040601001004 | D20: 沉井混凝土井壁 | E20: m3 | F20: 136.480 | G20: 81.28 | H20: 11092.68
A21: 15 | B21: 040504001001 | D21: 砖砌体墙（M7.5水泥,M10砖 | E21: m3 | F21: 15.070 | G21: 242.94 | H21: 3661.07
A22: 16 | B22: 041001007001 | D22: 拆除砖砌体墙 | E22: m3 | F22: 15.070 | G22: 92.08 | H22: 1387.66
A23: 17 | B23: 040901001001 | D23: 钢筋制作、安装 带肋钢筋 Φ10～25mm | E23: t | F23: 23.640 | G23: 687.68 | H23: 16256.76
A24: 18 | B24: 040901009001 | D24: 塑钢踏步 | E24: t | F24: 46.800 | G24: 2.95 | H24: 138.20
A25: 19 | B25: 040201015001 | D25: 高压水泥旋喷桩双管法钻孔 | E25: m | F25: 1135.280 | G25: 18.71 | H25: 21244.48
A26: 20 | B26: 040201015002 | D26: 高压水泥旋喷桩双管法喷浆 | E26: m | F26: 1135.280 | G26: 33.56 | H26: 38096.96
A27: 21 | B27: 040501001001 | D27: 集水坑钢筋混凝土管d800 | E27: m | F27: 0.850 | G27: 27.48 | H27: 23.36
A28: 22 | B28: 040309001001 | D28: 临时栏杆H=1.2m | E28: m | F28: 37.680 | G28: 46.06 | H28: 1735.51
D29: Ø4500钢筋混凝土逆做井
A30: 23 | B30: 040504002003 | D30: Ø4500顶管接收井 | E30: 座 | F30: 1.000 | G30: 8877.20 | H30: 8877.20
A31: 24 | B31: 040201015003 | D31: 高压水泥旋喷桩双管法钻孔 | E31: m | F31: 132.660 | G31: 18.71 | H31: 2482.47
A32: 25 | B32: 040201015004 | D32: 高压水泥旋喷桩双管法喷浆 | E32: m | F32: 132.660 | G32: 33.56 | H32: 4451.75
A33: 26 | B33: 040601002002 | D33: 逆做井土方 | E33: m3 | F33: 235.420 | G33: 80.28 | H33: 18900.12
A34: 27 | B34: 040103001002 | D34: 回填石屑（顶管井回填） | E34: m3 | F34: 165.230 | G34: 15.98 | H34: 2640.64
A35: 28 | B35: 040309001002 | D35: 临时栏杆H=1.2m | E35: m | F35: 30.770 | G35: 46.06 | H35: 1417.42
D36: 骑马井
A37: 29 | B37: 040901009002 | D37: 塑钢踏步 | E37: kg | F37: 26.400 | G37: 2.95 | H37: 77.96
A38: 30 | B38: 040601002003 | D38: 沉井下沉 | E38: m3 | F38: 18.490 | G38: 80.29 | H38: 1484.59
A39: 31 | B39: 040103001005 | D39: C20细石回填 | E39: m3 | F39: 7.820 | G39: =ROUND(H39/F39,2) -> 90.78 | H39: 709.91
A40: 32 | B40: 040501001003 | D40: Ⅲ级钢筋砼管 d1000 | E40: m | F40: 9.770 | G40: 38.91 | H40: 380.12
A41: 33 | B41: 030801005001 | D41: 焊接钢管 | D1520*16 | E41: m | F41: 7.970 | G41: 164.15 | H41: 1308.25
A42: 34 | B42: 030413003001 | D42: 混凝土管钻孔 φ700 | E42: 个 | F42: 1.000 | G42: 13.42 | H42: 13.42
A43: 35 | B43: 粤040101006002 | D43: Ⅲ型拉森钢板桩 | E43: t | F43: 6.110 | G43: 430.31 | H43: 2629.17
D44: 破复混凝土路面
A45: 36 | B45: 041001001001 | D45: 旧路面切缝22cm | E45: m | F45: 12.000 | G45: 3.36 | H45: 40.26
A46: 37 | B46: 041001001002 | D46: 拆除22cm厚水泥混凝土路面 | E46: m2 | F46: 36.000 | G46: 7.73 | H46: 278.27
A47: 38 | B47: 041001001003 | D47: 拆除15cm厚C20素砼基层 | E47: m2 | F47: 36.000 | G47: 5.14 | H47: 184.92
A48: 39 | B48: 041001003001 | D48: 拆除16cm厚碎石基层 | E48: m2 | F48: 36.000 | G48: 1.99 | H48: 71.50
A49: 40 | B49: 040202001001 | D49: 路床(槽)整形 | E49: m2 | F49: 36.000 | G49: 0.87 | H49: 31.40
A50: 41 | B50: 040202011001 | D50: 16cm厚碎石基层 | E50: m2 | F50: 36.000 | G50: 3.86 | H50: 138.92
A51: 42 | B51: 040203007001 | D51: 15cm厚C20素砼 | E51: m2 | F51: 36.000 | G51: 17.39 | H51: 626.08
A52: 43 | B52: 040203007002 | D52: 22cm厚C30水泥混凝土路面 | E52: m2 | F52: 36.000 | G52: 34.10 | H52: 1227.43
D53: 尾水管道工程
A54: 44 | B54: 040501002001 | D54: 焊接钢管 | D1420×12 | E54: m | F54: 127.000 | G54: 160.92 | H54: 20437.05
A55: 45 | B55: 040501002002 | D55: 焊接钢管 | D1620×14 | E55: m | F55: 9.240 | G55: 182.55 | H55: 1686.73
A56: 46 | B56: 040501002003 | D56: 焊接钢管 | D1820×16 | E56: m | F56: 227.000 | G56: 219.48 | H56: 49822.42
A57: 47 | B57: 040502002006 | D57: 45°弯头(Q235B) | D1420×16 | E57: 个 | F57: 6.000 | G57: 234.49 | H57: 1406.94
A58: 48 | B58: 040502002007 | D58: 45°弯头(Q235B) | D1820×16 | E58: 个 | F58: 2.000 | G58: 312.97 | H58: 625.94
A59: 49 | B59: 040502002001 | D59: 偏心异径管(Q235B) | DN1800×DN1400 | E59: 个 | F59: 1.000 | G59: 312.97 | H59: 312.97
A60: 50 | B60: 040502002002 | D60: 11.25°弯头(Q235B) | D1820×16 | E60: 个 | F60: 2.000 | G60: 312.97 | H60: 625.94
A61: 51 | B61: 040502002003 | D61: 22.5°弯头(Q235B) | D1820×16 | E61: 个 | F61: 4.000 | G61: 312.97 | H61: 1251.88
A62: 52 | B62: 040502002005 | D62: 碳钢三通 | DN1800×DN1600 | E62: 个 | F62: 1.000 | G62: 594.77 | H62: 594.77
A63: 53 | B63: 040502001001 | D63: 法兰盲盘 | DN1600 | E63: 个 | F63: 1.000 | G63: 350.45 | H63: 350.45
A64: 54 | B64: 040502006001 | D64: 法兰盘 | DN1600 | E64: 个 | F64: 2.000 | G64: 350.44 | H64: 700.88
A65: 55 | B65: 040504002004 | D65: 蝶阀井Ø3600 | E65: 座 | F65: 1.000 | G65: 7664.47 | H65: 7664.47
A66: 56 | B66: 040502005001 | D66: 蝶阀（球墨铸铁） | DN1600 PN=1.0MPa | E66: 个 | F66: 1.000 | G66: 2773.58 | H66: 2773.58
A67: 57 | B67: 040504007001 | D67: 八字出水口 D=1800 | E67: 座 | F67: 1.000 | G67: 4550.08 | H67: 4550.08
A68: 58 | B68: 040305003001 | D68: 浆砌片石尾口护底 | E68: m3 | F68: 21.300 | G68: 159.27 | H68: 3392.36
A69: 59 | B69: 粤040101006001 | D69: Ⅲ型拉森钢板桩 | E69: t | F69: 204.350 | G69: 443.29 | H69: 90586.16
A70: 60 | B70: 粤040101006004 | D70: IV型拉森钢板桩 | E70: t | F70: 154.850 | G70: 418.70 | H70: 64836.14
A71: 61 | B71: 040501001004 | D71: 钢筋混凝土管 d2000 | E71: m | F71: 32.000 | G71: =ROUND(H71/F71,2) -> 91.91 | H71: 2941.16
D72: 破复沥青路面 | E72: m2 | F72: 351.000 | G72: 0.00
A73: 62 | B73: 041001001004 | D73: 旧路面切缝18cm | E73: m | F73: 117.000 | G73: 2.87 | H73: 335.91
A74: 63 | B74: 041001001005 | D74: 拆除18cm厚沥青路面 | E74: m2 | F74: 351.000 | G74: 4.40 | H74: 1545.21
A75: 64 | B75: 041001001006 | D75: 拆除48cm水泥稳定碎石基层 | E75: m2 | F75: 351.000 | G75: 5.57 | H75: 1954.28
A76: 65 | B76: 040202001002 | D76: 路床(槽)整形 | E76: m2 | F76: 351.000 | G76: 0.87 | H76: 306.13
A77: 66 | B77: 040202015001 | D77: 16cm 4%水泥稳定碎石基层 | E77: m2 | F77: 351.000 | G77: 3.90 | H77: 1370.07
A78: 67 | B78: 040202015002 | D78: 15cm 4%水泥稳定碎石基层 | E78: m2 | F78: 351.000 | G78: 3.65 | H78: 1282.70
A79: 68 | B79: 040203006001 | D79: 8cm厚粗粒式沥青混凝土（AC-25C） | E79: m2 | F79: 351.000 | G79: 1.88 | H79: 660.15
A80: 69 | B80: 040203006002 | D80: 6cm厚中粒式沥青混凝土（AC-20C） | E80: m2 | F80: 351.000 | G80: 1.46 | H80: 513.93
A81: 70 | B81: 040203006003 | D81: 4cm厚细粒式沥青混凝土（AC-13C） | E81: m2 | F81: 351.000 | G81: 1.33 | H81: 467.39
A82: 71 | B82: 040203003001 | D82: PC-3粘层油 | E82: m2 | F82: 351.000 | G82: 0.18 | H82: 63.08
A83: 72 | B83: 040203003002 | D83: PC-3粘层油 | E83: m2 | F83: 351.000 | G83: 0.18 | H83: 63.08
A84: 73 | B84: 040203004001 | D84: ES-3乳化沥青稀浆封层 | E84: m2 | F84: 351.000 | G84: 0.69 | H84: 243.14
A85: 74 | B85: 040203003003 | D85: PC-3粘层油 | E85: m2 | F85: 351.000 | G85: 0.18 | H85: 63.08
D86: 破复人行道 | E86: m2 | F86: 30.500 | G86: 0.00
A87: 75 | B87: 041001002001 | D87: 拆除人行道砖 | E87: m2 | F87: 30.500 | G87: 3.93 | H87: 120.00
A88: 76 | B88: 041001002002 | D88: 拆除人行道混凝土垫层 | E88: m2 | F88: 30.500 | G88: 7.40 | H88: 225.63
A89: 77 | B89: 041001003002 | D89: 拆除人行道级配碎石垫层 | E89: m2 | F89: 30.500 | G89: 9.36 | H89: 285.49
A90: 78 | B90: 040204001001 | D90: 人行道整形碾压 | E90: m2 | F90: 30.520 | G90: 1.51 | H90: 46.20
A91: 79 | B91: 040204002001 | D91: 6cm厚Cf4.0步道砖 | E91: m2 | F91: 30.500 | G91: 21.05 | H91: 642.15
A92: 80 | B92: 040204002002 | D92: 10cm厚C20素砼混凝土垫层 | E92: m2 | F92: 30.500 | G92: 12.23 | H92: 373.11
A93: 81 | B93: 040202011002 | D93: 15cm厚级配碎石垫层 | E93: m2 | F93: 30.500 | G93: 3.74 | H93: 114.17
D94: 土石方工程
A95: 82 | B95: 040101002011 | D95: 挖沟槽土方 4m内 | E95: m3 | F95: 220.990 | G95: 6.69 | H95: 1479.03
A96: 83 | B96: 040101002012 | D96: 挖沟槽土方 6m内 | E96: m3 | F96: 4743.680 | G96: 7.15 | H96: 33937.90
A97: 84 | B97: 040101002013 | D97: 挖沟槽土方 支撑4m | E97: m3 | F97: 1158.940 | G97: 8.05 | H97: 9330.83
A98: 85 | B98: 040101002014 | D98: 挖沟槽土方 支撑6m | E98: m3 | F98: 1546.310 | G98: 8.58 | H98: 13273.03
A99: 86 | B99: 040103001003 | D99: 回填土方 | E99: m3 | F99: 2602.010 | G99: 2.55 | H99: 6645.52
A100: 87 | B100: 040305001001 | D100: 中粗砂垫层 | E100: m3 | F100: 210.810 | G100: 39.68 | H100: 8365.78
A101: 88 | B101: 040103001004 | D101: 回填砂 | E101: m3 | F101: 3817.740 | G101: 15.98 | H101: 61024.03
A102: 89 | B102: 040103002002 | D102: 余方弃置 | E102: m3 | F102: 4677.600 | G102: 6.29 | H102: 29444.03
D103: 临时管道
A104: 90 | B104: 040101002010 | D104: 挖沟槽土方（回填） | E104: m3 | F104: 210.600 | G104: =ROUND(H104/F104,2) -> 6.30 | H104: 1326.46
A105: 91 | B105: 040103001006 | D105: 回填土方 | E105: m3 | F105: 181.210 | G105: =ROUND(H105/F105,2) -> 2.55 | H105: 462.69
A106: 92 | B106: 031001006001 | D106: PE给水管 | De400 | E106: m | F106: 234.000 | G106: =ROUND(H106/F106,2) -> 25.02 | H106: 5854.74
D107: 措施项目
A108: 94 | B108: 041101005001 | D108: 井字架 | E108: 座 | F108: 4.000 | G108: =ROUND(H108/F108,2) -> 326.58 | H108: 1306.32
A109: 99 | B109: 041102001001 | D109: 垫层模板 | E109: m2 | F109: 1.760 | G109: 23.27 | H109: 40.96
A110: 100 | B110: 041102034001 | D110: 矩形底板 | E110: m2 | F110: 4.200 | G110: 33.58 | H110: 141.02
A111: 101 | B111: 041102035001 | D111: 矩形井壁 | E111: m2 | F111: 85.840 | G111: 27.99 | H111: 2402.73
A112: 102 | B112: 041102035002 | D112: 圆形井壁 | E112: m2 | F112: 88.610 | G112: 44.24 | H112: 3919.90
A113: 103 | B113: 041102036001 | D113: 池盖模板 | E113: m3 | F113: 0.700 | G113: 95.86 | H113: 67.10
A114: 104 | B114: 041102037001 | D114: 流槽模板 | E114: m2 | F114: 3.880 | G114: 25.44 | H114: 98.71
A115: 105 | B115: 041102001002 | D115: 垫层模板 | E115: m2 | F115: 10.050 | G115: 23.27 | H115: 233.83
A116: 106 | B116: 041102028001 | D116: 沉井井壁(隔墙)模板 | E116: m2 | F116: 88.670 | G116: 69.80 | H116: 6188.98
A117: 107 | B117: 041102028002 | D117: 沉井井壁(隔墙)模板 | E117: m2 | F117: 555.690 | G117: 61.78 | H117: 34332.76
A118: 108 | B118: 041102035003 | D118: 池壁(隔墙)模板 | E118: m2 | F118: 157.410 | G118: 44.24 | H118: 6963.81
A119: 109 | B119: 041102001003 | D119: 垫层模板 | E119: m2 | F119: 1.490 | G119: 23.27 | H119: 34.67
A120: 110 | B120: 041102034002 | D120: 圆形底板 | E120: m2 | F120: 3.560 | G120: 33.94 | H120: 120.83
A121: 111 | B121: 041102036002 | D121: 池盖模板 | E121: m3 | F121: 3.350 | G121: 95.86 | H121: 321.14
A122: 112 | B122: 041102002001 | D122: 基础模板 | E122: m2 | F122: 30.510 | G122: 23.27 | H122: 709.91
A123: 113 | B123: 041102035004 | D123: 墙身模板 | E123: m2 | F123: 187.170 | G123: 28.01 | H123: 5242.12
A124: 114 | B124: 041103001001 | D124: 纤维袋围堰 | E124: m3 | F124: 472.250 | G124: 116.26 | H124: 54902.54
A125: 115 | B125: 040101002001 | D125: 挖沟槽土方 | E125: m3 | F125: 472.210 | G125: 1.42 | H125: 670.70
A126: 116 | B126: 040103002001 | D126: 余方弃置 | E126: m3 | F126: 472.030 | G126: 6.29 | H126: 2971.22
A127: 合计 | H127: =SUM(H6:H126) -> 912724.00

Sheet 31【厂区管线迁改及现状破复工程】
A1: 劳务采购工程量清单
A2: 工程名称: | C2: 厂区管线迁改及现状破复工程
A3: 序号 | B3: 项目编码 | D3: 项目名称 | E3: 单位 | F3: 工程量 | G3: 人工费
G4: 单价（元） | H4: 合价（元）
D5: 调度泵出水压力管
A6: 1 | B6: 031001006001 | D6: PE给水管 | DN500 PN=1.0MPa | E6: m | F6: 173.000 | G6: =ROUND(H6/F6,2) -> 50.37 | H6: 8714.75
A7: 2 | B7: 031003011001 | D7: PE法兰套及管堵 DN500 | E7: 个 | F7: 1.000 | G7: =ROUND(H7/F7,2) -> 261.00 | H7: 261.00
A8: 3 | B8: 031003011002 | D8: PE法兰套及管堵 DN800 | E8: 个 | F8: 2.000 | G8: 292.98 | H8: 585.96
A9: 4 | B9: 040501009001 | D9: 管道支墩 | E9: m3 | F9: 13.520 | G9: 136.86 | H9: 1850.41
D10: 雨水管
A11: 5 | B11: 040501001001 | D11: II级钢筋混凝土管 | d600 | E11: m | F11: 6.000 | G11: 50.88 | H11: 305.28
A12: 6 | B12: 040504002001 | D12: 钢筋混凝土雨水检查井φ1000 | E12: 座 | F12: 1.000 | G12: 532.09 | H12: 532.09
A13: 7 | B13: 040504007001 | D13: 八字出水口D=600 | E13: 座 | F13: 1.000 | G13: 870.16 | H13: 870.16
D14: 其他项
A15: 8 | B15: 050102012001 | D15: 台湾草 | E15: m2 | F15: 820.000 | G15: 14.31 | H15: 11735.43
A16: 9 | B16: 041001007001 | D16: 砖砌排水沟拆除 | E16: m | F16: 97.000 | G16: 26.13 | H16: 2534.91
A17: 10 | B17: 040201022001 | D17: 砖砌排水沟恢复 | E17: m | F17: 97.000 | G17: 52.31 | H17: 5073.83
A18: 11 | B18: 粤050101016001 | D18: 苗木迁移 | E18: 株 | F18: 28.000 | G18: 260.58 | H18: 7296.15
A19: 12 | B19: 030408003001 | D19: 电缆保护管 PVC-C管DN150 | E19: m | F19: 99.000 | G19: 11.11 | H19: 1099.99
A20: 13 | B20: 040501001002 | D20: II级钢筋混凝土管 | d500 | E20: m | F20: 8.000 | G20: 92.57 | H20: 740.59
A21: 14 | B21: 040504001001 | D21: 现状电力管人孔提升（做法参YDT 5178-2017,页8-9） 700X900 | E21: 座 | F21: 4.000 | G21: 242.36 | H21: 969.43
A22: 15 | B22: 040101002002 | D22: 挖沟槽土方（回填） | E22: m3 | F22: 560.000 | G22: 6.31 | H22: 3533.93
A23: 16 | B23: 040103001001 | D23: 回填土方 | E23: m3 | F23: 50.000 | G23: 12.30 | H23: 614.79
A24: 17 | B24: 040103001002 | D24: 回填石屑 | E24: m3 | F24: 466.000 | G24: 10.00 | H24: 4660.00
A25: 18 | B25: 040103002001 | D25: 余方弃置 | E25: m3 | F25: 466.000 | G25: 5.37 | H25: 2501.57
D26: 措施项目
A27: 25 | B27: 041102001001 | D27: 镇墩模板 | E27: m2 | F27: 35.500 | G27: 23.27 | H27: 826.03
A28: 26 | B28: 041104001001 | D28: 便道 | E28: m2 | F28: 900.000 | G28: 9.62 | H28: 8658.90
A29: 27 | B29: 040103002001 | D29: 便道拆除并余方弃置 | E29: m3 | F29: 270.000 | G29: 2.53 | H29: 683.13
A30: 28 | B30: 041103001001 | D30: 纤维袋围堰 | E30: m3 | F30: 114.000 | G30: 104.25 | H30: 11884.01
A31: 合计 | H31: =SUM(H6:H30) -> 75932.34

Sheet 32【综合楼传达室机修车间-安装工程】
A1: 劳务采购工程量清单
A2: 工程名称: | C2: 综合楼传达室机修车间-安装工程
A3: 序号 | B3: 项目编码 | D3: 项目名称 | E3: 单位 | F3: 工程量 | G3: 人工费
G4: 单价（元） | H4: 合价（元）
D5: 综合楼
D6: 电气
A7: 1 | B7: 030404017001 | D7: 应急照明集中电源箱 | E7: 台 | F7: 1.000 | G7: =ROUND(H7/F7,2) -> 220.56 | H7: 220.56
A8: 2 | B8: 030404017002 | D8: 1层1#照明配电箱 AL1-1 | E8: 台 | F8: 1.000 | G8: =ROUND(H8/F8,2) -> 172.70 | H8: 172.70
A9: 3 | B9: 030404017003 | D9: 1层2#照明配电箱 AL1-2 | E9: 台 | F9: 1.000 | G9: 172.70 | H9: 172.70
A10: 4 | B10: 030404017004 | D10: 2层1#照明配电箱 AL2-1 | E10: 台 | F10: 1.000 | G10: 172.70 | H10: 172.70
A11: 5 | B11: 030404017005 | D11: 2层2#照明配电箱 AL2-2 | E11: 台 | F11: 1.000 | G11: 172.70 | H11: 172.70
A12: 6 | B12: 030404018001 | D12: 化验室插座箱 | E12: 台 | F12: 1.000 | G12: 79.07 | H12: 79.07
A13: 7 | B13: 030404017006 | D13: 厨房配电箱 AL3 | E13: 台 | F13: 1.000 | G13: 143.81 | H13: 143.81
A14: 8 | B14: 030404017007 | D14: 大会议室配电箱 AL5 | E14: 台 | F14: 1.000 | G14: 143.81 | H14: 143.81
A15: 9 | B15: 030404017008 | D15: 动力配电箱ZAP | E15: 台 | F15: 1.000 | G15: 220.56 | H15: 220.56
A16: 10 | B16: 030404017009 | D16: 化验室配电箱 AL4 | E16: 台 | F16: 1.000 | G16: 143.81 | H16: 143.81
A17: 11 | B17: 030404017010 | D17: 中控室配电箱 ZKAL1 | E17: 台 | F17: 1.000 | G17: 220.56 | H17: 220.56
A18: 12 | B18: 030404017011 | D18: 中控室配电箱 ZKAL2 | E18: 台 | F18: 1.000 | G18: 220.56 | H18: 220.56
A19: 13 | B19: 030412004001 | D19: A型疏散出口灯 DC36V 1W | E19: 套 | F19: 5.000 | G19: 23.30 | H19: 116.52
A20: 14 | B20: 030412002001 | D20: A型应急照明灯 DC36V 2x5W | E20: 套 | F20: 35.000 | G20: 28.75 | H20: 1006.39
A21: 15 | B21: 030412004002 | D21: A型疏散指示灯 DC36V 1W | E21: 套 | F21: 18.000 | G21: 23.30 | H21: 419.47
A22: 16 | B22: 030412004003 | D22: A型双向疏散指示灯 DC36V 1W | E22: 套 | F22: 3.000 | G22: 23.30 | H22: 69.91
A23: 17 | B23: 030412001001 | D23: LED门厅灯 | E23: 套 | F23: 2.000 | G23: 19.67 | H23: 39.33
A24: 18 | B24: 030412001002 | D24: 集成式LED灯盘 60W | E24: 套 | F24: 41.000 | G24: 19.66 | H24: 806.18
A25: 19 | B25: 030412001007 | D25: 集成式LED灯盘 38W | E25: 套 | F25: 71.000 | G25: 19.66 | H25: 1396.07
A26: 20 | B26: 030412001003 | D26: 集成式LED灯盘 30W | E26: 套 | F26: 26.000 | G26: 19.66 | H26: 511.24
A27: 21 | B27: 030412001004 | D27: 节能LED筒灯 9W | E27: 套 | F27: 62.000 | G27: 19.66 | H27: 1219.11
A28: 22 | B28: 030404035001 | D28: 单相插座 10A | E28: 个 | F28: 2.000 | G28: 7.95 | H28: 15.90
A29: 23 | B29: 030404035002 | D29: 单相插座 16A | E29: 个 | F29: 6.000 | G29: 7.95 | H29: 47.71
A30: 24 | B30: 030404035003 | D30: 二三孔安全暗插座 16A | E30: 个 | F30: 164.000 | G30: 7.95 | H30: 1304.13
A31: 25 | B31: 030404035004 | D31: 二三孔地插座 16A | E31: 个 | F31: 10.000 | G31: 7.95 | H31: 79.52
A32: 26 | B32: 030404035005 | D32: 二三孔空调暗插座 25A | E32: 个 | F32: 37.000 | G32: 8.40 | H32: 310.76
A33: 27 | B33: 030404035006 | D33: 热水器插座 25A | E33: 个 | F33: 11.000 | G33: 8.40 | H33: 92.39
A34: 28 | B34: 030404035007 | D34: 三相插座 16A | E34: 个 | F34: 1.000 | G34: 10.35 | H34: 10.35
A35: 29 | B35: 030404035008 | D35: 三相插座 25A | E35: 个 | F35: 1.000 | G35: 11.30 | H35: 11.30
A36: 30 | B36: 030404035009 | D36: 三相五孔插座 16A | E36: 个 | F36: 6.000 | G36: 10.35 | H36: 62.08
A37: 31 | B37: 030404034001 | D37: 单联暗开关 10A | E37: 个 | F37: 40.000 | G37: 7.79 | H37: 311.40
A38: 32 | B38: 030404034002 | D38: 双联暗开关 10A | E38: 个 | F38: 27.000 | G38: 8.14 | H38: 219.89
A39: 33 | B39: 030404034003 | D39: 三联暗开关 10A | E39: 个 | F39: 15.000 | G39: 8.14 | H39: 122.16
A40: 34 | B40: 030404034004 | D40: 86型智能面板开关 10A | E40: 个 | F40: 12.000 | G40: 7.79 | H40: 93.42
A41: 35 | B41: 030411006002 | D41: 开关/插座塑料接线盒 | E41: 个 | F41: 328.000 | G41: 4.40 | H41: 1442.87
A42: 36 | B42: 030411006003 | D42: 接线盒 | E42: 个 | F42: 273.000 | G42: 4.13 | H42: 1126.67
A43: 37 | B43: 030411002001 | D43: 强电线槽 300*200 | E43: m | F43: 8.400 | G43: 27.44 | H43: 230.50
A44: 38 | B44: 030411002002 | D44: 强电线槽 400*100 | E44: m | F44: 8.400 | G44: 27.44 | H44: 230.50
A45: 39 | B45: 030413001001 | D45: 线槽支架、支架刷油 | E45: Kg | F45: 13.560 | G45: 14.86 | H45: 201.48
A46: 40 | B46: 030411001001 | D46: 配管（暗） SC20 | E46: m | F46: 369.530 | G46: 4.97 | H46: 1837.89
A47: 41 | B47: 030411001002 | D47: 配管（暗） SC15 | E47: m | F47: 20.000 | G47: 4.67 | H47: 93.35
A48: 42 | B48: 030411001003 | D48: 配管（暗） PC75 | E48: m | F48: 28.740 | G48: 9.16 | H48: 263.17
A49: 43 | B49: 030411001005 | D49: 配管（暗） PC40 | E49: m | F49: 165.660 | G49: 8.29 | H49: 1373.22
A50: 44 | B50: 030411001006 | D50: 配管（暗） PC32 | E50: m | F50: 37.440 | G50: 6.91 | H50: 258.56
A51: 45 | B51: 030411001007 | D51: 配管（暗） PC20 | E51: m | F51: 2993.450 | G51: 4.42 | H51: 13243.84
A52: 46 | B52: 030411004001 | D52: 配线 WDZN-BYJ-2.5 | E52: m | F52: 639.960 | G52: 0.78 | H52: 498.24
A53: 47 | B53: 030411004018 | D53: 线槽配线 WDZN-BYJ-2.5 | E53: m | F53: 15.900 | G53: 1.10 | H53: 17.56
A54: 48 | B54: 030411004002 | D54: 配线 ZRBVR-2.5 | E54: m | F54: 3426.640 | G54: 0.78 | H54: 2667.61
A55: 49 | B55: 030411004020 | D55: 线槽配线 ZRBVR-2.5 | E55: m | F55: 69.300 | G55: 1.10 | H55: 76.55
A56: 50 | B56: 030411004003 | D56: 配线 WDZN-BYJ-4 | E56: m | F56: 9.700 | G56: 0.68 | H56: 6.63
A57: 51 | B57: 030411004019 | D57: 线槽配线 WDZN-BYJ-4 | E57: m | F57: 6.600 | G57: 1.35 | H57: 8.90
A58: 52 | B58: 030411004004 | D58: 配线 ZRBVR-4 | E58: m | F58: 5079.990 | G58: 0.68 | H58: 3471.67
A59: 53 | B59: 030411004021 | D59: 线槽配线 ZRBVR-4 | E59: m | F59: 204.600 | G59: 1.35 | H59: 275.80
A60: 54 | B60: 030411004005 | D60: 配线 WDZN-RYSP-2*1.5 | E60: m | F60: 20.000 | G60: 0.80 | H60: 15.90
A61: 55 | B61: 030408001001 | D61: 电力电缆 WDZ-YJY-3*70+2*35 | E61: m | F61: 34.660 | G61: 11.19 | H61: 388.01
A62: 56 | B62: 030408001003 | D62: 电力电缆 WDZ-YJY-5*16 | E62: m | F62: 136.280 | G62: 8.14 | H62: 1109.06
A63: 57 | B63: 030408001004 | D63: 电力电缆 WDZ-YJY-5*10 | E63: m | F63: 66.350 | G63: 4.25 | H63: 281.99
A64: 58 | B64: 030408001005 | D64: 电力电缆 WDZ-YJY-5*6 | E64: m | F64: 28.770 | G64: 2.55 | H64: 73.49
A65: 59 | B65: 030408001006 | D65: 电力电缆 WDZ-YJY-5*4 | E65: m | F65: 171.790 | G65: 2.55 | H65: 438.42
A66: 60 | B66: 030408002001 | D66: 控制电缆 WDZ-KYJY-3*2.5 | E66: m | F66: 6.960 | G66: 4.01 | H66: 27.91
A67: 61 | B67: 030408006001 | D67: 电力电缆头 70mm2 | E67: 个 | F67: 2.000 | G67: 81.15 | H67: 162.30
A68: 62 | B68: 030408006002 | D68: 电力电缆头 16mm2 | E68: 个 | F68: 10.000 | G68: 34.33 | H68: 343.30
A69: 63 | B69: 030904004001 | D69: 警铃 | E69: 个 | F69: 3.000 | G69: 27.43 | H69: 82.29
A70: 64 | B70: 030904001001 | D70: 可燃气体报警装置 | E70: 个 | F70: 4.000 | G70: 25.77 | H70: 103.08
A71: 65 | B71: 030404033001 | D71: 照明排风一体 吹风30W 换气30W 照明6W | E71: 台 | F71: 21.000 | G71: 58.60 | H71: 1230.60
D72: 防雷
A73: 66 | B73: 030409008001 | D73: 局部等电位端子箱 | E73: 台 | F73: 8.000 | G73: =ROUND(H73/F73,2) -> 36.41 | H73: 291.28
A74: 67 | B74: 030409008002 | D74: 总等电位端子箱 | E74: 台 | F74: 2.000 | G74: 91.18 | H74: 182.36
A75: 68 | B75: 030409003001 | D75: 防雷引下线 | E75: m | F75: 134.400 | G75: 7.89 | H75: 1060.95
A76: 69 | B76: 030409005001 | D76: 避雷网φ12热镀锌圆钢 | E76: m | F76: 428.570 | G76: 8.82 | H76: 3778.70
A77: 70 | B77: 030409004001 | D77: 均压环 | E77: m | F77: 207.380 | G77: 3.83 | H77: 794.68
A78: 71 | B78: 030409006001 | D78: 接闪短杆 | E78: 根 | F78: 10.000 | G78: 21.50 | H78: 215.00
A79: 72 | B79: 030409002001 | D79: 等电位联结线 | E79: m | F79: 161.590 | G79: 13.13 | H79: 2122.16
A80: 73 | B80: 030409001001 | D80: 接地板 | E80: 处 | F80: 14.000 | G80: 95.95 | H80: 1343.30
D81: 弱电
A82: 74 | B82: 030505003001 | D82: 有线电视箱 | E82: 个 | F82: 1.000 | G82: 235.28 | H82: 235.28
A83: 75 | B83: 030502001001 | D83: 综合布线箱 | E83: 台 | F83: 1.000 | G83: 109.62 | H83: 109.62
A84: 76 | B84: 030501012001 | D84: 24口交换机 | E84: 台 | F84: 2.000 | G84: 146.89 | H84: 293.78
A85: 77 | B85: 030505013001 | D85: 视频放大器 | E85: 个 | F85: 1.000 | G85: 7.84 | H85: 7.84
A86: 78 | B86: 030505013002 | D86: 视频分配器 | E86: 个 | F86: 4.000 | G86: 13.73 | H86: 54.93
A87: 79 | B87: 030608009001 | D87: 光电转换器 | E87: 套 | F87: 2.000 | G87: 169.40 | H87: 338.80
A88: 80 | B88: 030507008001 | D88: 高清红外球枪一体式网络摄像机 | E88: 台 | F88: 10.000 | G88: 127.35 | H88: 1273.50
A89: 81 | B89: 030502004001 | D89: 电视出线座 | E89: 个 | F89: 12.000 | G89: 6.15 | H89: 73.80
A90: 82 | B90: 030502012001 | D90: 双孔 UTP出线座 | E90: 个 | F90: 58.000 | G90: 10.78 | H90: 625.24
A91: 83 | B91: 030411006004 | D91: 塑料接线盒 | E91: 个 | F91: 82.000 | G91: 4.13 | H91: 338.41
A92: 84 | B92: 030411002003 | D92: 弱电线槽 200*100 | E92: m | F92: 156.410 | G92: 22.17 | H92: 3467.77
A93: 85 | B93: 030413001002 | D93: 线槽支架、支架刷油 | E93: Kg | F93: 151.130 | G93: 14.81 | H93: 2238.42
A94: 86 | B94: 030411001008 | D94: 配管（暗） SC32 | E94: m | F94: 150.180 | G94: 7.64 | H94: 1146.88
A95: 87 | B95: 030411001009 | D95: 配管（暗） PC20 | E95: m | F95: 573.920 | G95: 4.42 | H95: 2539.05
A96: 88 | B96: 030502005001 | D96: 六类网线 | E96: m | F96: 4854.030 | G96: 0.99 | H96: 4805.46
A97: 89 | B97: 030505005001 | D97: SYPFV-75-5 | E97: m | F97: 613.460 | G97: 0.99 | H97: 607.37
A98: 90 | B98: 030502007001 | D98: 2芯单模铠装光缆 | E98: m | F98: 98.640 | G98: 1.85 | H98: 182.55
D99: 自动报警
A100: 91 | B100: 030904001002 | D100: 点型感烟探测器 | E100: 个 | F100: 13.000 | G100: 25.77 | H100: 335.01
A101: 92 | B101: 030904003001 | D101: 带消防电话插孔的手动火灾报警按钮 | E101: 个 | F101: 1.000 | G101: 37.47 | H101: 37.47
A102: 93 | B102: 030904005001 | D102: 火灾声光报警器 | E102: 个 | F102: 1.000 | G102: 53.18 | H102: 53.18
A103: 94 | B103: 030904008001 | D103: 短路隔离器 | E103: 个 | F103: 1.000 | G103: 79.45 | H103: 79.45
A104: 95 | B104: 030411006011 | D104: 接线盒 | E104: 个 | F104: 15.000 | G104: 4.13 | H104: 61.91
A105: 96 | B105: 030904017001 | D105: 区域型火灾报警控制器 | E105: 台 | F105: 1.000 | G105: 1552.57 | H105: 1552.57
A106: 97 | B106: 030411001010 | D106: 配管（暗） SC20 | E106: m | F106: 63.520 | G106: 6.07 | H106: 385.86
A107: 98 | B107: 030411004007 | D107: 配线 WDZN-BYJ-2.5 | E107: m | F107: 26.900 | G107: 0.78 | H107: 20.94
A108: 99 | B108: 030411004008 | D108: 配线 WDZN-RYSP-2*1.0 | E108: m | F108: 53.070 | G108: 0.79 | H108: 41.67
D109: 给水
A110: 100 | B110: 031001007001 | D110: PSP钢塑复合压力管 DN100 | E110: m | F110: 23.700 | G110: 37.87 | H110: 897.51
A111: 101 | B111: 031001007002 | D111: PSP钢塑复合压力管 DN80 | E111: m | F111: 11.050 | G111: 31.81 | H111: 351.47
A112: 102 | B112: 031001007003 | D112: PSP钢塑复合压力管 DN65 | E112: m | F112: 29.500 | G112: 30.48 | H112: 899.11
A113: 103 | B113: 031001007004 | D113: PSP钢塑复合压力管 DN50 | E113: m | F113: 25.530 | G113: 28.56 | H113: 729.02
A114: 104 | B114: 031001007005 | D114: PSP钢塑复合压力管 DN40 | E114: m | F114: 18.570 | G114: 26.37 | H114: 489.72
A115: 105 | B115: 031001007006 | D115: PSP钢塑复合压力管 DN25 | E115: m | F115: 6.580 | G115: 24.01 | H115: 157.97
A116: 106 | B116: 031001007007 | D116: PSP钢塑复合压力管 DN20 | E116: m | F116: 2.600 | G116: 19.95 | H116: 51.87
A117: 107 | B117: 031001007008 | D117: PSP钢塑复合压力管 DN15 | E117: m | F117: 4.970 | G117: 19.07 | H117: 94.78
A118: 108 | B118: 031001006001 | D118: PPR给水管 DN50 | E118: m | F118: 23.760 | G118: 19.71 | H118: 468.34
A119: 109 | B119: 031001006002 | D119: PPR给水管 DN40 | E119: m | F119: 17.670 | G119: 18.06 | H119: 319.17
A120: 110 | B120: 031001006003 | D120: PPR给水管 DN32 | E120: m | F120: 15.270 | G120: 15.57 | H120: 237.71
A121: 111 | B121: 031001006004 | D121: PPR给水管 DN25 | E121: m | F121: 25.690 | G121: 13.86 | H121: 355.94
A122: 112 | B122: 031001006005 | D122: PPR给水管 DN20 | E122: m | F122: 30.270 | G122: 12.84 | H122: 388.71
A123: 113 | B123: 031001006006 | D123: PPR给水管 DN15 | E123: m | F123: 136.040 | G123: 11.56 | H123: 1572.84
A124: 114 | B124: 031002001001 | D124: 管道支架、支架刷油 | E124: kg | F124: 95.750 | G124: 10.74 | H124: 1028.22
A125: 115 | B125: 031003009001 | D125: 波纹伸缩器 DN65 | E125: 个 | F125: 1.000 | G125: 46.16 | H125: 46.16
A126: 116 | B126: 031003001001 | D126: 蝶阀 DN65 | E126: 个 | F126: 1.000 | G126: 33.10 | H126: 33.10
A127: 117 | B127: 031003001002 | D127: 截止阀 DN65 | E127: 个 | F127: 3.000 | G127: 33.10 | H127: 99.30
A128: 118 | B128: 031003001003 | D128: 截止阀 DN50 | E128: 个 | F128: 7.000 | G128: 20.97 | H128: 146.79
A129: 119 | B129: 031003001004 | D129: 截止阀 DN40 | E129: 个 | F129: 12.000 | G129: 20.97 | H129: 251.64
A130: 120 | B130: 031003001005 | D130: 截止阀 DN25 | E130: 个 | F130: 1.000 | G130: 9.43 | H130: 9.43
A131: 121 | B131: 031003001006 | D131: 截止阀 DN20 | E131: 个 | F131: 1.000 | G131: 7.69 | H131: 7.69
A132: 122 | B132: 031003001007 | D132: 截止阀 DN15 | E132: 个 | F132: 13.000 | G132: 7.69 | H132: 99.97
A133: 123 | B133: 031003001008 | D133: 止回阀 DN15 | E133: 个 | F133: 2.000 | G133: 7.69 | H133: 15.38
A134: 124 | B134: 031003013001 | D134: 水表组（含2蝶阀） DN100 | E134: 组 | F134: 1.000 | G134: 269.85 | H134: 269.85
A135: 125 | B135: 031002003001 | D135: 普通钢套管 DN15 | E135: 个 | F135: 1.000 | G135: 9.43 | H135: 9.43
A136: 126 | B136: 031002003002 | D136: 普通钢套管 DN50 | E136: 个 | F136: 4.000 | G136: =ROUND(H136/F136,2) -> 15.17 | H136: 60.68
D137: 热水
A138: 127 | B138: 031001006007 | D138: PPR热水管 DN15 | E138: m | F138: 68.420 | G138: 11.56 | H138: 791.04
A139: 128 | B139: 031004010001 | D139: 沐浴器 | E139: 套 | F139: 11.000 | G139: 17.37 | H139: 191.06
A140: 129 | B140: 031006012001 | D140: 电热水器 | E140: 台 | F140: 11.000 | G140: 57.97 | H140: 637.67
D141: 污废排水
A142: 130 | B142: 031001006008 | D142: UPVC螺旋消音塑料管 DN150 | E142: m | F142: 32.930 | G142: 29.51 | H142: 971.72
A143: 131 | B143: 031001006009 | D143: UPVC螺旋消音塑料管 DN100 | E143: m | F143: 233.230 | G143: 20.56 | H143: 4795.68
A144: 132 | B144: 031001006010 | D144: UPVC螺旋消音塑料管 DN75 | E144: m | F144: 19.940 | G144: 18.46 | H144: 368.19
A145: 133 | B145: 031001006011 | D145: UPVC螺旋消音塑料管 DN50 | E145: m | F145: 14.960 | G145: 13.79 | H145: 206.30
A146: 134 | B146: 031002003003 | D146: 管卡 DN100 | E146: 个 | F146: 22.000 | G146: 2.04 | H146: 44.88
A147: 135 | B147: 031004014001 | D147: 淋浴排水地漏 DN100 | E147: 个 | F147: 11.000 | G147: 37.62 | H147: 413.81
A148: 136 | B148: 031004014002 | D148: 网框式地漏 DN150 | E148: 个 | F148: 1.000 | G148: 59.39 | H148: 59.39
A149: 137 | B149: 031004014003 | D149: 洗衣机专用地漏 DN75 | E149: 个 | F149: 11.000 | G149: 32.10 | H149: 353.12
A150: 138 | B150: 031004014004 | D150: 地漏 DN100 | E150: 个 | F150: 2.000 | G150: 37.62 | H150: 75.24
A151: 139 | B151: 031004014005 | D151: 地漏 DN50 | E151: 个 | F151: 20.000 | G151: 16.60 | H151: 331.98
A152: 140 | B152: 031004014006 | D152: 清扫口 DN150 | E152: 个 | F152: 1.000 | G152: 12.54 | H152: 12.54
A153: 141 | B153: 031004014007 | D153: 清扫口 DN100 | E153: 个 | F153: 1.000 | G153: 9.79 | H153: 9.79
A154: 142 | B154: 031002003004 | D154: 阻火圈 DN100 | E154: 个 | F154: 12.000 | G154: 8.56 | H154: 102.70
A155: 143 | B155: 031004006001 | D155: 蹲式大便器 | E155: 组 | F155: 23.000 | G155: 87.44 | H155: 2011.07
A156: 144 | B156: 031004006002 | D156: 无障碍坐式大便器 | E156: 组 | F156: 2.000 | G156: 64.69 | H156: 129.37
A157: 145 | B157: 031004006003 | D157: 坐式大便器 | E157: 组 | F157: 1.000 | G157: 64.68 | H157: 64.68
A158: 146 | B158: 031004007001 | D158: 挂式小便器 | E158: 组 | F158: 7.000 | G158: 35.75 | H158: 250.28
A159: 147 | B159: 031004003001 | D159: 洗脸盆 | E159: 组 | F159: 18.000 | G159: 41.81 | H159: 752.65
A160: 148 | B160: 031004003002 | D160: 无障碍洗脸盆 | E160: 组 | F160: 2.000 | G160: 41.82 | H160: 83.63
A161: 149 | B161: 031002003005 | D161: 刚性防水套管 DN75 | E161: 个 | F161: 5.000 | G161: 101.05 | H161: 505.25
A162: 150 | B162: 031002003006 | D162: 刚性防水套管 DN100 | E162: 个 | F162: 33.000 | G162: 116.39 | H162: 3840.87
A163: 151 | B163: 031002003007 | D163: 刚性防水套管 DN150 | E163: 个 | F163: 1.000 | G163: 134.28 | H163: 134.28
A164: 152 | B164: 031002003008 | D164: 塑料套管 DN100 | E164: 个 | F164: 12.000 | G164: 13.86 | H164: 166.32
D165: 雨水
A166: 153 | B166: 031001006012 | D166: 加厚UPVC塑料管 DN200 | E166: m | F166: 6.180 | G166: 36.44 | H166: 225.20
A167: 154 | B167: 031001006013 | D167: 加厚UPVC塑料管 DN100 | E167: m | F167: 172.530 | G167: 19.08 | H167: 3292.04
A168: 155 | B168: 031002003009 | D168: 管卡 DN100 | E168: 个 | F168: 25.000 | G168: 2.04 | H168: 51.00
A169: 156 | B169: 031004014008 | D169: 地漏 DN100 | E169: 个 | F169: 6.000 | G169: 37.62 | H169: 225.71
A170: 157 | B170: 031002003010 | D170: 阻火圈 DN100 | E170: 个 | F170: 2.000 | G170: 8.56 | H170: 17.12
A171: 158 | B171: 031004014009 | D171: 侧排式雨水斗 DN100 | E171: 个 | F171: 2.000 | G171: 31.68 | H171: 63.36
A172: 159 | B172: 031004014010 | D172: 重力型雨水斗 DN100 | E172: 个 | F172: 8.000 | G172: 31.68 | H172: 253.45
A173: 160 | B173: 031002003011 | D173: 刚性防水套管 DN100 | E173: 个 | F173: 13.000 | G173: 116.39 | H173: 1513.07
A174: 161 | B174: 031002003012 | D174: 刚性防水套管 DN200 | E174: 个 | F174: 3.000 | G174: 173.61 | H174: 520.83
A175: 162 | B175: 031002003013 | D175: 塑料套管 DN100 | E175: 个 | F175: 6.000 | G175: 13.86 | H175: 83.16
D176: 冷凝水
A177: 163 | B177: 031001006014 | D177: UPVC塑料管 DN50 | E177: m | F177: 67.350 | G177: 12.52 | H177: 843.22
A178: 164 | B178: 031001006015 | D178: UPVC塑料管 DN32 | E178: m | F178: 1.200 | G178: 9.79 | H178: 11.75
A179: 165 | B179: 031004014011 | D179: 地漏 DN50 | E179: 个 | F179: 15.000 | G179: 16.60 | H179: 248.99
A180: 166 | B180: 031002003014 | D180: 塑料套管 DN50 | E180: 个 | F180: 3.000 | G180: 12.92 | H180: 38.76
D181: 传达室
D182: 电气
A183: 167 | B183: 030404017012 | D183: 厂区照明箱 CAL | E183: 台 | F183: 1.000 | G183: 143.81 | H183: 143.81
A184: 168 | B184: 030404017013 | D184: 传达室配电箱 RAL | E184: 台 | F184: 1.000 | G184: 143.81 | H184: 143.81
A185: 169 | B185: 030412001005 | D185: 集成式LED灯盘 30W | E185: 套 | F185: 1.000 | G185: 19.66 | H185: 19.66
A186: 170 | B186: 030404035010 | D186: 二三孔安全暗插座 16A | E186: 个 | F186: 2.000 | G186: 7.95 | H186: 15.90
A187: 171 | B187: 030404035011 | D187: 二三孔空调暗插座 25A | E187: 个 | F187: 1.000 | G187: 8.40 | H187: 8.40
A188: 172 | B188: 030411006006 | D188: 开关/插座塑料接线盒 | E188: 个 | F188: 4.000 | G188: 4.40 | H188: 17.60
A189: 173 | B189: 030404034005 | D189: 单联暗开关 10A | E189: 个 | F189: 1.000 | G189: 7.79 | H189: 7.79
A190: 174 | B190: 030411001011 | D190: 配管（暗） PC20 | E190: m | F190: 15.110 | G190: 4.42 | H190: 66.81
A191: 175 | B191: 030411001012 | D191: 配管（暗） PC32 | E191: m | F191: 4.200 | G191: 6.91 | H191: 29.04
A192: 176 | B192: 030411001013 | D192: 配管（暗） PC40 | E192: m | F192: 3.340 | G192: 8.19 | H192: 27.35
A193: 177 | B193: 030411001014 | D193: 配管（暗） SC32 | E193: m | F193: 14.900 | G193: 7.64 | H193: 113.77
A194: 178 | B194: 030411004009 | D194: 配线 ZRBVR-2.5 | E194: m | F194: 29.700 | G194: 0.78 | H194: 23.12
A195: 179 | B195: 030411004010 | D195: 配线 ZRBVR-4 | E195: m | F195: 29.130 | G195: 0.68 | H195: 19.89
A196: 180 | B196: 030408001007 | D196: 电力电缆 YJY-5*10 | E196: m | F196: 6.500 | G196: 4.25 | H196: 27.65
A197: 181 | B197: 030408001008 | D197: 电力电缆 YJY-5*6 | E197: m | F197: 7.380 | G197: 2.56 | H197: 18.88
A198: 182 | B198: 030408001009 | D198: 电力电缆 YJV-3*4 | E198: m | F198: 16.810 | G198: 1.96 | H198: 32.93
A199: 183 | B199: 030411006007 | D199: 塑料接线盒 | E199: 个 | F199: 2.000 | G199: 4.13 | H199: 8.25
A200: 184 | B200: 030404033002 | D200: 照明排风一体 吹风30W 换气30W 照明6W | E200: 台 | F200: 1.000 | G200: =ROUND(H200/F200,2) -> 58.60 | H200: 58.60
... 96 more rows

Sheet 33【计日工】
A1: 劳务采购工程量清单
A2: 工程名称: | C2: 计日工
A3: 序号 | B3: 项目编码 | D3: 项目名称 | E3: 单位 | F3: 工程量 | G3: 人工费
G4: 单价（元） | H4: 合价（元）
D5: 计日工 | E5: 工日 | F5: =365*35 -> 12775 | G5: 287.00 | H5: =G5*F5 -> 3666425.00
A6: 合计 | H6: =SUM(H5) -> 3666425.00
